Capital or Revenue,Directorate,SERCOP High Level Category,SERCOP Detailed Category,Transaction Number,Date,Service Area,Expenses Type,Amount,Supplier Name
Revenue,Adult Services,Adult Social Care,Central Codes (to be reallocated),5105643985,28.05.2020,Gouldings Resource Centre,Consumable Cleaning Materials,160.00,A & M APPLIANCE CARE
Revenue,Adult Services,Adult Social Care,Central Codes (to be reallocated),5105642630,18.05.2020,Gouldings Resource Centre,Property Services - Day to day Maintenance,123.77,A & M APPLIANCE CARE
Revenue,Adult Services,Adult Social Care,Learning Disab Supp (to be reallocated),5105643984,29.05.2020,Plean Dene,Consumable Cleaning Materials,93.00,A & M APPLIANCE CARE
Revenue,Adult Services,Adult Social Care,Learning Disab Supp (to be reallocated),5400002669,29.05.2020,Plean Dene,Consumable Cleaning Materials,52.00,A & M APPLIANCE CARE
Revenue,Adult Services,Adult Social Care,Central Codes (to be reallocated),5105641551,01.05.2020,Adelaide Resource Centre,Consumable Cleaning Materials,160.00,A & M APPLIANCE CARE
Revenue,Childrens Services,Children's & Education Services,Other Education and Community Budget,5105644002,29.05.2020,Home to School SEN Transport (LA),Taxis - Contract Hire,300.00,AMAR CABS OF NEWPORT
Revenue,Childrens Services,Children's & Education Services,Other Education and Community Budget,5105644003,29.05.2020,Home to School SEN Transport (LA),Taxis - Contract Hire,180.00,AMAR CABS OF NEWPORT
Revenue,Childrens Services,Children's & Education Services,Other Education and Community Budget,5105643993,28.05.2020,Home to School SEN Transport (LA),Taxis - Contract Hire,186.00,AMAR EXCLUSIVES
Revenue,Adult Services,Adult Social Care,Central Codes (to be reallocated),5105641896,06.05.2020,Community Reablement,Vehicle Maintenance Costs,331.51,ISLANDWIDE WINDSCREENS
Revenue,Adult Services,Adult Social Care,Central Codes (to be reallocated),5105642079,04.05.2020,Community Outreach,Vehicle Maintenance Costs,331.51,ISLANDWIDE WINDSCREENS
Revenue,Regeneration,Central Services,Support Services,5105642946,15.05.2020,17 Fairlee Road,Grounds Maintenance,75.00,C & J GROUND MAINTENANCE
Revenue,Regeneration,Housing Services,Other Council Property,5105642945,15.05.2020,Shared Ownership,Grounds Maintenance,75.00,C & J GROUND MAINTENANCE
Revenue,Regeneration,Planning services,Business Support,5105642944,15.05.2020,Somerton Industrial Park,Grounds Maintenance,100.00,C & J GROUND MAINTENANCE
Revenue,Regeneration,Planning services,Business Support,5105642947,15.05.2020,Dodnor Industrial Estate,Grounds Maintenance,75.00,C & J GROUND MAINTENANCE
Revenue,Childrens Services,Children's & Education Services,Other Education and Community Budget,5105643112,29.05.2020,Home to College Post 16 Transport,Taxis - Contract Hire,161.00,MICK'S TAXI
Revenue,Childrens Services,Children's & Education Services,Other Education and Community Budget,5105643096,19.05.2020,Home to School SEN Transport (LA),Taxis - Contract Hire,330.00,CLARES CABS
Revenue,Childrens Services,Children's & Education Services,Management & Support Services,5105643722,22.05.2020,Pupil Premium Managed Centrally,Travel Expenses,66.00,COWES TAXIS
Revenue,Childrens Services,Children's & Education Services,Management & Support Services,5105642603,13.05.2020,Pupil Premium Managed Centrally,Travel Expenses,66.00,COWES TAXIS
Revenue,Childrens Services,Children's & Education Services,Management & Support Services,5105642623,13.05.2020,Pupil Premium Managed Centrally,Travel Expenses,66.00,COWES TAXIS
Revenue,Childrens Services,Children's & Education Services,Management & Support Services,5105641319,13.05.2020,Special Discretionary Grants,Charges from Independent Providers,"2,805.00",REDACTED PERSONAL DATA
Revenue,Childrens Services,Children's & Education Services,Other Education and Community Budget,5105643298,20.05.2020,Home to School SEN Transport (LA),Taxis - Contract Hire,240.00,HAYLES TAXIS
Revenue,Childrens Services,Children's & Education Services,Other Education and Community Budget,5105643299,20.05.2020,Home to School SEN Transport (LA),Taxis - Contract Hire,240.00,HAYLES TAXIS
Revenue,Childrens Services,Children's & Education Services,Other Education and Community Budget,5105643300,20.05.2020,Home to College Post 16 Transport,Taxis - Contract Hire,200.00,HAYLES TAXIS
Revenue,Childrens Services,Children's & Education Services,Other Education and Community Budget,5105643297,20.05.2020,Home to College Post 16 Transport,Taxis - Contract Hire,70.00,HAYLES TAXIS
Revenue,Resources,Central Services,Support Services,5105643107,19.05.2020,ICT Contracts,Computer Maintenance,300.00,REDACTED PERSONAL DATA
Revenue,Childrens Services,Children's & Education Services,Family Support Services,5105642685,14.05.2020,Short Breaks,Charges from Independent Providers,272.00,JOHN CATTLE'S SKATE CLUB
Revenue,Public Health,Public Health,Miscellaneous Public Health Services,5105643199,29.05.2020,PEACH NP,Consultants Fees,"2,500.00",REDACTED PERSONAL DATA
Revenue,Neighbourhoods,Environmental & Regulatory Services,Coast Protection,5105642204,07.05.2020,Castle Haven Coast Protection Scheme,Payment to Private Contractors,"6,864.00",REDACTED PERSONAL DATA
Revenue,Neighbourhoods,Environmental & Regulatory Services,Coast Protection,5105642205,07.05.2020,Castle Haven Coast Protection Scheme,Payment to Private Contractors,182.55,REDACTED PERSONAL DATA
Revenue,Childrens Services,Adult Social Care,Social Care Activities,5105643319,22.05.2020,Adult Social Care - Workforce Development,Training,650.00,MAKING CONNECTIONS (IW) LTD
Revenue,Childrens Services,Children's & Education Services,Other Education and Community Budget,5105643759,27.05.2020,Home to School SEN Transport (LA),Taxis - Contract Hire,814.32,MR TAXIS
Revenue,Childrens Services,Children's & Education Services,Children Looked After,5105642976,15.05.2020,Adoption Support Fund,Charges from Independent Providers,148.33,REDACTED PERSONAL DATA
Revenue,Childrens Services,Children's & Education Services,Children Looked After,5105642976,15.05.2020,Adoption Support Fund,Charges from Independent Providers,148.33,REDACTED PERSONAL DATA
Revenue,Childrens Services,Children's & Education Services,Children Looked After,5105642976,15.05.2020,Adoption Support Fund,Charges from Independent Providers,148.33,REDACTED PERSONAL DATA
Revenue,Neighbourhoods,Cultural and Related Services,Open Spaces,5105643284,20.05.2020,Rights of Way Operations,Payment to Private Contractors,300.00,NIGEL EARLEY SERVICES LTD
Revenue,Resources,Central Services,Support Services,5105643100,19.05.2020,Legal Services Section,Sundry Office Expenses,59.97,OD CONSULTANCY LTD
Revenue,Adult Services,Housing Services,Homelessness,5105643628,22.05.2020,Private Rented Sector Leasing Scheme,Accommodation Costs - Leaseholder Payments,695.89,REDACTED PERSONAL DATA
Revenue,Adult Services,Housing Services,Homelessness,5105643628,22.05.2020,Private Rented Sector Leasing Scheme,Accommodation Costs - Leaseholder Payments,695.89,REDACTED PERSONAL DATA
Revenue,Adult Services,Housing Services,Homelessness,5105643628,22.05.2020,Private Rented Sector Leasing Scheme,Accommodation Costs - Leaseholder Payments,695.89,REDACTED PERSONAL DATA
Revenue,Adult Services,Housing Services,Homelessness,5105643628,22.05.2020,Private Rented Sector Leasing Scheme,Accommodation Costs - Leaseholder Payments,695.89,REDACTED PERSONAL DATA
Revenue,Adult Services,Housing Services,Homelessness,5105643628,22.05.2020,Private Rented Sector Leasing Scheme,Accommodation Costs - Leaseholder Payments,695.89,REDACTED PERSONAL DATA
Revenue,Adult Services,Adult Social Care,Commissioning & Service Delivery,5105643289,20.05.2020,Deferred Payment Fees,Professional Services,150.00,PRINCIPAL SURVEYORS LTD
Revenue,Adult Services,Adult Social Care,Commissioning & Service Delivery,5105642118,06.05.2020,Deferred Payment Fees,Professional Services,150.00,PRINCIPAL SURVEYORS LTD
Revenue,Adult Services,Adult Social Care,Commissioning & Service Delivery,5105642109,06.05.2020,Deferred Payment Fees,Professional Services,150.00,PRINCIPAL SURVEYORS LTD
Revenue,Adult Services,Adult Social Care,Commissioning & Service Delivery,5105643997,28.05.2020,Deferred Payment Fees,Professional Services,150.00,PRINCIPAL SURVEYORS LTD
Revenue,Adult Services,Adult Social Care,Commissioning & Service Delivery,5105643999,28.05.2020,Deferred Payment Fees,Professional Services,150.00,PRINCIPAL SURVEYORS LTD
Revenue,Regeneration,Central Services,Support Services,5105641565,14.05.2020,Strategic Assets Team,Professional Services,"5,500.00",PRINCIPAL SURVEYORS LTD
Revenue,Regeneration,Central Services,Support Services,5105641511,13.05.2020,"Guildhall,Newport",Property Services - Planned Maintenance,210.00,R G PROPERTY SERVICES
Revenue,Regeneration,Central Services,Support Services,5105641510,13.05.2020,Properties  - Other Properties,Property Services - Planned Maintenance,225.00,R G PROPERTY SERVICES
Revenue,Childrens Services,Children's & Education Services,Family Support Services,5105643520,22.05.2020,Short Breaks,Charges from Independent Providers,432.00,SCALLYWAGS FUN CLUB
Revenue,Regeneration,Planning services,Economic Development,5105643562,22.05.2020,Director of Regeneration,Consultants Fees,"3,100.00",SOUTH ISLAND ESTATES LTD
Revenue,Childrens Services,Children's & Education Services,Family Support Services,5105643591,22.05.2020,Short Breaks,Charges from Independent Providers,137.04,SPLAT MESSY PLAY LTD
Revenue,Childrens Services,Children's & Education Services,Management & Support Services,5105641905,06.05.2020,Special Discretionary Grants,Charges from Independent Providers,120.00,REDACTED PERSONAL DATA
Revenue,Childrens Services,Children's & Education Services,Special Schools & Alternative Provision,5105643175,19.05.2020,Island Learning Centre,Agency staff,719.50,SUPPLY DESK LTD
Revenue,Childrens Services,Children's & Education Services,Special Schools & Alternative Provision,5105643169,19.05.2020,Island Learning Centre,Agency staff,575.60,SUPPLY DESK LTD
Revenue,Childrens Services,Children's & Education Services,Special Schools & Alternative Provision,5105642216,06.05.2020,Island Learning Centre,Agency staff,719.50,SUPPLY DESK LTD
Revenue,Childrens Services,Children's & Education Services,Special Schools & Alternative Provision,5105643547,22.05.2020,Island Learning Centre,Agency staff,287.80,SUPPLY DESK LTD
Revenue,Childrens Services,Children's & Education Services,Special Schools & Alternative Provision,5105641349,04.05.2020,Island Learning Centre,Agency staff,719.50,SUPPLY DESK LTD
Revenue,Childrens Services,Children's & Education Services,Family Support Services,5105644090,29.05.2020,Short Breaks,Charges from Independent Providers,239.00,THE CROSSLEY COMPANY (IOW) LTD
Revenue,Childrens Services,Children's & Education Services,Family Support Services,5105642677,14.05.2020,Short Breaks,Charges from Independent Providers,215.52,THE VECTIS RADIO 4PS TRAINING
Revenue,Childrens Services,Children's & Education Services,Special Schools & Alternative Provision,5105642678,14.05.2020,Island Learning Centre,Consumable Cleaning Materials,212.34,TOP MOPS LIMITED
Revenue,Childrens Services,Children's & Education Services,Special Schools & Alternative Provision,5105643600,22.05.2020,Island Learning Centre,Cleaning Contracts,431.81,TOP MOPS LIMITED
Revenue,Childrens Services,Children's & Education Services,Special Schools & Alternative Provision,5105643600,22.05.2020,Island Learning Centre,Cleaning Contracts,431.81,TOP MOPS LIMITED
Revenue,Childrens Services,Children's & Education Services,Special Schools & Alternative Provision,5105643599,22.05.2020,Island Learning Centre,Cleaning Contracts,257.24,TOP MOPS LIMITED
Revenue,Childrens Services,Children's & Education Services,Special Schools & Alternative Provision,5105643599,22.05.2020,Island Learning Centre,Cleaning Contracts,257.24,TOP MOPS LIMITED
Revenue,Childrens Services,Children's & Education Services,Special Schools & Alternative Provision,5105643599,22.05.2020,Island Learning Centre,Cleaning Contracts,257.24,TOP MOPS LIMITED
Revenue,Childrens Services,Children's & Education Services,Special Schools & Alternative Provision,5105643599,22.05.2020,Island Learning Centre,Cleaning Contracts,257.24,TOP MOPS LIMITED
Revenue,Childrens Services,Children's & Education Services,Special Schools & Alternative Provision,5105643600,22.05.2020,Island Learning Centre,Cleaning Contracts,431.81,TOP MOPS LIMITED
Revenue,Childrens Services,Children's & Education Services,Special Schools & Alternative Provision,5105643600,22.05.2020,Island Learning Centre,Cleaning Contracts,431.81,TOP MOPS LIMITED
Revenue,Childrens Services,Children's & Education Services,Special Schools & Alternative Provision,5105643595,22.05.2020,Island Learning Centre,Cleaning Contracts,273.20,TOP MOPS LIMITED
Revenue,Childrens Services,Children's & Education Services,Special Schools & Alternative Provision,5105643595,22.05.2020,Island Learning Centre,Cleaning Contracts,273.20,TOP MOPS LIMITED
Revenue,Childrens Services,Children's & Education Services,Special Schools & Alternative Provision,5105643598,22.05.2020,Island Learning Centre,Cleaning Contracts,137.55,TOP MOPS LIMITED
Revenue,Childrens Services,Children's & Education Services,Special Schools & Alternative Provision,5105643598,22.05.2020,Island Learning Centre,Cleaning Contracts,137.55,TOP MOPS LIMITED
Revenue,Childrens Services,Children's & Education Services,Special Schools & Alternative Provision,5105643598,22.05.2020,Island Learning Centre,Cleaning Contracts,458.50,TOP MOPS LIMITED
Revenue,Childrens Services,Children's & Education Services,Special Schools & Alternative Provision,5105643598,22.05.2020,Island Learning Centre,Cleaning Contracts,458.50,TOP MOPS LIMITED
Revenue,Childrens Services,Children's & Education Services,Special Schools & Alternative Provision,5105643595,22.05.2020,Island Learning Centre,Cleaning Contracts,163.92,TOP MOPS LIMITED
Revenue,Childrens Services,Children's & Education Services,Special Schools & Alternative Provision,5105643595,22.05.2020,Island Learning Centre,Cleaning Contracts,163.92,TOP MOPS LIMITED
Revenue,Adult Services,Central Services,Central Services to the Public,5105642017,27.05.2020,AS Covid-19 (Adults),Professional Services,380.00,TOP MOPS LIMITED
Revenue,Childrens Services,Children's & Education Services,Other Education and Community Budget,5105642111,06.05.2020,Barton Primary Sshool Disposal,Security of Buildings,237.00,VECTIS GROUP SECURITY LTD
Revenue,Neighbourhoods,Cultural and Related Services,Recreation and Sport,5105643147,22.05.2020,Medina Leisure Centre,Payment to Private Contractors,32.00,VECTIS GROUP SECURITY LTD
Revenue,Childrens Services,Children's & Education Services,Other Education and Community Budget,5105642117,06.05.2020,Weston Academy Closure,Security of Buildings,192.00,VECTIS GROUP SECURITY LTD
Revenue,Childrens Services,Children's & Education Services,Special Schools & Alternative Provision,5400002672,29.05.2020,Island Learning Centre,Stationery,12.00,VECTIS GROUP SECURITY LTD
Revenue,Childrens Services,Children's & Education Services,Special Schools & Alternative Provision,5105643156,19.05.2020,Island Learning Centre,Security of Buildings,12.00,VECTIS GROUP SECURITY LTD
Revenue,Neighbourhoods,Cultural and Related Services,Recreation and Sport,5105643109,19.05.2020,Westridge Squash Courts,Operational Equipment,12.00,VECTIS GROUP SECURITY LTD
Revenue,Childrens Services,Children's & Education Services,Other Education and Community Budget,5105642112,06.05.2020,Broadlea PS Berry Hill site (was 55909),Security of Buildings,22.50,VECTIS GROUP SECURITY LTD
Revenue,Childrens Services,Children's & Education Services,Other Education and Community Budget,5105642112,06.05.2020,Broadlea PS Berry Hill site (was 55909),Security of Buildings,22.50,VECTIS GROUP SECURITY LTD
Revenue,Neighbourhoods,Cultural and Related Services,Recreation and Sport,5105643201,20.05.2020,The Heights,Operational Equipment,67.00,VECTIS GROUP SECURITY LTD
Revenue,Childrens Services,Children's & Education Services,Other Education and Community Budget,5105643772,27.05.2020,Home to School SEN Transport (LA),Taxis - Contract Hire,550.00,W W CARS OF SEAVIEW
Revenue,Childrens Services,Children's & Education Services,Other Education and Community Budget,5105643770,27.05.2020,Home to School SEN Transport (LA),Taxis - Contract Hire,220.00,W W CARS OF SEAVIEW
Revenue,Childrens Services,Children's & Education Services,Other Education and Community Budget,5105643980,28.05.2020,Home to School SEN Transport (LA),Taxis - Contract Hire,-825.00,W W CARS OF SEAVIEW
Revenue,Childrens Services,Children's & Education Services,Other Education and Community Budget,5105643978,28.05.2020,Home to School SEN Transport (LA),Taxis - Contract Hire,-330.00,W W CARS OF SEAVIEW
Revenue,Childrens Services,Children's & Education Services,Other Education and Community Budget,5400002681,29.05.2020,Home to School SEN Transport (LA),Taxis - Contract Hire,800.00,W W CARS OF SEAVIEW
Revenue,Childrens Services,Children's & Education Services,Other Education and Community Budget,5105643073,28.05.2020,Home to School SEN Transport (LA),Taxis - Contract Hire,330.00,W W CARS OF SEAVIEW
Revenue,Childrens Services,Children's & Education Services,Other Education and Community Budget,5105643079,28.05.2020,Home to School SEN Transport (LA),Taxis - Contract Hire,825.00,W W CARS OF SEAVIEW
Revenue,Childrens Services,Children's & Education Services,Other Education and Community Budget,5105643075,28.05.2020,Home to College Post 16 Transport,Taxis - Contract Hire,324.00,W W CARS OF SEAVIEW
Revenue,Childrens Services,Children's & Education Services,Other Education and Community Budget,5400002683,29.05.2020,Home to College Post 16 Transport,Taxis - Contract Hire,684.00,W W CARS OF SEAVIEW
Revenue,Childrens Services,Children's & Education Services,Other Education and Community Budget,5105643979,28.05.2020,Home to College Post 16 Transport,Taxis - Contract Hire,-324.00,W W CARS OF SEAVIEW
Revenue,Childrens Services,Children's & Education Services,Other Education and Community Budget,5105643771,27.05.2020,Home to College Post 16 Transport,Taxis - Contract Hire,216.00,W W CARS OF SEAVIEW
Revenue,Childrens Services,Children's & Education Services,Other Education and Community Budget,5105643097,19.05.2020,Home to School SEN Transport (LA),Taxis - Contract Hire,414.00,HAVEN TAXIS & PRIVATE HIRE
Revenue,Neighbourhoods,Cultural and Related Services,Recreation and Sport,5105643762,27.05.2020,Medina Leisure Centre,Property Services - Planned Maintenance,195.00,WIGHT HEATING LTD
Revenue,Neighbourhoods,Cultural and Related Services,Recreation and Sport,5105643763,27.05.2020,Medina Leisure Centre,Property Services - Day to day Maintenance,"1,085.37",WIGHT HEATING LTD
Revenue,Neighbourhoods,Cultural and Related Services,Recreation and Sport,5105643764,27.05.2020,Medina Leisure Centre,Property Services - Day to day Maintenance,803.47,WIGHT HEATING LTD
Revenue,Adult Services,Adult Social Care,Assistive Equipment & Technology,5105643254,20.05.2020,Community Equipment Store,Property Services - Planned Maintenance,158.35,WIGHT HEATING LTD
Revenue,Adult Services,Adult Social Care,Social Support - Support for Carer,5105643568,22.05.2020,Westminster House,Property Services - Planned Maintenance,75.00,WIGHT HEATING LTD
Capital,Resources,Capital,Capital,5105643577,22.05.2020,Management of Asbestos,Payment to Contractors - Capital,"1,409.76",WIGHT HEATING LTD
Capital,Resources,Capital,Capital,5105643253,20.05.2020,Management of Asbestos,Payment to Contractors - Capital,"9,638.71",WIGHT HEATING LTD
Revenue,Childrens Services,Children's & Education Services,Sure Start Children's Centres,5105643765,27.05.2020,Family Centres Maintenance,Minor Works,45.00,WIGHT HEATING LTD
Revenue,Adult Services,Adult Social Care,Mental Health Support (to be reallocated),5105643306,26.05.2020,Mental Health Day Services,Property Services - Planned Maintenance,230.00,WIGHT HEATING LTD
Revenue,Childrens Services,Children's & Education Services,Special Schools & Alternative Provision,5105642978,22.05.2020,Island Learning Centre,Catering Equipment,104.02,2468 LTD
Revenue,Childrens Services,Children's & Education Services,Special Schools & Alternative Provision,5105642978,22.05.2020,Island Learning Centre,Catering Equipment,6.48,2468 LTD
Revenue,Adult Services,Housing Services,Homelessness,5105643641,22.05.2020,Private Rented Sector Leasing Scheme,Accommodation Costs - Leaseholder Payments,866.67,2K PROPERTY
Revenue,Childrens Services,Children's & Education Services,Children Looked After,5105642277,07.05.2020,Special Guardianship Order Costs,Support Children,207.73,REDACTED PERSONAL DATA
Revenue,Childrens Services,Children's & Education Services,Children Looked After,5105642708,14.05.2020,Special Guardianship Order Costs,Support Children,207.73,REDACTED PERSONAL DATA
Revenue,Childrens Services,Children's & Education Services,Children Looked After,5105643360,22.05.2020,Special Guardianship Order Costs,Support Children,207.73,REDACTED PERSONAL DATA
Revenue,Childrens Services,Children's & Education Services,Children Looked After,5105643811,28.05.2020,Special Guardianship Order Costs,Support Children,207.73,REDACTED PERSONAL DATA
Revenue,Childrens Services,Children's & Education Services,Children Looked After,5105643360,22.05.2020,In-house Fostering,Boarding Out Allowances,286.47,REDACTED PERSONAL DATA
Revenue,Childrens Services,Children's & Education Services,Children Looked After,5105643360,22.05.2020,In-house Fostering,Boarding Out Allowances,244.47,REDACTED PERSONAL DATA
Revenue,Childrens Services,Children's & Education Services,Children Looked After,5105642708,14.05.2020,In-house Fostering,Boarding Out Allowances,286.47,REDACTED PERSONAL DATA
Revenue,Childrens Services,Children's & Education Services,Children Looked After,5105642708,14.05.2020,In-house Fostering,Boarding Out Allowances,244.47,REDACTED PERSONAL DATA
Revenue,Childrens Services,Children's & Education Services,Children Looked After,5105643811,28.05.2020,In-house Fostering,Boarding Out Allowances,286.47,REDACTED PERSONAL DATA
Revenue,Childrens Services,Children's & Education Services,Children Looked After,5105643811,28.05.2020,In-house Fostering,Boarding Out Allowances,244.47,REDACTED PERSONAL DATA
Revenue,Childrens Services,Children's & Education Services,Children Looked After,5105642277,07.05.2020,In-house Fostering,Boarding Out Allowances,286.47,REDACTED PERSONAL DATA
Revenue,Childrens Services,Children's & Education Services,Children Looked After,5105642277,07.05.2020,In-house Fostering,Boarding Out Allowances,244.47,REDACTED PERSONAL DATA
Revenue,Childrens Services,Children's & Education Services,Children Looked After,5105642317,07.05.2020,Leaving Care Costs,Support Children,120.89,REDACTED PERSONAL DATA
Revenue,Childrens Services,Children's & Education Services,Children Looked After,5105642317,07.05.2020,Leaving Care Costs,Support Children,68.50,REDACTED PERSONAL DATA
Revenue,Childrens Services,Children's & Education Services,Children Looked After,5105643850,28.05.2020,Leaving Care Costs,Support Children,120.89,REDACTED PERSONAL DATA
Revenue,Childrens Services,Children's & Education Services,Children Looked After,5105643850,28.05.2020,Leaving Care Costs,Support Children,68.50,REDACTED PERSONAL DATA
Revenue,Childrens Services,Children's & Education Services,Children Looked After,5105643400,22.05.2020,Leaving Care Costs,Support Children,120.89,REDACTED PERSONAL DATA
Revenue,Childrens Services,Children's & Education Services,Children Looked After,5105643400,22.05.2020,Leaving Care Costs,Support Children,68.50,REDACTED PERSONAL DATA
Revenue,Childrens Services,Children's & Education Services,Children Looked After,5105642748,14.05.2020,Leaving Care Costs,Support Children,120.89,REDACTED PERSONAL DATA
Revenue,Childrens Services,Children's & Education Services,Children Looked After,5105642748,14.05.2020,Leaving Care Costs,Support Children,68.50,REDACTED PERSONAL DATA
Revenue,Adult Services,Housing Services,Homelessness,5105643638,22.05.2020,Private Rented Sector Leasing Scheme,Accommodation Costs - Leaseholder Payments,510.25,REDACTED PERSONAL DATA
Revenue,Adult Services,Housing Services,Homelessness,5105643638,22.05.2020,Private Rented Sector Leasing Scheme,Accommodation Costs - Leaseholder Payments,510.25,REDACTED PERSONAL DATA
Revenue,Adult Services,Housing Services,Homelessness,5105643638,22.05.2020,Private Rented Sector Leasing Scheme,Accommodation Costs - Leaseholder Payments,510.25,REDACTED PERSONAL DATA
Revenue,Adult Services,Housing Services,Homelessness,5105643638,22.05.2020,Private Rented Sector Leasing Scheme,Accommodation Costs - Leaseholder Payments,510.25,REDACTED PERSONAL DATA
Revenue,Adult Services,Housing Services,Homelessness,5105643638,22.05.2020,Private Rented Sector Leasing Scheme,Accommodation Costs - Leaseholder Payments,510.25,REDACTED PERSONAL DATA
Revenue,Adult Services,Housing Services,Homelessness,5105643638,22.05.2020,Private Rented Sector Leasing Scheme,Accommodation Costs - Leaseholder Payments,510.25,REDACTED PERSONAL DATA
Revenue,Adult Services,Housing Services,Homelessness,5105643638,22.05.2020,Private Rented Sector Leasing Scheme,Accommodation Costs - Leaseholder Payments,510.25,REDACTED PERSONAL DATA
Revenue,Childrens Services,Children's & Education Services,Children Looked After,5105642696,14.05.2020,Adoption Costs,Support Children,225.83,REDACTED PERSONAL DATA
Revenue,Childrens Services,Children's & Education Services,Children Looked After,5105642265,07.05.2020,Adoption Costs,Support Children,225.83,REDACTED PERSONAL DATA
Revenue,Childrens Services,Children's & Education Services,Children Looked After,5105643799,28.05.2020,Adoption Costs,Support Children,225.83,REDACTED PERSONAL DATA
Revenue,Childrens Services,Children's & Education Services,Children Looked After,5105643348,22.05.2020,Adoption Costs,Support Children,225.83,REDACTED PERSONAL DATA
Revenue,Childrens Services,Children's & Education Services,Children Looked After,5105642725,14.05.2020,In-house Fostering,Boarding Out Allowances,521.22,REDACTED PERSONAL DATA
Revenue,Childrens Services,Children's & Education Services,Children Looked After,5105642725,14.05.2020,In-house Fostering,Boarding Out Allowances,521.22,REDACTED PERSONAL DATA
Revenue,Childrens Services,Children's & Education Services,Children Looked After,5105642294,07.05.2020,In-house Fostering,Boarding Out Allowances,521.22,REDACTED PERSONAL DATA
Revenue,Childrens Services,Children's & Education Services,Children Looked After,5105642294,07.05.2020,In-house Fostering,Boarding Out Allowances,521.22,REDACTED PERSONAL DATA
Revenue,Childrens Services,Children's & Education Services,Children Looked After,5105643377,22.05.2020,In-house Fostering,Boarding Out Allowances,521.22,REDACTED PERSONAL DATA
Revenue,Childrens Services,Children's & Education Services,Children Looked After,5105643828,28.05.2020,In-house Fostering,Boarding Out Allowances,521.22,REDACTED PERSONAL DATA
Revenue,Adult Services,Adult Social Care,Support - Memory /Cognition-older people (65+),5105642563,13.05.2020,Memory & Cognition Residential 65+,Charges from Independent Providers,"3,200.12",ABBERDALE LIMITED
Revenue,Adult Services,Adult Social Care,Learning Disab Supp (to be reallocated),5105642988,18.05.2020,"41 Newport Road, Cowes",Charges from Independent Providers,"5,684.00",TRACSCARE WELLCARE LIFESTYLES
Revenue,Adult Services,Adult Social Care,Learning Disab Supp (to be reallocated),5105642988,18.05.2020,"41 Newport Road, Cowes",Charges from Independent Providers,"2,190.72",TRACSCARE WELLCARE LIFESTYLES
Revenue,Adult Services,Housing Services,Supporting People,5105641931,01.05.2020,Supporting People Mental Health,Payment to Private Contractors,154.28,TRACSCARE WELLCARE LIFESTYLES
Revenue,Adult Services,Housing Services,Supporting People,5105641930,01.05.2020,Supporting People Physical Disability,Payment to Private Contractors,161.73,TRACSCARE WELLCARE LIFESTYLES
Revenue,Adult Services,Adult Social Care,Learning Disab Supp (to be reallocated),5105642988,18.05.2020,"17 Newport Road, Ventnor",Charges from Independent Providers,"4,553.00",TRACSCARE WELLCARE LIFESTYLES
Revenue,Adult Services,Adult Social Care,Learning Disab Supp (to be reallocated),5105642988,18.05.2020,"17 Newport Road, Ventnor",Charges from Independent Providers,"2,190.72",TRACSCARE WELLCARE LIFESTYLES
Revenue,Adult Services,Adult Social Care,Learning Disab Supp (to be reallocated),5105642988,18.05.2020,Westhorpe Supported Living,Charges from Independent Providers,"5,684.00",TRACSCARE WELLCARE LIFESTYLES
Revenue,Adult Services,Adult Social Care,Learning Disab Supp (to be reallocated),5105642988,18.05.2020,Westhorpe Supported Living,Charges from Independent Providers,"4,060.00",TRACSCARE WELLCARE LIFESTYLES
Revenue,Adult Services,Adult Social Care,Learning Disab Supp (to be reallocated),5105642988,18.05.2020,Westhorpe Supported Living,Charges from Independent Providers,"2,030.00",TRACSCARE WELLCARE LIFESTYLES
Revenue,Adult Services,Adult Social Care,Learning Disab Supp (to be reallocated),5105642988,18.05.2020,"Greengates, Ryde",Charges from Independent Providers,"5,684.00",TRACSCARE WELLCARE LIFESTYLES
Revenue,Adult Services,Adult Social Care,Learning Disab Supp (to be reallocated),5105642988,18.05.2020,"Greengates, Ryde",Charges from Independent Providers,"2,190.72",TRACSCARE WELLCARE LIFESTYLES
Revenue,Adult Services,Adult Social Care,Long Term Support,5105642988,18.05.2020,Seagulls,Charges from Independent Providers,"26,945.12",TRACSCARE WELLCARE LIFESTYLES
Revenue,Adult Services,Housing Services,Supporting People,5105641929,01.05.2020,Supporting People Learning Disability,Payment to Private Contractors,216.63,TRACSCARE WELLCARE LIFESTYLES
Revenue,Adult Services,Adult Social Care,Learning Disab Supp (to be reallocated),5105642988,18.05.2020,"Heath Road, Lake",Charges from Independent Providers,"4,553.00",TRACSCARE WELLCARE LIFESTYLES
Revenue,Adult Services,Adult Social Care,Learning Disab Supp (to be reallocated),5105642988,18.05.2020,"Heath Road, Lake",Charges from Independent Providers,"2,190.72",TRACSCARE WELLCARE LIFESTYLES
Revenue,Adult Services,Adult Social Care,Learning Disab Supp (to be reallocated),5105642988,18.05.2020,"Winton Street, Ryde",Charges from Independent Providers,"5,684.00",TRACSCARE WELLCARE LIFESTYLES
Revenue,Adult Services,Adult Social Care,Learning Disab Supp (to be reallocated),5105642988,18.05.2020,"Winton Street, Ryde",Charges from Independent Providers,"2,190.72",TRACSCARE WELLCARE LIFESTYLES
Revenue,Adult Services,Adult Social Care,Long Term Support,5105642988,18.05.2020,40 Venner Avenue,Charges from Independent Providers,"28,129.64",TRACSCARE WELLCARE LIFESTYLES
Revenue,Adult Services,Adult Social Care,Assistive Equipment & Technology,5105642900,15.05.2020,Community Equipment Store,Operational Equipment,340.00,ACCORA  LIMITED
Revenue,Resources,Children's & Education Services,Other Education and Community Budget,5105643522,21.05.2020,Specialist Cross-Council Training,Training,-389.00,ACT NOW TRAINING LTD
Revenue,Fire & Rescue,Fire & Rescue Services,Fire fighting and Rescue Operations,5105643553,22.05.2020,Fire Technical Support,Vehicle Maintenance Costs,49.50,ADAMS MOREY LTD
Revenue,Childrens Services,Children's & Education Services,Special Schools & Alternative Provision,5105642065,04.05.2020,Island Learning Centre,Agency staff,10.20,A-DAY CONSULTANTS LTD
Revenue,Childrens Services,Children's & Education Services,Special Schools & Alternative Provision,5105642066,04.05.2020,Island Learning Centre,Agency staff,"4,034.50",A-DAY CONSULTANTS LTD
Revenue,Childrens Services,Children's & Education Services,Special Schools & Alternative Provision,5105642680,14.05.2020,Island Learning Centre,Agency staff,450.00,A-DAY CONSULTANTS LTD
Revenue,Childrens Services,Children's & Education Services,Special Schools & Alternative Provision,5105642993,18.05.2020,Island Learning Centre,Agency staff,"1,290.00",A-DAY CONSULTANTS LTD
Revenue,Childrens Services,Children's & Education Services,Special Schools & Alternative Provision,5105642065,04.05.2020,Island Learning Centre,Agency staff,552.00,A-DAY CONSULTANTS LTD
Revenue,Neighbourhoods,Highways and Transport Services,"Airports, Harbours & Toll Facilities",5105638946,18.05.2020,Ferry Operation,Security of Buildings,557.97,ADT FIRE AND SECURITY PLC
Revenue,Neighbourhoods,Highways and Transport Services,"Airports, Harbours & Toll Facilities",5105638947,18.05.2020,Ferry Operation,Security of Buildings,-403.99,ADT FIRE AND SECURITY PLC
Revenue,Neighbourhoods,Cultural and Related Services,Library Service,5105643982,28.05.2020,Freshwater West Wight Library,Furniture and Fittings,776.16,ADVANCED MOULDS LTD
Revenue,Neighbourhoods,Cultural and Related Services,Library Service,5105643982,28.05.2020,Freshwater West Wight Library,Furniture and Fittings,202.80,ADVANCED MOULDS LTD
Revenue,Childrens Services,Children's & Education Services,Other Education and Community Budget,5105643556,22.05.2020,Skills and Participation,Licences,220.00,ADVIZA PARTNERSHIP
Revenue,Resources,Housing Services,Housing Benefits Administration,5105641996,01.05.2020,Housing Benefit,Printing Costs,390.00,AIREY CONSULTANCY SERVICES LTD
Revenue,Adult Services,Adult Social Care,Central Codes (to be reallocated),5105640716,13.05.2020,Gouldings Resource Centre,Property Services - Day to day Maintenance,120.00,AIRTEK SERVICES IOW LTD
Revenue,Adult Services,Adult Social Care,Central Codes (to be reallocated),5105640716,13.05.2020,Gouldings Resource Centre,Property Services - Day to day Maintenance,253.46,AIRTEK SERVICES IOW LTD
Revenue,Adult Services,Adult Social Care,Central Codes (to be reallocated),5105641578,13.05.2020,Gouldings Resource Centre,Property Services - Planned Maintenance,747.00,AIRTEK SERVICES IOW LTD
Revenue,Adult Services,Adult Social Care,Central Codes (to be reallocated),5105642063,06.05.2020,Gouldings Resource Centre,Property Services - Day to day Maintenance,120.00,AIRTEK SERVICES IOW LTD
Revenue,Adult Services,Adult Social Care,Learning Disability Suppt-adults (18-64),5105642561,13.05.2020,Learning Disability Residential 18-64,Charges from Independent Providers,"8,743.00",AITCH CARE HOMES (LONDON) LTD
Revenue,Childrens Services,Children's & Education Services,Other Education and Community Budget,5105643202,20.05.2020,Home to School SEN Transport (LA),Taxis - Contract Hire,240.00,AKAR TAXIS
Revenue,Childrens Services,Children's & Education Services,Other Education and Community Budget,5105643139,19.05.2020,Home to School SEN Transport (LA),Taxis - Contract Hire,-800.00,AKAR TAXIS
Revenue,Childrens Services,Children's & Education Services,Other Education and Community Budget,5105643140,19.05.2020,Home to School SEN Transport (LA),Taxis - Contract Hire,-600.00,AKAR TAXIS
Revenue,Neighbourhoods,Environmental & Regulatory Services,"Cemetery, Cremation & Mortuary Services",5105643301,20.05.2020,Crematorium,Operational Equipment,20.20,ALBANY FARM & G MACHINERY LTD
Revenue,Neighbourhoods,Environmental & Regulatory Services,"Cemetery, Cremation & Mortuary Services",5105643302,20.05.2020,Crematorium,Operational Equipment,158.83,ALBANY FARM & G MACHINERY LTD
Revenue,Neighbourhoods,Environmental & Regulatory Services,"Cemetery, Cremation & Mortuary Services",5105643303,20.05.2020,Crematorium,Operational Equipment,29.38,ALBANY FARM & G MACHINERY LTD
Revenue,Neighbourhoods,Environmental & Regulatory Services,"Cemetery, Cremation & Mortuary Services",5105643304,20.05.2020,Crematorium,Operational Equipment,17.95,ALBANY FARM & G MACHINERY LTD
Revenue,Public Health,Public Health,NHS Health Check Programme,5105642195,06.05.2020,NHS Health Check Programme P,Payment to Private Contractors,-97.00,ALBERT STREET PRACTICE
Revenue,Public Health,Public Health,Sexual Health,5105641805,06.05.2020,Long Acting Reversible Contraception,Payment to Private Contractors,410.00,ALBERT STREET PRACTICE
Revenue,Resources,Adult Social Care,Physical Support (to be reallocated),5105643001,20.05.2020,Blue Badge Admin Team Shared Services,Printing Costs,586.20,ALLIED PUBLICITY SERVICES LTD
Revenue,Resources,Highways and Transport Services,Public Transport,5105643752,26.05.2020,Transport Fleet Administration,Vehicle Fuel Costs,"6,817.82",ALLSTAR BUSINESS SOLUTIONS LTD
Revenue,Childrens Services,Children's & Education Services,Other Education and Community Budget,5105643564,22.05.2020,Home to School SEN Transport (LA),Taxis - Contract Hire,384.00,ALPHA (IOW) LTD
Revenue,Childrens Services,Children's & Education Services,Other Education and Community Budget,5105643564,22.05.2020,Home to School SEN Transport (LA),Taxis - Contract Hire,"1,104.00",ALPHA (IOW) LTD
Revenue,Childrens Services,Children's & Education Services,Other Education and Community Budget,5105643564,22.05.2020,Home to School SEN Transport (LA),Taxis - Contract Hire,268.80,ALPHA (IOW) LTD
Revenue,Childrens Services,Children's & Education Services,Other Education and Community Budget,5105643564,22.05.2020,Home to School SEN Transport (LA),Taxis - Contract Hire,499.20,ALPHA (IOW) LTD
Revenue,Childrens Services,Children's & Education Services,Other Education and Community Budget,5105643564,22.05.2020,Home to School SEN Transport (LA),Taxis - Contract Hire,595.20,ALPHA (IOW) LTD
Revenue,Childrens Services,Children's & Education Services,Other Education and Community Budget,5105643564,22.05.2020,Home to School SEN Transport (LA),Taxis - Contract Hire,320.00,ALPHA (IOW) LTD
Revenue,Childrens Services,Children's & Education Services,Other Education and Community Budget,5105643564,22.05.2020,Home to School SEN Transport (LA),Taxis - Contract Hire,192.00,ALPHA (IOW) LTD
Revenue,Childrens Services,Children's & Education Services,Other Education and Community Budget,5105643564,22.05.2020,Home to School SEN Transport (LA),Taxis - Contract Hire,24.00,ALPHA (IOW) LTD
Revenue,Childrens Services,Children's & Education Services,Other Education and Community Budget,5105643564,22.05.2020,Home to School SEN Transport (LA),Taxis - Contract Hire,624.00,ALPHA (IOW) LTD
Revenue,Childrens Services,Children's & Education Services,Other Education and Community Budget,5105643564,22.05.2020,Home to School SEN Transport (LA),Taxis - Contract Hire,768.00,ALPHA (IOW) LTD
Revenue,Childrens Services,Children's & Education Services,Other Education and Community Budget,5105643564,22.05.2020,Home to School SEN Transport (LA),Taxis - Contract Hire,758.40,ALPHA (IOW) LTD
Revenue,Childrens Services,Children's & Education Services,Other Education and Community Budget,5105643564,22.05.2020,Home to School SEN Transport (LA),Taxis - Contract Hire,"1,344.00",ALPHA (IOW) LTD
Revenue,Childrens Services,Children's & Education Services,Other Education and Community Budget,5105643564,22.05.2020,Home to School SEN Transport (LA),Taxis - Contract Hire,537.60,ALPHA (IOW) LTD
Revenue,Childrens Services,Children's & Education Services,Other Education and Community Budget,5105643564,22.05.2020,Home to School SEN Transport (LA),Taxis - Contract Hire,288.00,ALPHA (IOW) LTD
Revenue,Childrens Services,Children's & Education Services,Other Education and Community Budget,5105643564,22.05.2020,Home to School SEN Transport (LA),Taxis - Contract Hire,480.00,ALPHA (IOW) LTD
Revenue,Childrens Services,Children's & Education Services,Other Education and Community Budget,5105643564,22.05.2020,Home to School SEN Transport (LA),Taxis - Contract Hire,576.00,ALPHA (IOW) LTD
Revenue,Childrens Services,Children's & Education Services,Other Education and Community Budget,5105643564,22.05.2020,Home to School SEN Transport (LA),Taxis - Contract Hire,864.00,ALPHA (IOW) LTD
Revenue,Childrens Services,Children's & Education Services,Other Education and Community Budget,5105643564,22.05.2020,Home to School SEN Transport (LA),Taxis - Contract Hire,720.00,ALPHA (IOW) LTD
Revenue,Childrens Services,Children's & Education Services,Other Education and Community Budget,5105643564,22.05.2020,Home to School SEN Transport (LA),Taxis - Contract Hire,"1,152.00",ALPHA (IOW) LTD
Revenue,Childrens Services,Children's & Education Services,Other Education and Community Budget,5105643309,20.05.2020,Home to School SEN Transport (LA),Taxis - Contract Hire,840.00,ALPHA (IOW) LTD
Revenue,Childrens Services,Children's & Education Services,Other Education and Community Budget,5105643309,20.05.2020,Home to School SEN Transport (LA),Taxis - Contract Hire,400.00,ALPHA (IOW) LTD
Revenue,Childrens Services,Children's & Education Services,Other Education and Community Budget,5105643309,20.05.2020,Home to School SEN Transport (LA),Taxis - Contract Hire,"1,980.00",ALPHA (IOW) LTD
Revenue,Childrens Services,Children's & Education Services,Other Education and Community Budget,5105643257,20.05.2020,Home to College Post 16 Transport,Taxis - Contract Hire,448.00,ALPHA (IOW) LTD
Revenue,Childrens Services,Children's & Education Services,Other Education and Community Budget,5105643257,20.05.2020,Home to College Post 16 Transport,Taxis - Contract Hire,112.00,ALPHA (IOW) LTD
Revenue,Childrens Services,Children's & Education Services,Other Education and Community Budget,5105643257,20.05.2020,Home to College Post 16 Transport,Taxis - Contract Hire,320.00,ALPHA (IOW) LTD
Revenue,Childrens Services,Children's & Education Services,Other Education and Community Budget,5105643257,20.05.2020,Home to College Post 16 Transport,Taxis - Contract Hire,320.00,ALPHA (IOW) LTD
Revenue,Childrens Services,Children's & Education Services,Other Education and Community Budget,5105643309,20.05.2020,Home to School Mainstream Transport,Taxis - Contract Hire,"1,100.00",ALPHA (IOW) LTD
Revenue,Childrens Services,Children's & Education Services,Other Education and Community Budget,5105643564,22.05.2020,Home to School Mainstream Transport,Taxis - Contract Hire,134.40,ALPHA (IOW) LTD
Revenue,Childrens Services,Children's & Education Services,Other Education and Community Budget,5105643564,22.05.2020,Home to School Mainstream Transport,Taxis - Contract Hire,"1,632.00",ALPHA (IOW) LTD
Revenue,Childrens Services,Children's & Education Services,Other Education and Community Budget,5105643564,22.05.2020,Home to School Mainstream Transport,Taxis - Contract Hire,672.00,ALPHA (IOW) LTD
Revenue,Childrens Services,Children's & Education Services,Other Education and Community Budget,5105643564,22.05.2020,Home to School Mainstream Transport,Taxis - Contract Hire,576.00,ALPHA (IOW) LTD
Revenue,Adult Services,Adult Social Care,Learning Disability Suppt-adults (18-64),5105642513,13.05.2020,Learning Disability Residential 18-64,Charges from Independent Providers,"3,836.84",ALPHAGRANGE LTD
Revenue,Resources,Central Services,Support Services,5105642241,07.05.2020,Litigation Costs,Legal Fees - Other Parties,400.00,COLLEGE CHAMBERS BARRISTERS
Revenue,Adult Services,Adult Social Care,Support - Memory/Cognition-adults (18-64),5105642488,13.05.2020,Memory & Cognition Residential 18-64,Charges from Independent Providers,"2,640.12",ANA TREATMENT CENTRES LTD
Revenue,Adult Services,Adult Social Care,Support - Memory/Cognition-adults (18-64),5105642436,07.05.2020,Memory & Cognition Residential 18-64,Charges from Independent Providers,"4,316.04",ANA TREATMENT CENTRES LTD
Revenue,Adult Services,Adult Social Care,Support - Memory/Cognition-adults (18-64),5105642436,07.05.2020,Memory & Cognition Residential 18-64,Charges from Independent Providers,"4,088.88",ANA TREATMENT CENTRES LTD
Revenue,Adult Services,Adult Social Care,Support - Memory/Cognition-adults (18-64),5105642436,07.05.2020,Memory & Cognition Residential 18-64,Charges from Independent Providers,"1,037.19",ANA TREATMENT CENTRES LTD
Revenue,Adult Services,Balance Sheet,Balance Sheet,5105642514,13.05.2020,DPS 190423 (LH),Order Settlement to Bal Sht GL,"2,497.32",ANCONA CARE HOME
Revenue,Adult Services,Adult Social Care,Physical Support - older people (65+),5105642514,13.05.2020,Physical Support Residential 65+,Charges from Independent Providers,"2,028.32",ANCONA CARE HOME
Revenue,Adult Services,Adult Social Care,Physical Support - older people (65+),5105642514,13.05.2020,Physical Support Residential 65+,Charges from Independent Providers,"2,028.32",ANCONA CARE HOME
Revenue,Adult Services,Adult Social Care,Physical Support - older people (65+),5105642514,13.05.2020,Physical Support Residential 65+,Charges from Independent Providers,"2,497.32",ANCONA CARE HOME
Revenue,Adult Services,Adult Social Care,Assistive Equipment & Technology,5105642043,04.05.2020,Wightcare,Operational Equipment,120.00,ANYWHERE CARE LIMITED
Revenue,Adult Services,Adult Social Care,Assistive Equipment & Technology,5105642032,04.05.2020,Wightcare,Operational Equipment,300.00,ANYWHERE CARE LIMITED
Revenue,Adult Services,Adult Social Care,Assistive Equipment & Technology,5105642032,04.05.2020,Wightcare,Operational Equipment,30.00,ANYWHERE CARE LIMITED
Revenue,Adult Services,Adult Social Care,Assistive Equipment & Technology,5105642086,04.05.2020,Wightcare,Operational Equipment,"1,200.00",ANYWHERE CARE LIMITED
Revenue,Adult Services,Adult Social Care,Assistive Equipment & Technology,5105642086,04.05.2020,Wightcare,Operational Equipment,"1,900.00",ANYWHERE CARE LIMITED
Revenue,Adult Services,Adult Social Care,Learning Disab Supp (to be reallocated),5105641611,06.05.2020,Saxonbury,Minor Works,79.77,ARJO UK LTD
Revenue,Childrens Services,Children's & Education Services,Children Looked After,5105642637,26.05.2020,Beaulieu House,Maintenance of Operational Equipment,"4,600.00",ARJO UK LTD
Revenue,Childrens Services,Children's & Education Services,Children Looked After,5105642876,26.05.2020,Beaulieu House,Maintenance of Operational Equipment,"2,000.00",ARJO UK LTD
Revenue,Adult Services,Adult Social Care,Social Support - Support for Carer,5105642573,13.05.2020,Carers Residential,Charges from Independent Providers,"2,497.32",ASHMERE DERBYSHIRE LIMITED
Revenue,Childrens Services,Children's & Education Services,Special Schools & Alternative Provision,5105643695,22.05.2020,Island Learning Centre,Schools Examination Fees,"2,412.30",ASSESSMENT & QUALIFICATION ALLIANCE
Revenue,Adult Services,Adult Social Care,Learning Disability Suppt-adults (18-64),5105642485,13.05.2020,Learning Disability Residential 18-64,Charges from Independent Providers,"5,464.20",ASSURE HEALTHCARE GROUP
Revenue,Fire & Rescue,Fire & Rescue Services,Fire fighting and Rescue Operations,5105643571,22.05.2020,Fire Operations,Computer Maintenance,"14,680.00",ASTRIUM LTD
Revenue,Regeneration,Central Services,Support Services,5105639327,06.05.2020,"Seaclose Offices, Newport",Property Services - Day to day Maintenance,261.00,ASSA ABLOY ENTRANCE SYSTEMS LTD
Revenue,Resources,Central Services,Central Services to the Public,5105642660,13.05.2020,Council Tax,Stationery,548.70,AUTOMAIL ENVELOPES LTD
Revenue,Adult Services,Adult Social Care,Support - Memory /Cognition-older people (65+),5105642495,13.05.2020,Memory & Cognition Residential 65+,Charges from Independent Providers,"2,497.32",AUTUMN HOUSE CARE LTD
Revenue,Adult Services,Adult Social Care,Support - Memory /Cognition-older people (65+),5105642495,13.05.2020,Memory & Cognition Residential 65+,Charges from Independent Providers,"2,497.32",AUTUMN HOUSE CARE LTD
Revenue,Adult Services,Adult Social Care,Support - Memory /Cognition-older people (65+),5105642495,13.05.2020,Memory & Cognition Residential 65+,Charges from Independent Providers,"2,124.08",AUTUMN HOUSE CARE LTD
Revenue,Adult Services,Adult Social Care,Support - Memory /Cognition-older people (65+),5105642495,13.05.2020,Memory & Cognition Residential 65+,Charges from Independent Providers,"2,497.32",AUTUMN HOUSE CARE LTD
Revenue,Adult Services,Adult Social Care,Support - Memory /Cognition-older people (65+),5105642495,13.05.2020,Memory & Cognition Residential 65+,Charges from Independent Providers,"2,497.32",AUTUMN HOUSE CARE LTD
Revenue,Adult Services,Adult Social Care,Support - Memory /Cognition-older people (65+),5105642495,13.05.2020,Memory & Cognition Residential 65+,Charges from Independent Providers,"2,800.00",AUTUMN HOUSE CARE LTD
Revenue,Adult Services,Adult Social Care,Support - Memory /Cognition-older people (65+),5105642495,13.05.2020,Memory & Cognition Residential 65+,Charges from Independent Providers,"2,497.32",AUTUMN HOUSE CARE LTD
Revenue,Adult Services,Adult Social Care,Support - Memory /Cognition-older people (65+),5105642495,13.05.2020,Memory & Cognition Residential 65+,Charges from Independent Providers,"2,124.08",AUTUMN HOUSE CARE LTD
Revenue,Adult Services,Adult Social Care,Support - Memory /Cognition-older people (65+),5105642495,13.05.2020,Memory & Cognition Residential 65+,Charges from Independent Providers,"2,497.32",AUTUMN HOUSE CARE LTD
Revenue,Adult Services,Adult Social Care,Support - Memory /Cognition-older people (65+),5105642495,13.05.2020,Memory & Cognition Residential 65+,Charges from Independent Providers,"2,497.32",AUTUMN HOUSE CARE LTD
Revenue,Adult Services,Adult Social Care,Support - Memory /Cognition-older people (65+),5105642121,06.05.2020,Memory & Cognition Residential 65+,Charges from Independent Providers,"2,124.08",AUTUMN HOUSE CARE LTD
Revenue,Adult Services,Balance Sheet,Balance Sheet,5105642495,13.05.2020,DPS 344525 (CD),Order Settlement to Bal Sht GL,"2,124.08",AUTUMN HOUSE CARE LTD
Revenue,Adult Services,Balance Sheet,Balance Sheet,5105642495,13.05.2020,DPS 300989 (MP),Order Settlement to Bal Sht GL,"2,124.08",AUTUMN HOUSE CARE LTD
Revenue,Adult Services,Adult Social Care,Social Support - Support for Carer,5105642931,15.05.2020,Carers Residential,Charges from Independent Providers,"5,862.96",AUTUMN HOUSE CARE LTD
Revenue,Adult Services,Adult Social Care,Social Support - Support for Carer,5105642931,15.05.2020,Carers Residential,Charges from Independent Providers,"6,689.25",AUTUMN HOUSE CARE LTD
Revenue,Adult Services,Adult Social Care,Physical Support - older people (65+),5105642177,06.05.2020,Physical Support Residential 65+,Charges from Independent Providers,"1,337.85",AUTUMN HOUSE CARE LTD
Revenue,Adult Services,Adult Social Care,Physical Support - older people (65+),5105642121,06.05.2020,Physical Support Residential 65+,Charges from Independent Providers,"1,293.30",AUTUMN HOUSE CARE LTD
Revenue,Adult Services,Adult Social Care,Physical Support - older people (65+),5105642121,06.05.2020,Physical Support Residential 65+,Charges from Independent Providers,"4,191.93",AUTUMN HOUSE CARE LTD
Revenue,Adult Services,Adult Social Care,Physical Support - older people (65+),5105642495,13.05.2020,Physical Support Residential 65+,Charges from Independent Providers,"2,497.32",AUTUMN HOUSE CARE LTD
Revenue,Adult Services,Adult Social Care,Physical Support - older people (65+),5105642495,13.05.2020,Physical Support Residential 65+,Charges from Independent Providers,"2,497.32",AUTUMN HOUSE CARE LTD
Revenue,Adult Services,Adult Social Care,Physical Support - older people (65+),5105642495,13.05.2020,Physical Support Residential 65+,Charges from Independent Providers,"2,497.32",AUTUMN HOUSE CARE LTD
Revenue,Adult Services,Adult Social Care,Physical Support - older people (65+),5105642495,13.05.2020,Physical Support Residential 65+,Charges from Independent Providers,"2,497.32",AUTUMN HOUSE CARE LTD
Revenue,Adult Services,Adult Social Care,Physical Support - older people (65+),5105642495,13.05.2020,Physical Support Residential 65+,Charges from Independent Providers,"2,497.32",AUTUMN HOUSE CARE LTD
Revenue,Adult Services,Adult Social Care,Physical Support - older people (65+),5105642495,13.05.2020,Physical Support Residential 65+,Charges from Independent Providers,"2,497.32",AUTUMN HOUSE CARE LTD
Revenue,Adult Services,Adult Social Care,Physical Support - older people (65+),5105642495,13.05.2020,Physical Support Residential 65+,Charges from Independent Providers,"2,497.32",AUTUMN HOUSE CARE LTD
Revenue,Adult Services,Adult Social Care,Physical Support - older people (65+),5105642495,13.05.2020,Physical Support Residential 65+,Charges from Independent Providers,"2,497.32",AUTUMN HOUSE CARE LTD
Revenue,Adult Services,Adult Social Care,Physical Support - older people (65+),5105642495,13.05.2020,Physical Support Residential 65+,Charges from Independent Providers,"2,497.32",AUTUMN HOUSE CARE LTD
Revenue,Adult Services,Adult Social Care,Physical Support - older people (65+),5105642495,13.05.2020,Physical Support Residential 65+,Charges from Independent Providers,"2,497.32",AUTUMN HOUSE CARE LTD
Revenue,Adult Services,Adult Social Care,Physical Support - older people (65+),5105642495,13.05.2020,Physical Support Residential 65+,Charges from Independent Providers,"2,124.08",AUTUMN HOUSE CARE LTD
Revenue,Adult Services,Adult Social Care,Physical Support - older people (65+),5105642495,13.05.2020,Physical Support Residential 65+,Charges from Independent Providers,"2,497.32",AUTUMN HOUSE CARE LTD
Revenue,Adult Services,Adult Social Care,Physical Support - older people (65+),5105642495,13.05.2020,Physical Support Residential 65+,Charges from Independent Providers,"2,124.08",AUTUMN HOUSE CARE LTD
Revenue,Regeneration,Planning services,Economic Development,5105641579,13.05.2020,"30 High St, Newport",Rent of Buildings and Rooms,916.67,REDACTED PERSONAL DATA
Revenue,Childrens Services,Children's & Education Services,Children Looked After,5105643354,22.05.2020,In-house Fostering,Boarding Out Allowances,521.22,REDACTED PERSONAL DATA
Revenue,Childrens Services,Children's & Education Services,Children Looked After,5105642702,14.05.2020,In-house Fostering,Boarding Out Allowances,521.22,REDACTED PERSONAL DATA
Revenue,Childrens Services,Children's & Education Services,Children Looked After,5105643805,28.05.2020,In-house Fostering,Boarding Out Allowances,521.22,REDACTED PERSONAL DATA
Revenue,Childrens Services,Children's & Education Services,Children Looked After,5105642271,07.05.2020,In-house Fostering,Boarding Out Allowances,521.22,REDACTED PERSONAL DATA
Revenue,Resources,Central Services,Support Services,5105643679,22.05.2020,Staff Benefits,Payment to Private Contractors,25.00,REDACTED PERSONAL DATA
Revenue,Adult Services,Housing Services,Homelessness,5105643631,22.05.2020,Private Rented Sector Leasing Scheme,Accommodation Costs - Leaseholder Payments,866.67,REDACTED PERSONAL DATA
Revenue,Regeneration,Planning services,Economic Development,5105643044,20.05.2020,"Units 1-4, BAE Site",Electricity,150.37,BAE SYSTEMS PROPERTIES LTD
Revenue,Regeneration,Planning services,Economic Development,5105643043,22.05.2020,Rangefinder House (Ascensos),Electricity,"17,457.65",BAE SYSTEMS PROPERTIES LTD
Revenue,Adult Services,Adult Social Care,Commissioning & Service Delivery,5105642576,13.05.2020,CHC Nursing Care,Charges from Independent Providers,"10,332.00",BAGSHOT PARK CARE CENTRE
Revenue,Adult Services,Adult Social Care,Social Care Activities,5105642885,14.05.2020,Service Manager Mental Health Services,Interim Staff,"5,062.50",BALTIMORE CONSULTING LIMITED
Revenue,Adult Services,Adult Social Care,Social Care Activities,5105643290,20.05.2020,Service Manager Mental Health Services,Interim Staff,"2,812.50",BALTIMORE CONSULTING LIMITED
Revenue,Adult Services,Adult Social Care,Social Care Activities,5105643604,22.05.2020,Service Manager Mental Health Services,Interim Staff,"2,812.50",BALTIMORE CONSULTING LIMITED
Revenue,Resources,Central Services,Support Services,5105642671,14.05.2020,Creditor Payments Shared Service Centre,Stationery,23.70,SUPPLIES TEAM LTD
Revenue,Resources,Central Services,Central Services to the Public,5105642092,04.05.2020,Electoral Registration Office,Stationery,7.40,SUPPLIES TEAM LTD
Revenue,Resources,Central Services,Central Services to the Public,5105642092,04.05.2020,Electoral Registration Office,Stationery,0.26,SUPPLIES TEAM LTD
Revenue,Adult Services,Adult Social Care,Central Codes (to be reallocated),5105643077,19.05.2020,Gouldings Resource Centre,Stationery,1.70,SUPPLIES TEAM LTD
Revenue,Adult Services,Adult Social Care,Central Codes (to be reallocated),5105643077,19.05.2020,Gouldings Resource Centre,Stationery,11.10,SUPPLIES TEAM LTD
Revenue,Adult Services,Adult Social Care,Central Codes (to be reallocated),5105643077,19.05.2020,Gouldings Resource Centre,Stationery,59.25,SUPPLIES TEAM LTD
Revenue,Adult Services,Adult Social Care,Central Codes (to be reallocated),5105643077,19.05.2020,Gouldings Resource Centre,Stationery,1.31,SUPPLIES TEAM LTD
Revenue,Adult Services,Adult Social Care,Central Codes (to be reallocated),5105643077,19.05.2020,Gouldings Resource Centre,Stationery,2.89,SUPPLIES TEAM LTD
Revenue,Adult Services,Adult Social Care,Central Codes (to be reallocated),5105643077,19.05.2020,Gouldings Resource Centre,Stationery,2.30,SUPPLIES TEAM LTD
Revenue,Adult Services,Adult Social Care,Central Codes (to be reallocated),5105643077,19.05.2020,Gouldings Resource Centre,Stationery,1.84,SUPPLIES TEAM LTD
Revenue,Adult Services,Adult Social Care,Central Codes (to be reallocated),5105643077,19.05.2020,Gouldings Resource Centre,Stationery,3.18,SUPPLIES TEAM LTD
Revenue,Resources,Housing Services,Housing Benefits Administration,5105643524,22.05.2020,Housing Benefit,Stationery,-2.22,SUPPLIES TEAM LTD
Revenue,Resources,Housing Services,Housing Benefits Administration,5105643524,22.05.2020,Housing Benefit,Stationery,-2.55,SUPPLIES TEAM LTD
Revenue,Resources,Housing Services,Housing Benefits Administration,5105642671,14.05.2020,Housing Benefit,Stationery,106.65,SUPPLIES TEAM LTD
Revenue,Resources,Central Services,Central Services to the Public,5105642092,04.05.2020,National Non Domestic Rates,Stationery,23.70,SUPPLIES TEAM LTD
Revenue,Childrens Services,Children's & Education Services,Other Education and Community Budget,5105642092,04.05.2020,Pupil Resources Business Support Team,Stationery,35.55,SUPPLIES TEAM LTD
Revenue,Regeneration,Central Services,Support Services,5105643080,19.05.2020,Strategic Assets Team,Stationery,12.06,SUPPLIES TEAM LTD
Revenue,Neighbourhoods,Cultural and Related Services,Service Management and Support Services,5105643080,19.05.2020,Leisure Management & Admin,Stationery,5.85,SUPPLIES TEAM LTD
Revenue,Neighbourhoods,Cultural and Related Services,Service Management and Support Services,5105643080,19.05.2020,Leisure Management & Admin,Stationery,35.55,SUPPLIES TEAM LTD
Revenue,Neighbourhoods,Cultural and Related Services,Recreation and Sport,5105640258,13.05.2020,Medina Leisure Centre,Stationery,6.48,SUPPLIES TEAM LTD
Revenue,Neighbourhoods,Cultural and Related Services,Recreation and Sport,5105640258,13.05.2020,Medina Leisure Centre,Stationery,11.85,SUPPLIES TEAM LTD
Revenue,Neighbourhoods,Cultural and Related Services,Recreation and Sport,5105640258,13.05.2020,Medina Leisure Centre,Stationery,1.84,SUPPLIES TEAM LTD
Revenue,Neighbourhoods,Cultural and Related Services,Recreation and Sport,5105640258,13.05.2020,Medina Leisure Centre,Stationery,0.90,SUPPLIES TEAM LTD
Revenue,Neighbourhoods,Cultural and Related Services,Recreation and Sport,5105641457,13.05.2020,Medina Leisure Centre,Stationery,-6.48,SUPPLIES TEAM LTD
Revenue,Neighbourhoods,Cultural and Related Services,Recreation and Sport,5105641457,13.05.2020,Medina Leisure Centre,Stationery,-1.84,SUPPLIES TEAM LTD
Revenue,Neighbourhoods,Cultural and Related Services,Recreation and Sport,5105641457,13.05.2020,Medina Leisure Centre,Stationery,-0.90,SUPPLIES TEAM LTD
Revenue,Adult Services,Adult Social Care,Assistive Equipment & Technology,5105642671,14.05.2020,Community Equipment Store,Stationery,2.22,SUPPLIES TEAM LTD
Revenue,Adult Services,Adult Social Care,Assistive Equipment & Technology,5105642671,14.05.2020,Community Equipment Store,Stationery,47.40,SUPPLIES TEAM LTD
Revenue,Adult Services,Adult Social Care,Assistive Equipment & Technology,5105642671,14.05.2020,Community Equipment Store,Stationery,2.60,SUPPLIES TEAM LTD
Revenue,Childrens Services,Children's & Education Services,Other Education and Community Budget,5105642092,04.05.2020,Admissions/Student Finance,Stationery,16.62,SUPPLIES TEAM LTD
Revenue,Resources,Central Services,Support Services,5105642019,01.05.2020,Accountancy Team,Stationery,2.75,SUPPLIES TEAM LTD
Revenue,Adult Services,Adult Social Care,Commissioning & Service Delivery,5105644009,29.05.2020,Group Manager Leaning Disability Homes,Stationery,3.90,SUPPLIES TEAM LTD
Revenue,Adult Services,Adult Social Care,Commissioning & Service Delivery,5105644009,29.05.2020,Group Manager Leaning Disability Homes,Stationery,11.85,SUPPLIES TEAM LTD
Revenue,Adult Services,Adult Social Care,Commissioning & Service Delivery,5105640261,07.05.2020,Group Manager Leaning Disability Homes,Stationery,0.45,SUPPLIES TEAM LTD
Revenue,Adult Services,Adult Social Care,Commissioning & Service Delivery,5105640261,07.05.2020,Group Manager Leaning Disability Homes,Stationery,0.81,SUPPLIES TEAM LTD
Revenue,Adult Services,Adult Social Care,Commissioning & Service Delivery,5105640261,07.05.2020,Group Manager Leaning Disability Homes,Stationery,2.89,SUPPLIES TEAM LTD
Revenue,Adult Services,Adult Social Care,Commissioning & Service Delivery,5105640261,07.05.2020,Group Manager Leaning Disability Homes,Stationery,1.05,SUPPLIES TEAM LTD
Revenue,Adult Services,Adult Social Care,Central Codes (to be reallocated),5105643259,20.05.2020,Community Reablement,Stationery,4.86,SUPPLIES TEAM LTD
Revenue,Regeneration,Central Services,Support Services,5105642093,13.05.2020,"County Hall,Newport",Stationery,38.50,SUPPLIES TEAM LTD
Revenue,Adult Services,Adult Social Care,Commissioning & Service Delivery,5105643106,20.05.2020,ASC County Hall office costs,Stationery,0.63,SUPPLIES TEAM LTD
Revenue,Adult Services,Adult Social Care,Commissioning & Service Delivery,5105643080,19.05.2020,ASC County Hall office costs,Stationery,2.60,SUPPLIES TEAM LTD
Revenue,Adult Services,Adult Social Care,Commissioning & Service Delivery,5105643080,19.05.2020,ASC County Hall office costs,Stationery,0.41,SUPPLIES TEAM LTD
Revenue,Adult Services,Adult Social Care,Commissioning & Service Delivery,5105643080,19.05.2020,ASC County Hall office costs,Stationery,5.80,SUPPLIES TEAM LTD
Revenue,Adult Services,Adult Social Care,Commissioning & Service Delivery,5105643080,19.05.2020,ASC County Hall office costs,Stationery,11.54,SUPPLIES TEAM LTD
Revenue,Adult Services,Adult Social Care,Commissioning & Service Delivery,5105643080,19.05.2020,ASC County Hall office costs,Stationery,0.33,SUPPLIES TEAM LTD
Revenue,Adult Services,Adult Social Care,Commissioning & Service Delivery,5105643080,19.05.2020,ASC County Hall office costs,Stationery,1.79,SUPPLIES TEAM LTD
Revenue,Adult Services,Adult Social Care,Commissioning & Service Delivery,5105643080,19.05.2020,ASC County Hall office costs,Stationery,6.60,SUPPLIES TEAM LTD
Revenue,Adult Services,Adult Social Care,Commissioning & Service Delivery,5105643080,19.05.2020,ASC County Hall office costs,Stationery,0.75,SUPPLIES TEAM LTD
Revenue,Adult Services,Adult Social Care,Commissioning & Service Delivery,5105643080,19.05.2020,ASC County Hall office costs,Stationery,4.56,SUPPLIES TEAM LTD
Revenue,Adult Services,Adult Social Care,Commissioning & Service Delivery,5105643080,19.05.2020,ASC County Hall office costs,Stationery,0.33,SUPPLIES TEAM LTD
Revenue,Adult Services,Adult Social Care,Commissioning & Service Delivery,5105643080,19.05.2020,ASC County Hall office costs,Stationery,5.14,SUPPLIES TEAM LTD
Revenue,Adult Services,Adult Social Care,Commissioning & Service Delivery,5105643080,19.05.2020,ASC County Hall office costs,Stationery,3.09,SUPPLIES TEAM LTD
Revenue,Adult Services,Adult Social Care,Commissioning & Service Delivery,5105643080,19.05.2020,ASC County Hall office costs,Stationery,2.22,SUPPLIES TEAM LTD
Revenue,Adult Services,Adult Social Care,Commissioning & Service Delivery,5105642092,04.05.2020,ASC County Hall office costs,Stationery,4.24,SUPPLIES TEAM LTD
Revenue,Adult Services,Adult Social Care,Commissioning & Service Delivery,5105642092,04.05.2020,ASC County Hall office costs,Stationery,1.79,SUPPLIES TEAM LTD
Revenue,Adult Services,Adult Social Care,Commissioning & Service Delivery,5105642092,04.05.2020,ASC County Hall office costs,Stationery,2.71,SUPPLIES TEAM LTD
Revenue,Adult Services,Adult Social Care,Commissioning & Service Delivery,5105642671,14.05.2020,ASC County Hall office costs,Stationery,2.55,SUPPLIES TEAM LTD
Revenue,Adult Services,Adult Social Care,Commissioning & Service Delivery,5105642671,14.05.2020,ASC County Hall office costs,Stationery,2.48,SUPPLIES TEAM LTD
Revenue,Adult Services,Adult Social Care,Social Care Activities,5105643080,19.05.2020,Hospital Team,Stationery,1.23,SUPPLIES TEAM LTD
Revenue,Adult Services,Adult Social Care,Social Care Activities,5105643080,19.05.2020,Hospital Team,Stationery,1.22,SUPPLIES TEAM LTD
Revenue,Adult Services,Adult Social Care,Social Care Activities,5105643080,19.05.2020,Hospital Team,Stationery,23.70,SUPPLIES TEAM LTD
Revenue,Adult Services,Adult Social Care,Social Care Activities,5105643080,19.05.2020,Hospital Team,Stationery,2.55,SUPPLIES TEAM LTD
Revenue,Adult Services,Adult Social Care,Social Care Activities,5105643080,19.05.2020,Hospital Team,Stationery,1.24,SUPPLIES TEAM LTD
Revenue,Neighbourhoods,Cultural and Related Services,Library Service,5105642099,13.05.2020,Public Libraries Central,Stationery,10.78,SUPPLIES TEAM LTD
Revenue,Neighbourhoods,Cultural and Related Services,Library Service,5105642020,13.05.2020,Public Libraries Central,Stationery,13.20,SUPPLIES TEAM LTD
Revenue,Resources,Central Services,Support Services,5105642092,04.05.2020,Revenues & Benefits Operational Support,Stationery,10.60,SUPPLIES TEAM LTD
Revenue,Resources,Highways and Transport Services,Off Street Parking,5105642671,14.05.2020,Parking Services,Stationery,23.70,SUPPLIES TEAM LTD
Revenue,Resources,Central Services,Support Services,5105642092,04.05.2020,Customer Accounts Shared Service Centre,Stationery,23.70,SUPPLIES TEAM LTD
Revenue,Resources,Adult Social Care,Physical Support (to be reallocated),5105642092,04.05.2020,Blue Badge Admin Team Shared Services,Stationery,11.85,SUPPLIES TEAM LTD
Revenue,Resources,Central Services,Support Services,5105643524,22.05.2020,Call Centre,Stationery,-2.57,SUPPLIES TEAM LTD
Revenue,Resources,Central Services,Support Services,5105643524,22.05.2020,Call Centre,Stationery,-1.06,SUPPLIES TEAM LTD
Revenue,Adult Services,Adult Social Care,Commissioning & Service Delivery,5105642671,14.05.2020,Director of Adult Social Services,Stationery,35.55,SUPPLIES TEAM LTD
Revenue,Adult Services,Central Services,Central Services to the Public,5105643259,20.05.2020,AS Covid-19 (Adults),Stationery,5.14,SUPPLIES TEAM LTD
Revenue,Adult Services,Central Services,Central Services to the Public,5105643259,20.05.2020,AS Covid-19 (Adults),Stationery,4.60,SUPPLIES TEAM LTD
Revenue,Childrens Services,Children's & Education Services,Youth Justice,5105643080,19.05.2020,Youth Offending Team,Stationery,8.66,SUPPLIES TEAM LTD
Revenue,Childrens Services,Children's & Education Services,Youth Justice,5105643080,19.05.2020,Youth Offending Team,Stationery,7.40,SUPPLIES TEAM LTD
Revenue,Adult Services,Adult Social Care,Central Codes (to be reallocated),5105643259,20.05.2020,Adelaide Resource Centre,Stationery,4.08,SUPPLIES TEAM LTD
Revenue,Adult Services,Adult Social Care,Central Codes (to be reallocated),5105643259,20.05.2020,Adelaide Resource Centre,Stationery,1.57,SUPPLIES TEAM LTD
Revenue,Adult Services,Adult Social Care,Central Codes (to be reallocated),5105643259,20.05.2020,Adelaide Resource Centre,Stationery,1.22,SUPPLIES TEAM LTD
Revenue,Adult Services,Adult Social Care,Central Codes (to be reallocated),5105643259,20.05.2020,Adelaide Resource Centre,Stationery,1.24,SUPPLIES TEAM LTD
Revenue,Adult Services,Adult Social Care,Central Codes (to be reallocated),5105643259,20.05.2020,Adelaide Resource Centre,Stationery,2.04,SUPPLIES TEAM LTD
Revenue,Adult Services,Adult Social Care,Central Codes (to be reallocated),5105643259,20.05.2020,Adelaide Resource Centre,Stationery,1.79,SUPPLIES TEAM LTD
Revenue,Adult Services,Adult Social Care,Central Codes (to be reallocated),5105643259,20.05.2020,Adelaide Resource Centre,Stationery,2.71,SUPPLIES TEAM LTD
Revenue,Adult Services,Adult Social Care,Central Codes (to be reallocated),5105643259,20.05.2020,Adelaide Resource Centre,Stationery,35.55,SUPPLIES TEAM LTD
Revenue,Adult Services,Adult Social Care,Central Codes (to be reallocated),5105643259,20.05.2020,Adelaide Resource Centre,Stationery,13.16,SUPPLIES TEAM LTD
Revenue,Adult Services,Adult Social Care,Central Codes (to be reallocated),5105644010,29.05.2020,Adelaide Resource Centre,Stationery,0.90,SUPPLIES TEAM LTD
Revenue,Adult Services,Adult Social Care,Central Codes (to be reallocated),5105643550,22.05.2020,Adelaide Resource Centre,Stationery,2.22,SUPPLIES TEAM LTD
Revenue,Resources,Central Services,Central Services to the Public,5105642671,14.05.2020,Internal Enforcement Team,Stationery,23.70,SUPPLIES TEAM LTD
Revenue,Regeneration,Planning services,Management & Support Services,5105643039,18.05.2020,Planning Management,Stationery,11.08,SUPPLIES TEAM LTD
Revenue,Regeneration,Planning services,Management & Support Services,5105642022,04.05.2020,Planning Management,Stationery,1.10,SUPPLIES TEAM LTD
Revenue,Neighbourhoods,Cultural and Related Services,Recreation and Sport,5105642230,07.05.2020,The Heights,Stationery,1.18,SUPPLIES TEAM LTD
Revenue,Resources,Central Services,Central Services to the Public,5105643524,22.05.2020,Council Tax,Stationery,-1.06,SUPPLIES TEAM LTD
Revenue,Resources,Central Services,Central Services to the Public,5105643524,22.05.2020,Council Tax,Stationery,-3.40,SUPPLIES TEAM LTD
Revenue,Resources,Central Services,Central Services to the Public,5105643524,22.05.2020,Council Tax,Stationery,-2.55,SUPPLIES TEAM LTD
Revenue,Resources,Central Services,Central Services to the Public,5105643524,22.05.2020,Council Tax,Stationery,-3.68,SUPPLIES TEAM LTD
Revenue,Resources,Central Services,Central Services to the Public,5105643524,22.05.2020,Council Tax,Stationery,-1.06,SUPPLIES TEAM LTD
Revenue,Resources,Central Services,Central Services to the Public,5105643524,22.05.2020,Council Tax,Stationery,-3.68,SUPPLIES TEAM LTD
Revenue,Resources,Central Services,Central Services to the Public,5105642217,06.05.2020,Council Tax,Stationery,118.50,SUPPLIES TEAM LTD
Revenue,Adult Services,Adult Social Care,Physical Support - older people (65+),5105642477,13.05.2020,Physical Support Residential 65+,Charges from Independent Providers,"4,551.95",BARCHESTER HELLENS LTD
Revenue,Adult Services,Adult Social Care,Physical Support - older people (65+),5105642477,13.05.2020,Physical Support Residential 65+,Charges from Independent Providers,"3,404.68",BARCHESTER HELLENS LTD
Revenue,Adult Services,Adult Social Care,Physical Support - older people (65+),5105642581,13.05.2020,Physical Support Residential 65+,Charges from Independent Providers,"2,028.32",BARCHESTER HELLENS LTD
Revenue,Adult Services,Adult Social Care,Social Support - Support for Carer,5105642102,20.05.2020,Westminster House,Operational Equipment,18.28,LAKE CLEANING & CATERING SUPPLIES
Revenue,Adult Services,Adult Social Care,Learning Disab Supp (to be reallocated),5400002686,29.05.2020,Plean Dene,Operational Equipment,0.03,LAKE CLEANING & CATERING SUPPLIES
Revenue,Adult Services,Adult Social Care,Learning Disab Supp (to be reallocated),5105642025,07.05.2020,Plean Dene,Operational Equipment,101.18,LAKE CLEANING & CATERING SUPPLIES
Revenue,Adult Services,Adult Social Care,Learning Disab Supp (to be reallocated),5105640858,13.05.2020,Plean Dene,Operational Equipment,63.86,LAKE CLEANING & CATERING SUPPLIES
Revenue,Adult Services,Adult Social Care,Learning Disab Supp (to be reallocated),5105642910,19.05.2020,Saxonbury,Operational Equipment,58.80,LAKE CLEANING & CATERING SUPPLIES
Revenue,Adult Services,Adult Social Care,Learning Disab Supp (to be reallocated),5105641031,20.05.2020,Saxonbury,Operational Equipment,18.84,LAKE CLEANING & CATERING SUPPLIES
Revenue,Fire & Rescue,Fire & Rescue Services,Fire fighting and Rescue Operations,5105644016,29.05.2020,Fire Technical Support,Operational Equipment,2.90,LAKE CLEANING & CATERING SUPPLIES
Revenue,Fire & Rescue,Fire & Rescue Services,Fire fighting and Rescue Operations,5105644016,29.05.2020,Fire Technical Support,Operational Equipment,2.00,LAKE CLEANING & CATERING SUPPLIES
Revenue,Childrens Services,Children's & Education Services,Children Looked After,5105643276,20.05.2020,Beaulieu House,General Materials,65.32,LAKE CLEANING & CATERING SUPPLIES
Revenue,Childrens Services,Children's & Education Services,Children Looked After,5105643277,20.05.2020,Beaulieu House,General Materials,20.91,LAKE CLEANING & CATERING SUPPLIES
Revenue,Childrens Services,Children's & Education Services,Children Looked After,5105642103,06.05.2020,Beaulieu House,General Materials,187.08,LAKE CLEANING & CATERING SUPPLIES
Revenue,Childrens Services,Children's & Education Services,Children Looked After,5105642907,15.05.2020,Beaulieu House,General Materials,265.12,LAKE CLEANING & CATERING SUPPLIES
Revenue,Childrens Services,Children's & Education Services,Children Looked After,5105642027,07.05.2020,Beaulieu House,General Materials,468.83,LAKE CLEANING & CATERING SUPPLIES
Revenue,Childrens Services,Children's & Education Services,Children Looked After,5105641882,06.05.2020,Beaulieu House,General Materials,30.96,LAKE CLEANING & CATERING SUPPLIES
Revenue,Childrens Services,Children's & Education Services,Children Looked After,5105641886,06.05.2020,Beaulieu House,General Materials,304.32,LAKE CLEANING & CATERING SUPPLIES
Revenue,Childrens Services,Children's & Education Services,Children Looked After,5105643533,22.05.2020,Beaulieu House,General Materials,362.91,LAKE CLEANING & CATERING SUPPLIES
Revenue,Neighbourhoods,Cultural and Related Services,Recreation and Sport,5105642188,06.05.2020,The Heights,Consumable Cleaning Materials,63.96,LAKE CLEANING & CATERING SUPPLIES
Revenue,Assistant Chief Executive,Central Services,Central Services to the Public,5105641512,19.05.2020,AC Covid-19,Operational Equipment,"270,000.00",BATES OFFICE SERVICES LIMITED
Revenue,Assistant Chief Executive,Central Services,Central Services to the Public,5105643528,22.05.2020,AC Covid-19,Operational Equipment,"-540,000.00",BATES OFFICE SERVICES LIMITED
Revenue,Assistant Chief Executive,Central Services,Central Services to the Public,5105643312,22.05.2020,AC Covid-19,Operational Equipment,"540,000.00",BATES OFFICE SERVICES LIMITED
Revenue,Assistant Chief Executive,Central Services,Central Services to the Public,5105643137,19.05.2020,AC Covid-19,Operational Equipment,"37,500.00",BATES OFFICE SERVICES LIMITED
Revenue,Adult Services,Central Services,Central Services to the Public,5105642651,19.05.2020,AS Covid-19 (Adults),Operational Equipment,"79,200.00",BATES OFFICE SERVICES LIMITED
Revenue,Adult Services,Central Services,Central Services to the Public,5105642651,19.05.2020,AS Covid-19 (Adults),Operational Equipment,"1,600.00",BATES OFFICE SERVICES LIMITED
Revenue,Adult Services,Central Services,Central Services to the Public,5105641849,19.05.2020,AS Covid-19 (Adults),Operational Equipment,"79,200.00",BATES OFFICE SERVICES LIMITED
Revenue,Adult Services,Central Services,Central Services to the Public,5105641043,07.05.2020,AS Covid-19 (Adults),Operational Equipment,"86,400.00",BATES OFFICE SERVICES LIMITED
Revenue,Adult Services,Central Services,Central Services to the Public,5105641451,19.05.2020,AS Covid-19 (Adults),Operational Equipment,"1,600.00",BATES OFFICE SERVICES LIMITED
Revenue,Adult Services,Central Services,Central Services to the Public,5105641452,19.05.2020,AS Covid-19 (Adults),Operational Equipment,"79,200.00",BATES OFFICE SERVICES LIMITED
Revenue,Adult Services,Central Services,Central Services to the Public,5105643157,19.05.2020,AS Covid-19 (Adults),Operational Equipment,-800.00,BATES OFFICE SERVICES LIMITED
Revenue,Adult Services,Central Services,Central Services to the Public,5105643132,19.05.2020,AS Covid-19 (Adults),Operational Equipment,"27,360.00",BATES OFFICE SERVICES LIMITED
Revenue,Adult Services,Central Services,Central Services to the Public,5105643133,19.05.2020,AS Covid-19 (Adults),Operational Equipment,"-79,200.00",BATES OFFICE SERVICES LIMITED
Revenue,Adult Services,Central Services,Central Services to the Public,5105643133,19.05.2020,AS Covid-19 (Adults),Operational Equipment,"-1,600.00",BATES OFFICE SERVICES LIMITED
Revenue,Adult Services,Central Services,Central Services to the Public,5105643134,19.05.2020,AS Covid-19 (Adults),Operational Equipment,"-79,200.00",BATES OFFICE SERVICES LIMITED
Revenue,Adult Services,Central Services,Central Services to the Public,5105643135,19.05.2020,AS Covid-19 (Adults),Operational Equipment,"-79,200.00",BATES OFFICE SERVICES LIMITED
Revenue,Childrens Services,Children's & Education Services,Management & Support Services,5105643244,20.05.2020,Specialist Teacher Advisors,Advertising & Publicity,252.00,BATOD
Revenue,Public Health,Public Health,Sexual Health,5105641797,07.05.2020,Long Acting Reversible Contraception,Payment to Private Contractors,40.00,BEECH GROVE SURGERY
Revenue,Childrens Services,Children's & Education Services,Children Looked After,5105643592,22.05.2020,Purchased Residential,Charges from Independent Providers,"3,850.00",BENECARE FOSTERING LTD
Revenue,Childrens Services,Children's & Education Services,Children Looked After,5105643337,22.05.2020,Purchased Residential,Charges from Independent Providers,"3,850.00",BENECARE FOSTERING LTD
Revenue,Childrens Services,Children's & Education Services,Children Looked After,5105643334,22.05.2020,Purchased Residential,Charges from Independent Providers,"3,850.00",BENECARE FOSTERING LTD
Revenue,Childrens Services,Children's & Education Services,Children Looked After,5105643335,22.05.2020,Purchased Residential,Charges from Independent Providers,"3,850.00",BENECARE FOSTERING LTD
Revenue,Adult Services,Housing Services,Homelessness,5105643757,27.05.2020,B&B Properties,Accommodation Costs - Bed & Breakfast,"3,400.00",BERTRAM LODGE
Revenue,Adult Services,Adult Social Care,Central Codes (to be reallocated),5105642621,13.05.2020,Gouldings Resource Centre,Consumable Cleaning Materials,121.71,BETA PAK LTD
Revenue,Adult Services,Adult Social Care,Central Codes (to be reallocated),5105644093,29.05.2020,Gouldings Resource Centre,Consumable Cleaning Materials,9.83,BETA PAK LTD
Revenue,Adult Services,Adult Social Care,Central Codes (to be reallocated),5105643611,22.05.2020,Gouldings Resource Centre,Consumable Cleaning Materials,410.58,BETA PAK LTD
Revenue,Adult Services,Adult Social Care,Central Codes (to be reallocated),5105642003,01.05.2020,Gouldings Resource Centre,Catering Purchases,197.99,BETA PAK LTD
Revenue,Adult Services,Adult Social Care,Central Codes (to be reallocated),5105643150,19.05.2020,Gouldings Resource Centre,Consumable Cleaning Materials,11.75,BETA PAK LTD
Revenue,Adult Services,Adult Social Care,Central Codes (to be reallocated),5105643153,19.05.2020,Gouldings Resource Centre,Consumable Cleaning Materials,35.80,BETA PAK LTD
Revenue,Adult Services,Adult Social Care,Learning Disab Supp (to be reallocated),5105644092,29.05.2020,Plean Dene,Operational Equipment,32.56,BETA PAK LTD
Revenue,Adult Services,Adult Social Care,Learning Disab Supp (to be reallocated),5105644092,29.05.2020,Plean Dene,Operational Equipment,49.96,BETA PAK LTD
Revenue,Adult Services,Adult Social Care,Learning Disab Supp (to be reallocated),5105643983,28.05.2020,Saxonbury,Operational Equipment,124.24,BETA PAK LTD
Revenue,Adult Services,Adult Social Care,Learning Disab Supp (to be reallocated),5105642620,20.05.2020,Saxonbury,Operational Equipment,391.27,BETA PAK LTD
Revenue,Adult Services,Adult Social Care,Social Support - Support for Carer,5105643204,20.05.2020,Westminster House,Operational Equipment,30.00,BETA PAK LTD
Revenue,Adult Services,Adult Social Care,Social Support - Support for Carer,5105642001,13.05.2020,Westminster House,Operational Equipment,13.17,BETA PAK LTD
Revenue,Adult Services,Adult Social Care,Commissioning & Service Delivery,5105643546,22.05.2020,Group Manager Leaning Disability Homes,Operational Equipment,31.99,BETA PAK LTD
Revenue,Adult Services,Adult Social Care,Commissioning & Service Delivery,5105641879,01.05.2020,Group Manager Leaning Disability Homes,Operational Equipment,23.09,BETA PAK LTD
Revenue,Neighbourhoods,Central Services,Central Services to the Public,5105643590,22.05.2020,NB Covid-19,Catering Purchases,109.00,BETA PAK LTD
Revenue,Adult Services,Central Services,Central Services to the Public,5105642002,01.05.2020,AS Covid-19 (Adults),Consumable Cleaning Materials,9.88,BETA PAK LTD
Revenue,Adult Services,Central Services,Central Services to the Public,5105643205,27.05.2020,AS Covid-19 (Adults),Consumable Cleaning Materials,17.90,BETA PAK LTD
Revenue,Adult Services,Central Services,Central Services to the Public,5105642049,04.05.2020,AS Covid-19 (Adults),Consumable Cleaning Materials,36.14,BETA PAK LTD
Revenue,Adult Services,Adult Social Care,Central Codes (to be reallocated),5105643207,20.05.2020,Adelaide Resource Centre,Consumable Cleaning Materials,64.90,BETA PAK LTD
Revenue,Adult Services,Adult Social Care,Central Codes (to be reallocated),5105642047,04.05.2020,Adelaide Resource Centre,Consumable Cleaning Materials,12.98,BETA PAK LTD
Revenue,Adult Services,Adult Social Care,Central Codes (to be reallocated),5105643726,22.05.2020,Adelaide Resource Centre,Consumable Cleaning Materials,4.39,BETA PAK LTD
Revenue,Adult Services,Adult Social Care,Central Codes (to be reallocated),5105642000,01.05.2020,Adelaide Resource Centre,Consumable Cleaning Materials,176.22,BETA PAK LTD
Revenue,Adult Services,Adult Social Care,Central Codes (to be reallocated),5105642454,07.05.2020,Adelaide Resource Centre,Consumable Cleaning Materials,240.00,BETA PAK LTD
Revenue,Adult Services,Adult Social Care,Central Codes (to be reallocated),5105642061,04.05.2020,Adelaide Resource Centre,Consumable Cleaning Materials,117.48,BETA PAK LTD
Revenue,Adult Services,Adult Social Care,Central Codes (to be reallocated),5105642062,20.05.2020,Adelaide Resource Centre,Consumable Cleaning Materials,-58.50,BETA PAK LTD
Revenue,Adult Services,Adult Social Care,Central Codes (to be reallocated),5105643723,22.05.2020,Adelaide Resource Centre,Operational Equipment,50.60,BETA PAK LTD
Revenue,Regeneration,Planning services,Economic Development,5105643730,22.05.2020,Victoria Quays,Professional Services,539.00,BEVAN BRITTAN
Revenue,Neighbourhoods,Environmental & Regulatory Services,Service Management and Support Services,5105642669,14.05.2020,Waste Contract Management,Legal Fees - Other Parties,"7,054.40",BEVAN BRITTAN
Revenue,Neighbourhoods,Environmental & Regulatory Services,Service Management and Support Services,5105642872,14.05.2020,Waste Contract Management,Legal Fees - Other Parties,"-9,283.90",BEVAN BRITTAN
Revenue,Neighbourhoods,Environmental & Regulatory Services,Service Management and Support Services,5105643155,19.05.2020,Waste Contract Management,Legal Fees - Other Parties,"8,042.40",BEVAN BRITTAN
Revenue,Adult Services,Adult Social Care,Central Codes (to be reallocated),5105642992,18.05.2020,Gouldings Resource Centre,Catering Purchases,280.29,3663 (BFS GROUP LTD)
Revenue,Adult Services,Adult Social Care,Central Codes (to be reallocated),5105641999,01.05.2020,Gouldings Resource Centre,Catering Purchases,211.65,3663 (BFS GROUP LTD)
Revenue,Adult Services,Adult Social Care,Central Codes (to be reallocated),5105641999,01.05.2020,Gouldings Resource Centre,Catering Purchases,16.84,3663 (BFS GROUP LTD)
Revenue,Adult Services,Adult Social Care,Central Codes (to be reallocated),5105643756,27.05.2020,Gouldings Resource Centre,Catering Purchases,146.37,3663 (BFS GROUP LTD)
Revenue,Adult Services,Adult Social Care,Central Codes (to be reallocated),5105643756,27.05.2020,Gouldings Resource Centre,Catering Purchases,21.39,3663 (BFS GROUP LTD)
Revenue,Adult Services,Adult Social Care,Central Codes (to be reallocated),5105642080,18.05.2020,Gouldings Resource Centre,Catering Purchases,-90.85,3663 (BFS GROUP LTD)
Revenue,Adult Services,Adult Social Care,Central Codes (to be reallocated),5105642081,04.05.2020,Gouldings Resource Centre,Catering Purchases,249.88,3663 (BFS GROUP LTD)
Revenue,Adult Services,Adult Social Care,Central Codes (to be reallocated),5105642081,04.05.2020,Gouldings Resource Centre,Catering Purchases,11.86,3663 (BFS GROUP LTD)
Revenue,Resources,Central Services,Support Services,5105643668,22.05.2020,Staff Benefits,Payment to Private Contractors,5.00,BLACKBERRY LANE PRE-SCHOOL
Revenue,Childrens Services,Children's & Education Services,Special Schools & Alternative Provision,5105644096,29.05.2020,Island Learning Centre,Bought in Prof Services - Curriculum (Schools),100.00,BODSTER EQUINE ASSISTED LEARN CIC
Revenue,Childrens Services,Children's & Education Services,Special Schools & Alternative Provision,5105644097,29.05.2020,Island Learning Centre,Bought in Prof Services - Curriculum (Schools),50.00,BODSTER EQUINE ASSISTED LEARN CIC
Revenue,Childrens Services,Children's & Education Services,Family Support Services,5105642674,14.05.2020,Short Breaks,Charges from Independent Providers,349.17,BODSTER EQUINE ASSISTED LEARN CIC
Revenue,Fire & Rescue,Fire & Rescue Services,Fire fighting and Rescue Operations,5105642905,15.05.2020,Fire Fighters Salaries,Medical Fees and Staff Welfare,41.31,BOLLE SAFETY
Revenue,Fire & Rescue,Fire & Rescue Services,Fire fighting and Rescue Operations,5105642905,15.05.2020,Fire Fighters Salaries,Medical Fees and Staff Welfare,15.00,BOLLE SAFETY
Revenue,Fire & Rescue,Fire & Rescue Services,Fire fighting and Rescue Operations,5105642908,15.05.2020,Fire Fighters Salaries,Medical Fees and Staff Welfare,41.31,BOLLE SAFETY
Revenue,Fire & Rescue,Fire & Rescue Services,Fire fighting and Rescue Operations,5105642908,15.05.2020,Fire Fighters Salaries,Medical Fees and Staff Welfare,18.00,BOLLE SAFETY
Revenue,Fire & Rescue,Fire & Rescue Services,Fire fighting and Rescue Operations,5105642921,15.05.2020,Fire Fighters Salaries,Medical Fees and Staff Welfare,41.31,BOLLE SAFETY
Revenue,Fire & Rescue,Fire & Rescue Services,Fire fighting and Rescue Operations,5105642921,15.05.2020,Fire Fighters Salaries,Medical Fees and Staff Welfare,18.00,BOLLE SAFETY
Revenue,Fire & Rescue,Fire & Rescue Services,Fire fighting and Rescue Operations,5105642922,28.05.2020,Fire Fighters Salaries,Medical Fees and Staff Welfare,25.00,BOLLE SAFETY
Revenue,Fire & Rescue,Fire & Rescue Services,Fire fighting and Rescue Operations,5105643972,28.05.2020,Fire Fighters Salaries,Medical Fees and Staff Welfare,-25.00,BOLLE SAFETY
Revenue,Adult Services,Adult Social Care,Learning Disab Supp (to be reallocated),5105644085,29.05.2020,Plean Dene,Catering Purchases,155.64,BOOKER CASH & CARRY LTD
Revenue,Adult Services,Adult Social Care,Learning Disab Supp (to be reallocated),5105644085,29.05.2020,Plean Dene,Catering Purchases,8.69,BOOKER CASH & CARRY LTD
Revenue,Adult Services,Adult Social Care,Learning Disab Supp (to be reallocated),5105642087,07.05.2020,Plean Dene,Catering Purchases,16.06,BOOKER CASH & CARRY LTD
Revenue,Adult Services,Adult Social Care,Learning Disab Supp (to be reallocated),5105642231,07.05.2020,Plean Dene,Catering Purchases,4.29,BOOKER CASH & CARRY LTD
Revenue,Adult Services,Adult Social Care,Learning Disab Supp (to be reallocated),5105643709,22.05.2020,Plean Dene,Catering Purchases,8.28,BOOKER CASH & CARRY LTD
Revenue,Adult Services,Adult Social Care,Learning Disab Supp (to be reallocated),5105642246,07.05.2020,Plean Dene,Catering Purchases,146.82,BOOKER CASH & CARRY LTD
Revenue,Adult Services,Adult Social Care,Learning Disab Supp (to be reallocated),5105642246,07.05.2020,Plean Dene,Catering Purchases,18.53,BOOKER CASH & CARRY LTD
Revenue,Adult Services,Adult Social Care,Learning Disab Supp (to be reallocated),5105644082,29.05.2020,Plean Dene,Catering Purchases,25.35,BOOKER CASH & CARRY LTD
Revenue,Adult Services,Adult Social Care,Learning Disab Supp (to be reallocated),5105643255,28.05.2020,Plean Dene,Catering Purchases,130.85,BOOKER CASH & CARRY LTD
Revenue,Adult Services,Adult Social Care,Learning Disab Supp (to be reallocated),5105643255,28.05.2020,Plean Dene,Catering Purchases,7.98,BOOKER CASH & CARRY LTD
Revenue,Adult Services,Adult Social Care,Learning Disab Supp (to be reallocated),5105643034,18.05.2020,Plean Dene,Catering Purchases,1.39,BOOKER CASH & CARRY LTD
Revenue,Adult Services,Adult Social Care,Learning Disab Supp (to be reallocated),5105643098,19.05.2020,Plean Dene,Catering Purchases,10.78,BOOKER CASH & CARRY LTD
Revenue,Adult Services,Adult Social Care,Learning Disab Supp (to be reallocated),5105642683,14.05.2020,Plean Dene,Catering Purchases,12.28,BOOKER CASH & CARRY LTD
Revenue,Adult Services,Adult Social Care,Learning Disab Supp (to be reallocated),5105642654,13.05.2020,Plean Dene,Catering Purchases,2.49,BOOKER CASH & CARRY LTD
Revenue,Adult Services,Adult Social Care,Learning Disab Supp (to be reallocated),5105642919,15.05.2020,Plean Dene,Catering Purchases,119.21,BOOKER CASH & CARRY LTD
Revenue,Adult Services,Adult Social Care,Learning Disab Supp (to be reallocated),5105642919,15.05.2020,Plean Dene,Catering Purchases,7.98,BOOKER CASH & CARRY LTD
Revenue,Adult Services,Adult Social Care,Learning Disab Supp (to be reallocated),5105641292,13.05.2020,Plean Dene,Catering Purchases,151.03,BOOKER CASH & CARRY LTD
Revenue,Adult Services,Adult Social Care,Learning Disab Supp (to be reallocated),5105641292,13.05.2020,Plean Dene,Catering Purchases,7.98,BOOKER CASH & CARRY LTD
Revenue,Adult Services,Adult Social Care,Learning Disab Supp (to be reallocated),5105642013,20.05.2020,Plean Dene,Catering Purchases,8.78,BOOKER CASH & CARRY LTD
Revenue,Adult Services,Adult Social Care,Learning Disab Supp (to be reallocated),5105643613,22.05.2020,Plean Dene,Catering Purchases,15.64,BOOKER CASH & CARRY LTD
Revenue,Adult Services,Adult Social Care,Learning Disab Supp (to be reallocated),5105643545,22.05.2020,Plean Dene,Catering Purchases,7.89,BOOKER CASH & CARRY LTD
Revenue,Adult Services,Adult Social Care,Learning Disab Supp (to be reallocated),5105642045,07.05.2020,Plean Dene,Catering Purchases,12.27,BOOKER CASH & CARRY LTD
Revenue,Public Health,Public Health,Smoking & Tobacco,5105643733,29.05.2020,Stop Smoking Services & Interventions NP,Payment to Private Contractors,18.00,BOOTS THE CHEMIST LTD (Ryde)
Revenue,Public Health,Public Health,Smoking & Tobacco,5105643733,29.05.2020,Stop Smoking Services & Interventions NP,Payment to Private Contractors,109.20,BOOTS THE CHEMIST LTD (Ryde)
Revenue,Public Health,Public Health,Smoking & Tobacco,5105643733,29.05.2020,Stop Smoking Services & Interventions NP,Payment to Private Contractors,179.14,BOOTS THE CHEMIST LTD (Ryde)
Revenue,Public Health,Public Health,Smoking & Tobacco,5105643733,29.05.2020,Stop Smoking Services & Interventions NP,Payment to Private Contractors,26.00,BOOTS THE CHEMIST LTD (Ryde)
Revenue,Public Health,Public Health,Sexual Health,5105642238,07.05.2020,Contraception P,Payment to Private Contractors,731.00,BOOTS THE CHEMIST LTD (Ryde)
Revenue,Public Health,Public Health,Sexual Health,5105642238,07.05.2020,Contraception P,Payment to Private Contractors,72.80,BOOTS THE CHEMIST LTD (Ryde)
Revenue,Public Health,Public Health,Sexual Health,5105642238,07.05.2020,Contraception P,Payment to Private Contractors,295.05,BOOTS THE CHEMIST LTD (Ryde)
Revenue,Public Health,Public Health,Sexual Health,5105642238,07.05.2020,Contraception P,Payment to Private Contractors,7.10,BOOTS THE CHEMIST LTD (Ryde)
Revenue,Public Health,Public Health,Substance Misuse,5105642238,07.05.2020,Drug Misuse Adult- Treatment NP,Payment to Private Contractors,"1,561.00",BOOTS THE CHEMIST LTD (Ryde)
Revenue,Public Health,Public Health,Substance Misuse,5105642238,07.05.2020,Drug Misuse Adult- Treatment NP,Payment to Private Contractors,428.00,BOOTS THE CHEMIST LTD (Ryde)
Revenue,Public Health,Public Health,Substance Misuse,5105642238,07.05.2020,Drug Misuse Adult- Treatment NP,Payment to Private Contractors,30.00,BOOTS THE CHEMIST LTD (Ryde)
Revenue,Public Health,Public Health,Smoking & Tobacco,5105643732,29.05.2020,Stop Smoking Services & Interventions NP,Payment to Private Contractors,282.02,BOOTS UK LTD (107 HIGH ST SANDOWN)
Revenue,Public Health,Public Health,Smoking & Tobacco,5105643732,29.05.2020,Stop Smoking Services & Interventions NP,Payment to Private Contractors,38.00,BOOTS UK LTD (107 HIGH ST SANDOWN)
Revenue,Public Health,Public Health,Sexual Health,5105642591,13.05.2020,Contraception P,Payment to Private Contractors,258.00,BOOTS UK LTD (107 HIGH ST SANDOWN)
Revenue,Public Health,Public Health,Sexual Health,5105642591,13.05.2020,Contraception P,Payment to Private Contractors,46.80,BOOTS UK LTD (107 HIGH ST SANDOWN)
Revenue,Public Health,Public Health,Sexual Health,5105642591,13.05.2020,Contraception P,Payment to Private Contractors,70.25,BOOTS UK LTD (107 HIGH ST SANDOWN)
Revenue,Public Health,Public Health,Sexual Health,5400002671,29.05.2020,Contraception P,Payment to Private Contractors,14.20,BOOTS UK LTD (107 HIGH ST SANDOWN)
Revenue,Public Health,Public Health,Substance Misuse,5105642591,13.05.2020,Drug Misuse Adult- Treatment NP,Payment to Private Contractors,105.00,BOOTS UK LTD (107 HIGH ST SANDOWN)
Revenue,Public Health,Public Health,Substance Misuse,5105642591,13.05.2020,Drug Misuse Adult- Treatment NP,Payment to Private Contractors,182.00,BOOTS UK LTD (107 HIGH ST SANDOWN)
Revenue,Public Health,Public Health,Substance Misuse,5105642591,13.05.2020,Drug Misuse Adult- Treatment NP,Payment to Private Contractors,30.00,BOOTS UK LTD (107 HIGH ST SANDOWN)
Revenue,Public Health,Public Health,Smoking & Tobacco,5105643728,29.05.2020,Stop Smoking Services & Interventions NP,Payment to Private Contractors,54.60,BOOTS UK LTD (COWES)
Revenue,Public Health,Public Health,Smoking & Tobacco,5105642446,07.05.2020,Stop Smoking Services & Interventions NP,Payment to Private Contractors,20.00,BOOTS UK LTD (COWES)
Revenue,Public Health,Public Health,Smoking & Tobacco,5105642446,07.05.2020,Stop Smoking Services & Interventions NP,Payment to Private Contractors,27.30,BOOTS UK LTD (COWES)
Revenue,Public Health,Public Health,Smoking & Tobacco,5105643728,29.05.2020,Stop Smoking Services & Interventions NP,Payment to Private Contractors,9.00,BOOTS UK LTD (COWES)
Revenue,Public Health,Public Health,Sexual Health,5105642596,13.05.2020,Contraception P,Payment to Private Contractors,150.50,BOOTS UK LTD (COWES)
Revenue,Public Health,Public Health,Sexual Health,5105642596,13.05.2020,Contraception P,Payment to Private Contractors,10.40,BOOTS UK LTD (COWES)
Revenue,Public Health,Public Health,Sexual Health,5105642596,13.05.2020,Contraception P,Payment to Private Contractors,56.20,BOOTS UK LTD (COWES)
Revenue,Public Health,Public Health,Substance Misuse,5105642596,13.05.2020,Drug Misuse Adult- Treatment NP,Payment to Private Contractors,414.00,BOOTS UK LTD (COWES)
Revenue,Public Health,Public Health,Substance Misuse,5105642596,13.05.2020,Drug Misuse Adult- Treatment NP,Payment to Private Contractors,30.00,BOOTS UK LTD (COWES)
Revenue,Public Health,Public Health,Smoking & Tobacco,5105643737,29.05.2020,Stop Smoking Services & Interventions NP,Payment to Private Contractors,73.39,BOOTS UK LTD (FRESHWATER)
Revenue,Public Health,Public Health,Smoking & Tobacco,5105643737,29.05.2020,Stop Smoking Services & Interventions NP,Payment to Private Contractors,10.00,BOOTS UK LTD (FRESHWATER)
Revenue,Public Health,Public Health,Sexual Health,5105642610,14.05.2020,Contraception P,Payment to Private Contractors,43.00,BOOTS UK LTD (FRESHWATER)
Revenue,Public Health,Public Health,Sexual Health,5105642610,14.05.2020,Contraception P,Payment to Private Contractors,28.10,BOOTS UK LTD (FRESHWATER)
Revenue,Public Health,Public Health,Substance Misuse,5105642249,07.05.2020,Drug Misuse Adult- Treatment NP,Payment to Private Contractors,64.00,BOOTS UK LTD (FRESHWATER)
Revenue,Public Health,Public Health,Substance Misuse,5105642249,07.05.2020,Drug Misuse Adult- Treatment NP,Payment to Private Contractors,30.00,BOOTS UK LTD (FRESHWATER)
Revenue,Public Health,Public Health,Substance Misuse,5105642249,07.05.2020,Drug Misuse Adult- Treatment NP,Payment to Private Contractors,63.00,BOOTS UK LTD (FRESHWATER)
Revenue,Public Health,Public Health,Substance Misuse,5105642610,14.05.2020,Drug Misuse Adult- Treatment NP,Payment to Private Contractors,30.00,BOOTS UK LTD (FRESHWATER)
Revenue,Public Health,Public Health,Substance Misuse,5105642610,14.05.2020,Drug Misuse Adult- Treatment NP,Payment to Private Contractors,70.00,BOOTS UK LTD (FRESHWATER)
Revenue,Public Health,Public Health,Substance Misuse,5105642610,14.05.2020,Drug Misuse Adult- Treatment NP,Payment to Private Contractors,420.00,BOOTS UK LTD (FRESHWATER)
Revenue,Public Health,Public Health,Smoking & Tobacco,5105643731,29.05.2020,Stop Smoking Services & Interventions NP,Payment to Private Contractors,20.00,BOOTS UK LTD (NEWPORT)
Revenue,Public Health,Public Health,Smoking & Tobacco,5105643731,29.05.2020,Stop Smoking Services & Interventions NP,Payment to Private Contractors,53.93,BOOTS UK LTD (NEWPORT)
Revenue,Public Health,Public Health,Smoking & Tobacco,5105643731,29.05.2020,Stop Smoking Services & Interventions NP,Payment to Private Contractors,10.00,BOOTS UK LTD (NEWPORT)
Revenue,Public Health,Public Health,Smoking & Tobacco,5105643731,29.05.2020,Stop Smoking Services & Interventions NP,Payment to Private Contractors,4.50,BOOTS UK LTD (NEWPORT)
Revenue,Public Health,Public Health,Smoking & Tobacco,5105643731,29.05.2020,Stop Smoking Services & Interventions NP,Payment to Private Contractors,81.90,BOOTS UK LTD (NEWPORT)
Revenue,Public Health,Public Health,Sexual Health,5105642244,15.05.2020,Contraception P,Payment to Private Contractors,"1,376.00",BOOTS UK LTD (NEWPORT)
Revenue,Public Health,Public Health,Sexual Health,5105642244,15.05.2020,Contraception P,Payment to Private Contractors,83.20,BOOTS UK LTD (NEWPORT)
Revenue,Public Health,Public Health,Sexual Health,5105642244,15.05.2020,Contraception P,Payment to Private Contractors,702.50,BOOTS UK LTD (NEWPORT)
Revenue,Public Health,Public Health,Substance Misuse,5105642244,15.05.2020,Drug Misuse Adult- Treatment NP,Payment to Private Contractors,724.50,BOOTS UK LTD (NEWPORT)
Revenue,Public Health,Public Health,Substance Misuse,5105642244,15.05.2020,Drug Misuse Adult- Treatment NP,Payment to Private Contractors,528.00,BOOTS UK LTD (NEWPORT)
Revenue,Public Health,Public Health,Substance Misuse,5105642244,15.05.2020,Drug Misuse Adult- Treatment NP,Payment to Private Contractors,30.00,BOOTS UK LTD (NEWPORT)
Revenue,Public Health,Public Health,Sexual Health,5105642252,07.05.2020,Contraception P,Payment to Private Contractors,129.00,BOOTS UK LTD (SHANKLIN)
Revenue,Public Health,Public Health,Sexual Health,5105642252,07.05.2020,Contraception P,Payment to Private Contractors,5.20,BOOTS UK LTD (SHANKLIN)
Revenue,Public Health,Public Health,Sexual Health,5105642252,07.05.2020,Contraception P,Payment to Private Contractors,70.25,BOOTS UK LTD (SHANKLIN)
Revenue,Public Health,Public Health,Substance Misuse,5105642252,07.05.2020,Drug Misuse Adult- Treatment NP,Payment to Private Contractors,48.00,BOOTS UK LTD (SHANKLIN)
Revenue,Public Health,Public Health,Substance Misuse,5105642252,07.05.2020,Drug Misuse Adult- Treatment NP,Payment to Private Contractors,30.00,BOOTS UK LTD (SHANKLIN)
Revenue,Public Health,Public Health,Smoking & Tobacco,5105642466,13.05.2020,Stop Smoking Services & Interventions NP,Payment to Private Contractors,4.00,BOOTS UK LTD (TOWER HOUSE)
Revenue,Public Health,Public Health,Smoking & Tobacco,5105642466,13.05.2020,Stop Smoking Services & Interventions NP,Payment to Private Contractors,10.60,BOOTS UK LTD (TOWER HOUSE)
Revenue,Public Health,Public Health,Substance Misuse,5105642599,13.05.2020,Drug Misuse Adult- Treatment NP,Payment to Private Contractors,203.00,BOOTS UK LTD (TOWER HOUSE)
Revenue,Public Health,Public Health,Substance Misuse,5105642599,13.05.2020,Drug Misuse Adult- Treatment NP,Payment to Private Contractors,106.00,BOOTS UK LTD (TOWER HOUSE)
Revenue,Public Health,Public Health,Substance Misuse,5105642599,13.05.2020,Drug Misuse Adult- Treatment NP,Payment to Private Contractors,30.00,BOOTS UK LTD (TOWER HOUSE)
Revenue,Public Health,Public Health,Sexual Health,5105642240,07.05.2020,Contraception P,Payment to Private Contractors,86.00,BOOTS UK LTD
Revenue,Public Health,Public Health,Sexual Health,5105642240,07.05.2020,Contraception P,Payment to Private Contractors,56.20,BOOTS UK LTD
Revenue,Public Health,Public Health,Substance Misuse,5105642240,07.05.2020,Drug Misuse Adult- Treatment NP,Payment to Private Contractors,94.50,BOOTS UK LTD
Revenue,Public Health,Public Health,Substance Misuse,5105642240,07.05.2020,Drug Misuse Adult- Treatment NP,Payment to Private Contractors,408.00,BOOTS UK LTD
Revenue,Public Health,Public Health,Substance Misuse,5105642240,07.05.2020,Drug Misuse Adult- Treatment NP,Payment to Private Contractors,30.00,BOOTS UK LTD
Revenue,Public Health,Public Health,Smoking & Tobacco,5105643734,29.05.2020,Stop Smoking Services & Interventions NP,Payment to Private Contractors,28.93,BOOTS UK LTD (YLB BEMBRIDGE)
Revenue,Public Health,Public Health,Smoking & Tobacco,5105643734,29.05.2020,Stop Smoking Services & Interventions NP,Payment to Private Contractors,4.00,BOOTS UK LTD (YLB BEMBRIDGE)
Revenue,Public Health,Public Health,Sexual Health,5105642597,13.05.2020,Contraception P,Payment to Private Contractors,3.55,BOOTS UK LTD (YLB BEMBRIDGE)
Revenue,Public Health,Public Health,Sexual Health,5105642597,13.05.2020,Contraception P,Payment to Private Contractors,64.50,BOOTS UK LTD (YLB BEMBRIDGE)
Revenue,Public Health,Public Health,Sexual Health,5105642597,13.05.2020,Contraception P,Payment to Private Contractors,28.10,BOOTS UK LTD (YLB BEMBRIDGE)
Revenue,Public Health,Public Health,Substance Misuse,5105642597,13.05.2020,Drug Misuse Adult- Treatment NP,Payment to Private Contractors,30.00,BOOTS UK LTD (YLB BEMBRIDGE)
Revenue,Public Health,Public Health,Substance Misuse,5105642597,13.05.2020,Drug Misuse Adult- Treatment NP,Payment to Private Contractors,7.00,BOOTS UK LTD (YLB BEMBRIDGE)
Revenue,Childrens Services,Children's & Education Services,Children Looked After,5105643529,22.05.2020,In-house Fostering,Interview & recruitment expenses,35.00,BOSTICO INTERNATIONAL
Revenue,Childrens Services,Children's & Education Services,Children Looked After,5105642884,18.05.2020,Purchased Fostering,Charges from Independent Providers,"2,553.85",BOURNEMOUTH BOROUGH COUNCIL
Revenue,Childrens Services,Children's & Education Services,Children Looked After,5105642892,18.05.2020,Purchased Fostering,Charges from Independent Providers,"1,879.60",BOURNEMOUTH BOROUGH COUNCIL
Revenue,Childrens Services,Children's & Education Services,Children Looked After,5105642881,15.05.2020,Purchased Fostering,Charges from Independent Providers,"1,746.21",BOURNEMOUTH BOROUGH COUNCIL
Revenue,Childrens Services,Children's & Education Services,Children Looked After,5105643308,22.05.2020,Purchased Fostering,Charges from Independent Providers,"1,804.42",BOURNEMOUTH BOROUGH COUNCIL
Revenue,Childrens Services,Children's & Education Services,Children Looked After,5105643067,20.05.2020,Purchased Fostering,Charges from Independent Providers,"1,804.42",BOURNEMOUTH BOROUGH COUNCIL
Revenue,Childrens Services,Children's & Education Services,Children Looked After,5105642681,18.05.2020,Purchased Fostering,Charges from Independent Providers,"2,735.74",BOURNEMOUTH BOROUGH COUNCIL
Revenue,Resources,Central Services,Support Services,5105642220,06.05.2020,ICT Contracts,Computer Maintenance,"9,586.87",BRAMBLE HUB LIMITED
Revenue,Adult Services,Housing Services,Homelessness,5105643652,22.05.2020,Private Rented Sector Leasing Scheme,Accommodation Costs - Leaseholder Payments,746.81,BRAMBLE LETTINGS
Revenue,Adult Services,Housing Services,Homelessness,5105643652,22.05.2020,Private Rented Sector Leasing Scheme,Accommodation Costs - Leaseholder Payments,746.81,BRAMBLE LETTINGS
Revenue,Adult Services,Housing Services,Homelessness,5105643652,22.05.2020,Private Rented Sector Leasing Scheme,Accommodation Costs - Leaseholder Payments,746.81,BRAMBLE LETTINGS
Revenue,Adult Services,Housing Services,Homelessness,5105643652,22.05.2020,Private Rented Sector Leasing Scheme,Accommodation Costs - Leaseholder Payments,746.81,BRAMBLE LETTINGS
Revenue,Adult Services,Housing Services,Homelessness,5105643652,22.05.2020,Private Rented Sector Leasing Scheme,Accommodation Costs - Leaseholder Payments,281.66,BRAMBLE LETTINGS
Revenue,Adult Services,Housing Services,Homelessness,5105643652,22.05.2020,Private Rented Sector Leasing Scheme,Accommodation Costs - Leaseholder Payments,216.66,BRAMBLE LETTINGS
Revenue,Adult Services,Housing Services,Homelessness,5105643652,22.05.2020,Private Rented Sector Leasing Scheme,Accommodation Costs - Leaseholder Payments,746.81,BRAMBLE LETTINGS
Revenue,Adult Services,Housing Services,Homelessness,5105643652,22.05.2020,Private Rented Sector Leasing Scheme,Accommodation Costs - Leaseholder Payments,746.81,BRAMBLE LETTINGS
Revenue,Adult Services,Housing Services,Homelessness,5105643652,22.05.2020,Private Rented Sector Leasing Scheme,Accommodation Costs - Leaseholder Payments,746.81,BRAMBLE LETTINGS
Revenue,Adult Services,Housing Services,Homelessness,5105643652,22.05.2020,Private Rented Sector Leasing Scheme,Accommodation Costs - Leaseholder Payments,746.81,BRAMBLE LETTINGS
Revenue,Adult Services,Housing Services,Homelessness,5105643652,22.05.2020,Private Rented Sector Leasing Scheme,Accommodation Costs - Leaseholder Payments,746.81,BRAMBLE LETTINGS
Revenue,Adult Services,Housing Services,Homelessness,5105643652,22.05.2020,Private Rented Sector Leasing Scheme,Accommodation Costs - Leaseholder Payments,588.38,BRAMBLE LETTINGS
Revenue,Adult Services,Housing Services,Homelessness,5105643652,22.05.2020,Private Rented Sector Leasing Scheme,Accommodation Costs - Leaseholder Payments,588.38,BRAMBLE LETTINGS
Revenue,Adult Services,Housing Services,Homelessness,5105643652,22.05.2020,Private Rented Sector Leasing Scheme,Accommodation Costs - Leaseholder Payments,588.38,BRAMBLE LETTINGS
Revenue,Adult Services,Housing Services,Homelessness,5105643652,22.05.2020,Private Rented Sector Leasing Scheme,Accommodation Costs - Leaseholder Payments,588.38,BRAMBLE LETTINGS
Revenue,Adult Services,Housing Services,Homelessness,5105643652,22.05.2020,Private Rented Sector Leasing Scheme,Accommodation Costs - Leaseholder Payments,588.38,BRAMBLE LETTINGS
Revenue,Adult Services,Housing Services,Homelessness,5105643652,22.05.2020,Private Rented Sector Leasing Scheme,Accommodation Costs - Leaseholder Payments,746.81,BRAMBLE LETTINGS
Revenue,Adult Services,Housing Services,Homelessness,5105643652,22.05.2020,Private Rented Sector Leasing Scheme,Accommodation Costs - Leaseholder Payments,588.38,BRAMBLE LETTINGS
Revenue,Adult Services,Housing Services,Homelessness,5105643652,22.05.2020,Private Rented Sector Leasing Scheme,Accommodation Costs - Leaseholder Payments,746.81,BRAMBLE LETTINGS
Revenue,Adult Services,Housing Services,Homelessness,5105643652,22.05.2020,Private Rented Sector Leasing Scheme,Accommodation Costs - Leaseholder Payments,769.43,BRAMBLE LETTINGS
Revenue,Adult Services,Housing Services,Homelessness,5105643652,22.05.2020,Private Rented Sector Leasing Scheme,Accommodation Costs - Leaseholder Payments,746.81,BRAMBLE LETTINGS
Revenue,Adult Services,Housing Services,Homelessness,5105643652,22.05.2020,Private Rented Sector Leasing Scheme,Accommodation Costs - Leaseholder Payments,746.81,BRAMBLE LETTINGS
Revenue,Adult Services,Housing Services,Homelessness,5105643652,22.05.2020,Private Rented Sector Leasing Scheme,Accommodation Costs - Leaseholder Payments,746.81,BRAMBLE LETTINGS
Revenue,Adult Services,Housing Services,Homelessness,5105643652,22.05.2020,Private Rented Sector Leasing Scheme,Accommodation Costs - Leaseholder Payments,746.81,BRAMBLE LETTINGS
Revenue,Neighbourhoods,Cultural and Related Services,Open Spaces,5105644078,29.05.2020,Rights of Way Operations,Payment to Private Contractors,850.00,BRIGHSTONE LANDSCAPING LTD
Revenue,Neighbourhoods,Environmental & Regulatory Services,(Street) Cleansing (not highways),5105642073,04.05.2020,Beach Cleaning,Beach Cleansing Contractors,"1,285.00",BRIGHSTONE LANDSCAPING LTD
Revenue,Neighbourhoods,Cultural and Related Services,Open Spaces,5105642074,04.05.2020,Other Grounds Maintenance,Payment to Private Contractors,55.00,BRIGHSTONE LANDSCAPING LTD
Revenue,Resources,Central Services,Support Services,5105643688,22.05.2020,Staff Benefits,Payment to Private Contractors,15.00,KCT CHILDCARE LIMITED
Revenue,Adult Services,Adult Social Care,Learning Disability Suppt-adults (18-64),5105642481,13.05.2020,Learning Disability Residential 18-64,Charges from Independent Providers,"6,840.12",BROADHAM CARE LTD
Revenue,Public Health,Public Health,NHS Health Check Programme,5105641799,06.05.2020,NHS Health Check Programme P,Payment to Private Contractors,-97.00,BROOKSIDE HEALTH CENTRE
Revenue,Public Health,Public Health,Sexual Health,5105641798,06.05.2020,Long Acting Reversible Contraception,Payment to Private Contractors,960.00,BROOKSIDE HEALTH CENTRE
Capital,Corporate Items,Balance Sheet,Balance Sheet,5105642529,13.05.2020,Balance Sheet,Order Settlement to Bal Sht GL,92.12,BUCKLAND CARE LTD
Revenue,Adult Services,Adult Social Care,Support - Memory /Cognition-older people (65+),5105642529,13.05.2020,Memory & Cognition Residential 65+,Charges from Independent Providers,"2,497.32",BUCKLAND CARE LTD
Revenue,Adult Services,Adult Social Care,Support - Memory /Cognition-older people (65+),5105642529,13.05.2020,Memory & Cognition Residential 65+,Charges from Independent Providers,"2,124.08",BUCKLAND CARE LTD
Revenue,Adult Services,Central Services,Emergency Planning,5105642933,15.05.2020,NHS C19 Residential,Charges from Independent Providers,"6,120.24",BUCKLAND CARE LTD
Revenue,Adult Services,Central Services,Emergency Planning,5105642933,15.05.2020,NHS C19 Residential,Charges from Independent Providers,"6,120.24",BUCKLAND CARE LTD
Revenue,Adult Services,Central Services,Emergency Planning,5105642691,14.05.2020,NHS C19 Residential,Charges from Independent Providers,"11,511.88",BUCKLAND CARE LTD
Revenue,Adult Services,Central Services,Emergency Planning,5105642529,13.05.2020,NHS C19 Residential,Charges from Independent Providers,"2,622.96",BUCKLAND CARE LTD
Revenue,Adult Services,Adult Social Care,Physical Support - adults (18-64),5105642529,13.05.2020,Physical Support Residential 18-64,Charges from Independent Providers,"2,497.32",BUCKLAND CARE LTD
Revenue,Adult Services,Adult Social Care,Social Support - Support for Carer,5105642529,13.05.2020,Carers Residential,Regular Respite Care,"2,497.32",BUCKLAND CARE LTD
Revenue,Adult Services,Adult Social Care,Social Support - Support for Carer,5105642182,06.05.2020,Carers Residential,Regular Respite Care,775.98,BUCKLAND CARE LTD
Revenue,Adult Services,Adult Social Care,Social Support - Support for Carer,5105642182,06.05.2020,Carers Residential,Regular Respite Care,"4,191.93",BUCKLAND CARE LTD
Revenue,Adult Services,Adult Social Care,Learning Disability Support-older people,5105642529,13.05.2020,Learning Disability Residential 65+,Charges from Independent Providers,"2,497.32",BUCKLAND CARE LTD
Revenue,Adult Services,Adult Social Care,Physical Support - older people (65+),5105644101,29.05.2020,Physical Support Residential 65+,Charges from Independent Providers,"3,924.36",BUCKLAND CARE LTD
Revenue,Adult Services,Adult Social Care,Physical Support - older people (65+),5105642260,07.05.2020,Physical Support Residential 65+,Charges from Independent Providers,"2,854.08",BUCKLAND CARE LTD
Revenue,Adult Services,Adult Social Care,Physical Support - older people (65+),5105642529,13.05.2020,Physical Support Residential 65+,Charges from Independent Providers,"2,497.32",BUCKLAND CARE LTD
Revenue,Adult Services,Adult Social Care,Physical Support - older people (65+),5105642529,13.05.2020,Physical Support Residential 65+,Charges from Independent Providers,"2,497.32",BUCKLAND CARE LTD
Revenue,Adult Services,Adult Social Care,Physical Support - older people (65+),5105642529,13.05.2020,Physical Support Residential 65+,Charges from Independent Providers,"2,497.32",BUCKLAND CARE LTD
Revenue,Adult Services,Adult Social Care,Physical Support - older people (65+),5105642529,13.05.2020,Physical Support Residential 65+,Charges from Independent Providers,"2,497.32",BUCKLAND CARE LTD
Revenue,Adult Services,Adult Social Care,Physical Support - older people (65+),5105642529,13.05.2020,Physical Support Residential 65+,Charges from Independent Providers,"2,497.32",BUCKLAND CARE LTD
Revenue,Adult Services,Adult Social Care,Physical Support - older people (65+),5105642529,13.05.2020,Physical Support Residential 65+,Charges from Independent Providers,"2,497.32",BUCKLAND CARE LTD
Revenue,Adult Services,Adult Social Care,Physical Support - older people (65+),5105642529,13.05.2020,Physical Support Residential 65+,Charges from Independent Providers,"2,497.32",BUCKLAND CARE LTD
Revenue,Adult Services,Adult Social Care,Physical Support - older people (65+),5105642529,13.05.2020,Physical Support Residential 65+,Charges from Independent Providers,"2,497.32",BUCKLAND CARE LTD
Revenue,Adult Services,Adult Social Care,Physical Support - older people (65+),5105642529,13.05.2020,Physical Support Residential 65+,Charges from Independent Providers,"2,497.32",BUCKLAND CARE LTD
Revenue,Adult Services,Adult Social Care,Physical Support - older people (65+),5105642529,13.05.2020,Physical Support Residential 65+,Charges from Independent Providers,"2,497.32",BUCKLAND CARE LTD
Revenue,Adult Services,Adult Social Care,Physical Support - older people (65+),5105642529,13.05.2020,Physical Support Residential 65+,Charges from Independent Providers,"2,124.08",BUCKLAND CARE LTD
Revenue,Adult Services,Adult Social Care,Physical Support - older people (65+),5105642529,13.05.2020,Physical Support Residential 65+,Charges from Independent Providers,"2,497.32",BUCKLAND CARE LTD
Revenue,Adult Services,Adult Social Care,Physical Support - older people (65+),5105642529,13.05.2020,Physical Support Residential 65+,Charges from Independent Providers,"2,028.32",BUCKLAND CARE LTD
Revenue,Adult Services,Adult Social Care,Physical Support - older people (65+),5105642529,13.05.2020,Physical Support Residential 65+,Charges from Independent Providers,"2,028.32",BUCKLAND CARE LTD
Revenue,Adult Services,Central Services,Emergency Planning,5105641989,01.05.2020,NHS C19 Nursing,Charges from Independent Providers,"2,750.02",BUCKLAND CARE LTD
Revenue,Adult Services,Central Services,Emergency Planning,5105642519,13.05.2020,NHS C19 Nursing,Charges from Independent Providers,"3,535.74",BUCKLAND CARE LTD
Revenue,Adult Services,Central Services,Emergency Planning,5105642519,13.05.2020,NHS C19 Nursing,Charges from Independent Providers,"3,535.74",BUCKLAND CARE LTD
Revenue,Adult Services,Adult Social Care,Commissioning & Service Delivery,5105642519,13.05.2020,"Funded Nursing Care, Registered Nursing Care Contribution",Charges from Independent Providers,662.48,BUCKLAND CARE LTD
Revenue,Adult Services,Adult Social Care,Commissioning & Service Delivery,5105642519,13.05.2020,"Funded Nursing Care, Registered Nursing Care Contribution",Charges from Independent Providers,662.48,BUCKLAND CARE LTD
Revenue,Adult Services,Adult Social Care,Commissioning & Service Delivery,5105642519,13.05.2020,"Funded Nursing Care, Registered Nursing Care Contribution",Charges from Independent Providers,662.48,BUCKLAND CARE LTD
Revenue,Adult Services,Adult Social Care,Commissioning & Service Delivery,5105642519,13.05.2020,"Funded Nursing Care, Registered Nursing Care Contribution",Charges from Independent Providers,662.48,BUCKLAND CARE LTD
Revenue,Adult Services,Adult Social Care,Commissioning & Service Delivery,5105642519,13.05.2020,"Funded Nursing Care, Registered Nursing Care Contribution",Charges from Independent Providers,662.48,BUCKLAND CARE LTD
Revenue,Adult Services,Adult Social Care,Support - Memory /Cognition-older people (65+),5105642519,13.05.2020,Memory & Cognition Residential 65+,Charges from Independent Providers,"2,497.32",BUCKLAND CARE LTD
Revenue,Adult Services,Adult Social Care,Learning Disability Suppt-adults (18-64),5105642519,13.05.2020,Learning Disability Nursing 18-64,Charges from Independent Providers,300.39,BUCKLAND CARE LTD
Revenue,Adult Services,Adult Social Care,Commissioning & Service Delivery,5105642519,13.05.2020,FNC IWC funded clients,Regular Respite Care,662.48,BUCKLAND CARE LTD
Revenue,Adult Services,Adult Social Care,Commissioning & Service Delivery,5105643343,22.05.2020,FNC IWC funded clients,Charges from Independent Providers,"2,839.20",BUCKLAND CARE LTD
Revenue,Adult Services,Adult Social Care,Commissioning & Service Delivery,5105643343,22.05.2020,FNC IWC funded clients,Charges from Independent Providers,"1,971.00",BUCKLAND CARE LTD
Revenue,Adult Services,Adult Social Care,Commissioning & Service Delivery,5105642980,18.05.2020,FNC IWC funded clients,Charges from Independent Providers,"1,971.00",BUCKLAND CARE LTD
Revenue,Adult Services,Adult Social Care,Commissioning & Service Delivery,5105642980,18.05.2020,FNC IWC funded clients,Charges from Independent Providers,"1,041.04",BUCKLAND CARE LTD
Revenue,Adult Services,Adult Social Care,Commissioning & Service Delivery,5105642180,06.05.2020,FNC IWC funded clients,Charges from Independent Providers,354.90,BUCKLAND CARE LTD
Revenue,Adult Services,Adult Social Care,Commissioning & Service Delivery,5105642180,06.05.2020,FNC IWC funded clients,Charges from Independent Providers,283.92,BUCKLAND CARE LTD
Revenue,Adult Services,Adult Social Care,Commissioning & Service Delivery,5105642519,13.05.2020,FNC IWC funded clients,Charges from Independent Providers,425.88,BUCKLAND CARE LTD
Revenue,Adult Services,Adult Social Care,Commissioning & Service Delivery,5105642519,13.05.2020,FNC IWC funded clients,Charges from Independent Providers,662.48,BUCKLAND CARE LTD
Revenue,Adult Services,Adult Social Care,Commissioning & Service Delivery,5105642519,13.05.2020,FNC IWC funded clients,Charges from Independent Providers,662.48,BUCKLAND CARE LTD
Revenue,Adult Services,Adult Social Care,Commissioning & Service Delivery,5105642519,13.05.2020,FNC IWC funded clients,Charges from Independent Providers,662.48,BUCKLAND CARE LTD
Revenue,Adult Services,Adult Social Care,Commissioning & Service Delivery,5105642519,13.05.2020,FNC IWC funded clients,Charges from Independent Providers,70.98,BUCKLAND CARE LTD
Revenue,Adult Services,Adult Social Care,Commissioning & Service Delivery,5105642519,13.05.2020,FNC IWC funded clients,Charges from Independent Providers,662.48,BUCKLAND CARE LTD
Revenue,Adult Services,Adult Social Care,Commissioning & Service Delivery,5105642519,13.05.2020,FNC IWC funded clients,Charges from Independent Providers,662.48,BUCKLAND CARE LTD
Revenue,Adult Services,Adult Social Care,Commissioning & Service Delivery,5105642519,13.05.2020,FNC IWC funded clients,Charges from Independent Providers,662.48,BUCKLAND CARE LTD
Revenue,Adult Services,Adult Social Care,Commissioning & Service Delivery,5105642126,06.05.2020,CHC Interim Funding (FWP),Charges from Independent Providers,"4,827.81",BUCKLAND CARE LTD
Revenue,Adult Services,Adult Social Care,Commissioning & Service Delivery,5105642640,13.05.2020,CHC Interim Funding (FWP),Charges from Independent Providers,"1,327.92",BUCKLAND CARE LTD
Revenue,Adult Services,Adult Social Care,Commissioning & Service Delivery,5105642640,13.05.2020,CHC Interim Funding (FWP),Charges from Independent Providers,"3,218.54",BUCKLAND CARE LTD
Revenue,Adult Services,Adult Social Care,Physical Support - older people (65+),5105642519,13.05.2020,Physical Support Nursing 65+,Charges from Independent Providers,"2,803.64",BUCKLAND CARE LTD
Revenue,Adult Services,Adult Social Care,Physical Support - older people (65+),5105642519,13.05.2020,Physical Support Nursing 65+,Charges from Independent Providers,"2,803.64",BUCKLAND CARE LTD
Revenue,Adult Services,Adult Social Care,Physical Support - older people (65+),5105642519,13.05.2020,Physical Support Nursing 65+,Charges from Independent Providers,"1,802.34",BUCKLAND CARE LTD
Revenue,Adult Services,Adult Social Care,Physical Support - older people (65+),5105642519,13.05.2020,Physical Support Nursing 65+,Charges from Independent Providers,"2,497.32",BUCKLAND CARE LTD
Revenue,Adult Services,Adult Social Care,Physical Support - older people (65+),5105642519,13.05.2020,Physical Support Nursing 65+,Charges from Independent Providers,"2,803.64",BUCKLAND CARE LTD
Revenue,Adult Services,Adult Social Care,Physical Support - older people (65+),5105642519,13.05.2020,Physical Support Nursing 65+,Charges from Independent Providers,"2,803.64",BUCKLAND CARE LTD
Revenue,Adult Services,Adult Social Care,Physical Support - older people (65+),5105642519,13.05.2020,Physical Support Nursing 65+,Charges from Independent Providers,"2,803.64",BUCKLAND CARE LTD
Revenue,Adult Services,Adult Social Care,Commissioning & Service Delivery,5105642519,13.05.2020,CHC Nursing Care,Charges from Independent Providers,"3,466.12",BUCKLAND CARE LTD
Revenue,Adult Services,Adult Social Care,Commissioning & Service Delivery,5105642519,13.05.2020,CHC Nursing Care,Charges from Independent Providers,"3,466.12",BUCKLAND CARE LTD
Revenue,Adult Services,Adult Social Care,Commissioning & Service Delivery,5105642519,13.05.2020,CHC Nursing Care,Charges from Independent Providers,"3,466.12",BUCKLAND CARE LTD
Revenue,Adult Services,Adult Social Care,Commissioning & Service Delivery,5105642519,13.05.2020,CHC Nursing Care,Charges from Independent Providers,"3,466.12",BUCKLAND CARE LTD
Revenue,Adult Services,Adult Social Care,Commissioning & Service Delivery,5105642519,13.05.2020,CHC Nursing Care,Charges from Independent Providers,"3,466.12",BUCKLAND CARE LTD
Revenue,Adult Services,Adult Social Care,Commissioning & Service Delivery,5105642519,13.05.2020,CHC Nursing Care,Charges from Independent Providers,"3,466.12",BUCKLAND CARE LTD
Revenue,Adult Services,Adult Social Care,Commissioning & Service Delivery,5105642519,13.05.2020,CHC Nursing Care,Charges from Independent Providers,"3,466.12",BUCKLAND CARE LTD
Revenue,Adult Services,Adult Social Care,Commissioning & Service Delivery,5105642519,13.05.2020,CHC Nursing Care,Charges from Independent Providers,"3,466.12",BUCKLAND CARE LTD
Revenue,Adult Services,Adult Social Care,Commissioning & Service Delivery,5105642519,13.05.2020,CHC Nursing Care,Charges from Independent Providers,"11,424.00",BUCKLAND CARE LTD
Revenue,Adult Services,Adult Social Care,Physical Support - adults (18-64),5105642180,06.05.2020,Physical Support Nursing 18-64,Charges from Independent Providers,"1,501.95",BUCKLAND CARE LTD
Revenue,Adult Services,Adult Social Care,Physical Support - adults (18-64),5105642180,06.05.2020,Physical Support Nursing 18-64,Charges from Independent Providers,"1,164.72",BUCKLAND CARE LTD
Revenue,Adult Services,Adult Social Care,Physical Support - adults (18-64),5105642519,13.05.2020,Physical Support Nursing 18-64,Charges from Independent Providers,"2,803.64",BUCKLAND CARE LTD
Revenue,Adult Services,Adult Social Care,Support - Memory /Cognition-older people (65+),5105642980,18.05.2020,Memory & Cognition Nursing 65+,Charges from Independent Providers,"2,856.00",BUCKLAND CARE LTD
Revenue,Adult Services,Adult Social Care,Support - Memory /Cognition-older people (65+),5105642980,18.05.2020,Memory & Cognition Nursing 65+,Charges from Independent Providers,"7,509.75",BUCKLAND CARE LTD
Revenue,Adult Services,Adult Social Care,Support - Memory /Cognition-older people (65+),5105642980,18.05.2020,Memory & Cognition Nursing 65+,Charges from Independent Providers,"4,270.64",BUCKLAND CARE LTD
Revenue,Adult Services,Adult Social Care,Physical Support - older people (65+),5105642519,13.05.2020,Physical Support Residential 65+,Charges from Independent Providers,"2,497.32",BUCKLAND CARE LTD
Revenue,Adult Services,Adult Social Care,Support - Memory /Cognition-older people (65+),5105642519,13.05.2020,Memory & Cognition Nursing 65+,Regular Respite Care,"2,803.64",BUCKLAND CARE LTD
Revenue,Adult Services,Adult Social Care,Support - Memory /Cognition-older people (65+),5105643343,22.05.2020,Memory & Cognition Nursing 65+,Charges from Independent Providers,"8,665.50",BUCKLAND CARE LTD
Revenue,Adult Services,Adult Social Care,Support - Memory /Cognition-older people (65+),5105643343,22.05.2020,Memory & Cognition Nursing 65+,Charges from Independent Providers,"13,440.00",BUCKLAND CARE LTD
Revenue,Adult Services,Adult Social Care,Physical Support - older people (65+),5105642542,13.05.2020,Physical Support Nursing 65+,Charges from Independent Providers,"3,800.16",BUPA CARE HOME (BNH) LTD
Revenue,Resources,Central Services,Support Services,5105643721,22.05.2020,ICT Contracts,Computer Software Licencing,"3,774.54",BYTES SOFTWARE SERVICES LTD
Revenue,Resources,Central Services,Support Services,5105643721,22.05.2020,ICT Contracts,Computer Software Licencing,"4,492.32",BYTES SOFTWARE SERVICES LTD
Revenue,Resources,Central Services,Support Services,5105643721,22.05.2020,ICT Contracts,Computer Software Licencing,"5,164.60",BYTES SOFTWARE SERVICES LTD
Revenue,Resources,Central Services,Support Services,5105643721,22.05.2020,ICT Contracts,Computer Software Licencing,"5,308.24",BYTES SOFTWARE SERVICES LTD
Revenue,Childrens Services,Children's & Education Services,Children Looked After,5105643373,22.05.2020,Special Guardianship Order Costs,Support Children,161.49,REDACTED PERSONAL DATA
Revenue,Childrens Services,Children's & Education Services,Children Looked After,5105642290,07.05.2020,Special Guardianship Order Costs,Support Children,161.49,REDACTED PERSONAL DATA
Revenue,Childrens Services,Children's & Education Services,Children Looked After,5105642721,14.05.2020,Special Guardianship Order Costs,Support Children,161.49,REDACTED PERSONAL DATA
Revenue,Childrens Services,Children's & Education Services,Children Looked After,5105643824,28.05.2020,Special Guardianship Order Costs,Support Children,161.49,REDACTED PERSONAL DATA
Revenue,Childrens Services,Children's & Education Services,Children Looked After,5105642321,07.05.2020,Children placed with Family&Friends,Boarding Out Allowances,244.47,REDACTED PERSONAL DATA
Revenue,Childrens Services,Children's & Education Services,Children Looked After,5105643404,22.05.2020,Children placed with Family&Friends,Boarding Out Allowances,244.47,REDACTED PERSONAL DATA
Revenue,Childrens Services,Children's & Education Services,Children Looked After,5105642752,14.05.2020,Children placed with Family&Friends,Boarding Out Allowances,244.47,REDACTED PERSONAL DATA
Revenue,Childrens Services,Children's & Education Services,Children Looked After,5105643854,28.05.2020,Children placed with Family&Friends,Boarding Out Allowances,244.47,REDACTED PERSONAL DATA
Revenue,Childrens Services,Children's & Education Services,Children Looked After,5105642743,14.05.2020,Adoption Costs,Support Children,161.49,REDACTED PERSONAL DATA
Revenue,Childrens Services,Children's & Education Services,Children Looked After,5105642743,14.05.2020,Adoption Costs,Support Children,168.09,REDACTED PERSONAL DATA
Revenue,Childrens Services,Children's & Education Services,Children Looked After,5105643395,22.05.2020,Adoption Costs,Support Children,161.49,REDACTED PERSONAL DATA
Revenue,Childrens Services,Children's & Education Services,Children Looked After,5105643395,22.05.2020,Adoption Costs,Support Children,168.09,REDACTED PERSONAL DATA
Revenue,Childrens Services,Children's & Education Services,Children Looked After,5105643845,28.05.2020,Adoption Costs,Support Children,161.49,REDACTED PERSONAL DATA
Revenue,Childrens Services,Children's & Education Services,Children Looked After,5105643845,28.05.2020,Adoption Costs,Support Children,168.09,REDACTED PERSONAL DATA
Revenue,Childrens Services,Children's & Education Services,Children Looked After,5105642312,07.05.2020,Adoption Costs,Support Children,161.49,REDACTED PERSONAL DATA
Revenue,Childrens Services,Children's & Education Services,Children Looked After,5105642312,07.05.2020,Adoption Costs,Support Children,168.09,REDACTED PERSONAL DATA
Revenue,Resources,Central Services,Support Services,5105643685,22.05.2020,Staff Benefits,Payment to Private Contractors,159.05,REDACTED PERSONAL DATA
Revenue,Childrens Services,Children's & Education Services,Children Looked After,5105643381,22.05.2020,Special Guardianship Order Costs,Support Children,125.39,REDACTED PERSONAL DATA
Revenue,Childrens Services,Children's & Education Services,Children Looked After,5105642298,07.05.2020,Special Guardianship Order Costs,Support Children,125.39,REDACTED PERSONAL DATA
Revenue,Childrens Services,Children's & Education Services,Children Looked After,5105642729,14.05.2020,Special Guardianship Order Costs,Support Children,125.39,REDACTED PERSONAL DATA
Revenue,Childrens Services,Children's & Education Services,Children Looked After,5105643832,28.05.2020,Special Guardianship Order Costs,Support Children,125.39,REDACTED PERSONAL DATA
Revenue,Childrens Services,Children's & Education Services,Children Looked After,5105642750,14.05.2020,In-house Fostering,Boarding Out Allowances,332.69,REDACTED PERSONAL DATA
Revenue,Childrens Services,Children's & Education Services,Children Looked After,5105642750,14.05.2020,In-house Fostering,Boarding Out Allowances,286.47,REDACTED PERSONAL DATA
Revenue,Childrens Services,Children's & Education Services,Children Looked After,5105642750,14.05.2020,In-house Fostering,Boarding Out Allowances,244.47,REDACTED PERSONAL DATA
Revenue,Childrens Services,Children's & Education Services,Children Looked After,5105642750,14.05.2020,In-house Fostering,Boarding Out Allowances,244.47,REDACTED PERSONAL DATA
Revenue,Childrens Services,Children's & Education Services,Children Looked After,5105643852,28.05.2020,In-house Fostering,Boarding Out Allowances,332.69,REDACTED PERSONAL DATA
Revenue,Childrens Services,Children's & Education Services,Children Looked After,5105643852,28.05.2020,In-house Fostering,Boarding Out Allowances,286.47,REDACTED PERSONAL DATA
Revenue,Childrens Services,Children's & Education Services,Children Looked After,5105643852,28.05.2020,In-house Fostering,Boarding Out Allowances,244.47,REDACTED PERSONAL DATA
Revenue,Childrens Services,Children's & Education Services,Children Looked After,5105643852,28.05.2020,In-house Fostering,Boarding Out Allowances,244.47,REDACTED PERSONAL DATA
Revenue,Childrens Services,Children's & Education Services,Children Looked After,5105642319,07.05.2020,In-house Fostering,Boarding Out Allowances,332.69,REDACTED PERSONAL DATA
Revenue,Childrens Services,Children's & Education Services,Children Looked After,5105642319,07.05.2020,In-house Fostering,Boarding Out Allowances,286.47,REDACTED PERSONAL DATA
Revenue,Childrens Services,Children's & Education Services,Children Looked After,5105642319,07.05.2020,In-house Fostering,Boarding Out Allowances,244.47,REDACTED PERSONAL DATA
Revenue,Childrens Services,Children's & Education Services,Children Looked After,5105642319,07.05.2020,In-house Fostering,Boarding Out Allowances,244.47,REDACTED PERSONAL DATA
Revenue,Childrens Services,Children's & Education Services,Children Looked After,5105643402,22.05.2020,In-house Fostering,Boarding Out Allowances,332.69,REDACTED PERSONAL DATA
Revenue,Childrens Services,Children's & Education Services,Children Looked After,5105643402,22.05.2020,In-house Fostering,Boarding Out Allowances,286.47,REDACTED PERSONAL DATA
Revenue,Childrens Services,Children's & Education Services,Children Looked After,5105643402,22.05.2020,In-house Fostering,Boarding Out Allowances,244.47,REDACTED PERSONAL DATA
Revenue,Childrens Services,Children's & Education Services,Children Looked After,5105643402,22.05.2020,In-house Fostering,Boarding Out Allowances,244.47,REDACTED PERSONAL DATA
Revenue,Childrens Services,Children's & Education Services,Children Looked After,5105642765,14.05.2020,Special Guardianship Order Costs,Support Children,218.65,REDACTED PERSONAL DATA
Revenue,Childrens Services,Children's & Education Services,Children Looked After,5105643417,22.05.2020,Special Guardianship Order Costs,Support Children,218.65,REDACTED PERSONAL DATA
Revenue,Childrens Services,Children's & Education Services,Children Looked After,5105642334,07.05.2020,Special Guardianship Order Costs,Support Children,218.65,REDACTED PERSONAL DATA
Revenue,Childrens Services,Children's & Education Services,Children Looked After,5105643866,28.05.2020,Special Guardianship Order Costs,Support Children,218.65,REDACTED PERSONAL DATA
Revenue,Childrens Services,Children's & Education Services,Children Looked After,5105643361,22.05.2020,In-house Fostering,Boarding Out Allowances,332.69,REDACTED PERSONAL DATA
Revenue,Childrens Services,Children's & Education Services,Children Looked After,5105642709,14.05.2020,In-house Fostering,Boarding Out Allowances,332.69,REDACTED PERSONAL DATA
Revenue,Childrens Services,Children's & Education Services,Children Looked After,5105643812,28.05.2020,In-house Fostering,Boarding Out Allowances,332.69,REDACTED PERSONAL DATA
Revenue,Childrens Services,Children's & Education Services,Children Looked After,5105642278,07.05.2020,In-house Fostering,Boarding Out Allowances,332.69,REDACTED PERSONAL DATA
Revenue,Childrens Services,Children's & Education Services,Children Looked After,5105642715,14.05.2020,In-house Fostering,Boarding Out Allowances,316.19,REDACTED PERSONAL DATA
Revenue,Childrens Services,Children's & Education Services,Children Looked After,5105642284,07.05.2020,In-house Fostering,Boarding Out Allowances,316.19,REDACTED PERSONAL DATA
Revenue,Childrens Services,Children's & Education Services,Children Looked After,5105643367,22.05.2020,In-house Fostering,Boarding Out Allowances,316.19,REDACTED PERSONAL DATA
Revenue,Childrens Services,Children's & Education Services,Children Looked After,5105643818,28.05.2020,In-house Fostering,Boarding Out Allowances,316.19,REDACTED PERSONAL DATA
Revenue,Childrens Services,Children's & Education Services,Children Looked After,5105643356,22.05.2020,In-house Fostering,Boarding Out Allowances,332.69,REDACTED PERSONAL DATA
Revenue,Childrens Services,Children's & Education Services,Children Looked After,5105642704,14.05.2020,In-house Fostering,Boarding Out Allowances,332.69,REDACTED PERSONAL DATA
Revenue,Childrens Services,Children's & Education Services,Children Looked After,5105643807,28.05.2020,In-house Fostering,Boarding Out Allowances,332.69,REDACTED PERSONAL DATA
Revenue,Childrens Services,Children's & Education Services,Children Looked After,5105642273,07.05.2020,In-house Fostering,Boarding Out Allowances,286.47,REDACTED PERSONAL DATA
Revenue,Childrens Services,Children's & Education Services,Children Looked After,5105642826,14.05.2020,Special Guardianship Order Costs,Support Children,193.73,REDACTED PERSONAL DATA
Revenue,Childrens Services,Children's & Education Services,Children Looked After,5105643478,22.05.2020,Special Guardianship Order Costs,Support Children,193.73,REDACTED PERSONAL DATA
Revenue,Childrens Services,Children's & Education Services,Children Looked After,5105643927,28.05.2020,Special Guardianship Order Costs,Support Children,193.73,REDACTED PERSONAL DATA
Revenue,Childrens Services,Children's & Education Services,Children Looked After,5105642395,07.05.2020,Special Guardianship Order Costs,Support Children,193.73,REDACTED PERSONAL DATA
Revenue,Childrens Services,Children's & Education Services,Children Looked After,5105643390,22.05.2020,Special Guardianship Order Costs,Support Children,200.83,REDACTED PERSONAL DATA
Revenue,Childrens Services,Children's & Education Services,Children Looked After,5105642738,14.05.2020,Special Guardianship Order Costs,Support Children,200.83,REDACTED PERSONAL DATA
Revenue,Childrens Services,Children's & Education Services,Children Looked After,5105642307,07.05.2020,Special Guardianship Order Costs,Support Children,200.83,REDACTED PERSONAL DATA
Revenue,Childrens Services,Children's & Education Services,Children Looked After,5105643841,28.05.2020,Special Guardianship Order Costs,Support Children,200.83,REDACTED PERSONAL DATA
Revenue,Childrens Services,Children's & Education Services,Children Looked After,5105642719,14.05.2020,Adoption Costs,Support Children,168.39,REDACTED PERSONAL DATA
Revenue,Childrens Services,Children's & Education Services,Children Looked After,5105642288,07.05.2020,Adoption Costs,Support Children,168.39,REDACTED PERSONAL DATA
Revenue,Childrens Services,Children's & Education Services,Children Looked After,5105643822,28.05.2020,Adoption Costs,Support Children,168.39,REDACTED PERSONAL DATA
Revenue,Childrens Services,Children's & Education Services,Children Looked After,5105643371,22.05.2020,Adoption Costs,Support Children,168.39,REDACTED PERSONAL DATA
Revenue,Adult Services,Adult Social Care,Assistive Equipment & Technology,5105643041,22.05.2020,Wightcare,Operational Equipment,756.00,CAIR (UK) LTD
Revenue,Childrens Services,Children's & Education Services,Other Education and Community Budget,5105642248,15.05.2020,Learning & Development Running Costs,Gas,14.71,CALOR GAS LIMITED
Revenue,Childrens Services,Children's & Education Services,Other Education and Community Budget,5105643697,28.05.2020,Learning & Development Running Costs,Gas,571.41,CALOR GAS LIMITED
Revenue,Childrens Services,Children's & Education Services,Post-16 Provision,5105641440,22.05.2020,Post 16 Independ. & Non-Maint. Special Schls & Independ. Specialist Provision,Charges from Independent Providers,"11,416.31",CAMBIAN ASPERGER SYNDROME SERVICES LTD
Revenue,Adult Services,Adult Social Care,Mental Health Support - adults (18-64),5105641440,22.05.2020,Mental Health Residential 18-64,Charges from Independent Providers,"26,769.29",CAMBIAN ASPERGER SYNDROME SERVICES LTD
Revenue,Adult Services,Adult Social Care,Mental Health Support - adults (18-64),5105641440,22.05.2020,Mental Health Residential 18-64,Charges from Independent Providers,"1,181.00",CAMBIAN ASPERGER SYNDROME SERVICES LTD
Revenue,Childrens Services,Children's & Education Services,Management & Support Services,5105642920,15.05.2020,Pre 16 Independ. & Non-Maint. Special Schls & Independ. Specialist Provision,Charges from Independent Providers,"3,542.99",CAMBIAN CHILDCARE LTD
Revenue,Childrens Services,Children's & Education Services,Children Looked After,5105643013,18.05.2020,Purchased Residential,Charges from Independent Providers,"17,492.99",CAMBIAN CHILDCARE LTD
Capital,Resources,Capital,Capital,5105642097,07.05.2020,Server Farm,ICT Hardware & Software - Capital,"56,170.00",CAPITA BUSINESS SERVICES LTD
Revenue,Childrens Services,Children's & Education Services,Other Education and Community Budget,5105642097,07.05.2020,Workforce Development - Early Years,Computer Software Licencing,"3,493.46",CAPITA BUSINESS SERVICES LTD
Revenue,Childrens Services,Children's & Education Services,Family Support Services,5105642957,15.05.2020,Reducing Parental Conflict Programme,Training,"4,121.62",CAPITA BUSINESS SERVICES
Revenue,Childrens Services,Children's & Education Services,Family Support Services,5105643171,19.05.2020,Short Breaks,Charges from Independent Providers,"1,130.00",CARE CONNECT IOW CIC
Revenue,Childrens Services,Children's & Education Services,Family Support Services,5105643174,19.05.2020,Short Breaks,Charges from Independent Providers,219.04,CARE CONNECT IOW CIC
Revenue,Public Health,Public Health,NHS Health Check Programme,5105642649,13.05.2020,NHS Health Check Programme P,Payment to Private Contractors,-97.00,CARISBROOKE HEALTH CENTRE
Revenue,Public Health,Public Health,Sexual Health,5105641806,13.05.2020,Long Acting Reversible Contraception,Payment to Private Contractors,"3,240.00",CARISBROOKE HEALTH CENTRE
Revenue,Childrens Services,Children's & Education Services,Family Support Services,5105644065,29.05.2020,Short Breaks,Charges from Independent Providers,163.83,REDACTED PERSONAL DATA
Revenue,Neighbourhoods,Environmental & Regulatory Services,Service Management and Support Services,5105642877,18.05.2020,Waste Contract Management,Consultants Fees,"14,425.00",CENEX
Revenue,Resources,Central Services,Support Services,5105642076,04.05.2020,ICT Contracts,Computer Software Licencing,990.90,CENTERPRISE INTERNATIONAL LTD
Revenue,Resources,Central Services,Support Services,5105642078,07.05.2020,ICT Contracts,Computer Software Licencing,"1,890.00",CENTERPRISE INTERNATIONAL LTD
Revenue,Resources,Central Services,Support Services,5105643602,22.05.2020,ICT Contracts,Computer Software Licencing,"1,890.00",CENTERPRISE INTERNATIONAL LTD
Revenue,Resources,Central Services,Support Services,5105642173,07.05.2020,ICT Cloud Costs,Computer Software Licencing,"4,357.80",CENTERPRISE INTERNATIONAL LTD
Revenue,Resources,Central Services,Support Services,5105643010,19.05.2020,ICT Cloud Costs,Computer Software Licencing,-611.55,CENTERPRISE INTERNATIONAL LTD
Revenue,Resources,Central Services,Support Services,5105643015,19.05.2020,ICT Cloud Costs,Computer Software Licencing,611.55,CENTERPRISE INTERNATIONAL LTD
Revenue,Childrens Services,Children's & Education Services,Special Schools & Alternative Provision,5105643530,22.05.2020,Island Learning Centre,Schools Learning Resources (not ICT),36.00,CO-ORDINATION GROUP PUBLICATIONS
Capital,Place,Capital,Capital,5105643040,18.05.2020,Coastal Capital Schemes,External Design and Supervision Fees,"3,200.00",CH2M HILL UNITED KINGDOM LTD
Revenue,Neighbourhoods,Cultural and Related Services,Open Spaces,5105639616,14.05.2020,Client Management Unit - Grounds Maintenance,Vehicle Maintenance Costs,11.50,CHAMELEON CODEWING LTD
Revenue,Neighbourhoods,Cultural and Related Services,Open Spaces,5105642624,13.05.2020,Client Management Unit - Grounds Maintenance,Vehicle Maintenance Costs,11.50,CHAMELEON CODEWING LTD
Revenue,Neighbourhoods,Highways and Transport Services,Management and Support Services,5105639616,14.05.2020,Highways PFI Project,Vehicle Maintenance Costs,11.50,CHAMELEON CODEWING LTD
Revenue,Neighbourhoods,Highways and Transport Services,Management and Support Services,5105642624,13.05.2020,Highways PFI Project,Vehicle Maintenance Costs,11.50,CHAMELEON CODEWING LTD
Revenue,Neighbourhoods,Cultural and Related Services,Open Spaces,5105639616,14.05.2020,Rights of Way Operations,Vehicle Maintenance Costs,11.50,CHAMELEON CODEWING LTD
Revenue,Neighbourhoods,Cultural and Related Services,Open Spaces,5105642624,13.05.2020,Rights of Way Operations,Vehicle Maintenance Costs,11.50,CHAMELEON CODEWING LTD
Revenue,Neighbourhoods,Environmental & Regulatory Services,Service Management and Support Services,5105642624,13.05.2020,Environment officers,Vehicle Maintenance Costs,11.50,CHAMELEON CODEWING LTD
Revenue,Neighbourhoods,Environmental & Regulatory Services,Service Management and Support Services,5105639616,14.05.2020,Environment officers,Vehicle Maintenance Costs,11.50,CHAMELEON CODEWING LTD
Revenue,Adult Services,Adult Social Care,Central Codes (to be reallocated),5105639616,14.05.2020,Community Reablement,Vehicle Maintenance Costs,11.50,CHAMELEON CODEWING LTD
Revenue,Adult Services,Adult Social Care,Central Codes (to be reallocated),5105639616,14.05.2020,Community Reablement,Vehicle Maintenance Costs,11.50,CHAMELEON CODEWING LTD
Revenue,Adult Services,Adult Social Care,Central Codes (to be reallocated),5105642624,13.05.2020,Community Reablement,Vehicle Maintenance Costs,11.50,CHAMELEON CODEWING LTD
Revenue,Adult Services,Adult Social Care,Central Codes (to be reallocated),5105642624,13.05.2020,Community Reablement,Vehicle Maintenance Costs,11.50,CHAMELEON CODEWING LTD
Revenue,Resources,Highways and Transport Services,Public Transport,5105639616,14.05.2020,Transport Fleet Administration,Vehicle Maintenance Costs,11.50,CHAMELEON CODEWING LTD
Revenue,Resources,Highways and Transport Services,Public Transport,5105639616,14.05.2020,Transport Fleet Administration,Vehicle Maintenance Costs,11.50,CHAMELEON CODEWING LTD
Revenue,Resources,Highways and Transport Services,Public Transport,5105639616,14.05.2020,Transport Fleet Administration,Vehicle Maintenance Costs,11.50,CHAMELEON CODEWING LTD
Revenue,Resources,Highways and Transport Services,Public Transport,5105639616,14.05.2020,Transport Fleet Administration,Vehicle Maintenance Costs,11.50,CHAMELEON CODEWING LTD
Revenue,Resources,Highways and Transport Services,Public Transport,5105639616,14.05.2020,Transport Fleet Administration,Vehicle Maintenance Costs,11.50,CHAMELEON CODEWING LTD
Revenue,Resources,Highways and Transport Services,Public Transport,5105642624,13.05.2020,Transport Fleet Administration,Vehicle Maintenance Costs,11.50,CHAMELEON CODEWING LTD
Revenue,Resources,Highways and Transport Services,Public Transport,5105642624,13.05.2020,Transport Fleet Administration,Vehicle Maintenance Costs,11.50,CHAMELEON CODEWING LTD
Revenue,Resources,Highways and Transport Services,Public Transport,5105642624,13.05.2020,Transport Fleet Administration,Vehicle Maintenance Costs,11.50,CHAMELEON CODEWING LTD
Revenue,Resources,Highways and Transport Services,Public Transport,5105642624,13.05.2020,Transport Fleet Administration,Vehicle Maintenance Costs,11.50,CHAMELEON CODEWING LTD
Revenue,Resources,Highways and Transport Services,Public Transport,5105642624,13.05.2020,Transport Fleet Administration,Vehicle Maintenance Costs,11.50,CHAMELEON CODEWING LTD
Revenue,Neighbourhoods,Cultural and Related Services,Recreation and Sport,5105639616,14.05.2020,Commercial Sales Team,Vehicle Maintenance Costs,11.50,CHAMELEON CODEWING LTD
Revenue,Neighbourhoods,Cultural and Related Services,Recreation and Sport,5105642624,13.05.2020,Commercial Sales Team,Vehicle Maintenance Costs,11.50,CHAMELEON CODEWING LTD
Revenue,Neighbourhoods,Highways and Transport Services,"Airports, Harbours & Toll Facilities",5105642624,13.05.2020,Newport Harbour Account,Vehicle Maintenance Costs,11.50,CHAMELEON CODEWING LTD
Revenue,Neighbourhoods,Highways and Transport Services,"Airports, Harbours & Toll Facilities",5105639616,14.05.2020,Newport Harbour Account,Vehicle Maintenance Costs,11.50,CHAMELEON CODEWING LTD
Revenue,Adult Services,Adult Social Care,Central Codes (to be reallocated),5105639616,14.05.2020,Onwards Care & Independence,Vehicle Maintenance Costs,11.50,CHAMELEON CODEWING LTD
Revenue,Adult Services,Adult Social Care,Central Codes (to be reallocated),5105642624,13.05.2020,Onwards Care & Independence,Vehicle Maintenance Costs,11.50,CHAMELEON CODEWING LTD
Revenue,Neighbourhoods,Highways and Transport Services,Parking Services,5105639616,14.05.2020,Off-Street Parking Operations,Vehicle Maintenance Costs,11.50,CHAMELEON CODEWING LTD
Revenue,Neighbourhoods,Highways and Transport Services,Parking Services,5105639616,14.05.2020,Off-Street Parking Operations,Vehicle Maintenance Costs,11.50,CHAMELEON CODEWING LTD
Revenue,Neighbourhoods,Highways and Transport Services,Parking Services,5105642624,13.05.2020,Off-Street Parking Operations,Vehicle Maintenance Costs,11.50,CHAMELEON CODEWING LTD
Revenue,Neighbourhoods,Highways and Transport Services,Parking Services,5105642624,13.05.2020,Off-Street Parking Operations,Vehicle Maintenance Costs,11.50,CHAMELEON CODEWING LTD
Revenue,Adult Services,Adult Social Care,Commissioning & Service Delivery,5105643206,20.05.2020,ASC County Hall office costs,Professional Services,30.00,CHANT LOCK & SECURITY SERVICE
Revenue,Adult Services,Adult Social Care,Central Codes (to be reallocated),5105643166,19.05.2020,Gouldings Resource Centre,Catering Purchases,91.30,CHAPEL NURSERIES
Revenue,Adult Services,Adult Social Care,Central Codes (to be reallocated),5105643038,18.05.2020,Gouldings Resource Centre,Catering Purchases,44.10,CHAPEL NURSERIES
Revenue,Adult Services,Adult Social Care,Central Codes (to be reallocated),5105642255,07.05.2020,Gouldings Resource Centre,Catering Purchases,105.40,CHAPEL NURSERIES
Revenue,Resources,Central Services,Support Services,5105644064,29.05.2020,Litigation Costs,Legal Fees - Other Parties,500.00,COLLEGE CHAMBERS BARRISTERS
Revenue,Resources,Central Services,Support Services,5105643671,22.05.2020,Staff Benefits,Payment to Private Contractors,124.00,CHATTERBOX NURSERY LTD
Revenue,Adult Services,Adult Social Care,Support - Memory /Cognition-older people (65+),5105642560,13.05.2020,Memory & Cognition Residential 65+,Charges from Independent Providers,"3,000.20",CHD CARE LTD
Revenue,Adult Services,Adult Social Care,Support - Memory /Cognition-older people (65+),5105642560,13.05.2020,Memory & Cognition Residential 65+,Charges from Independent Providers,405.16,CHD CARE LTD
Revenue,Resources,Central Services,Support Services,5105643663,22.05.2020,Staff Benefits,Payment to Private Contractors,5.00,CHEEKY CHIMPS CHILDCARE
Revenue,Neighbourhoods,Highways and Transport Services,"Airports, Harbours & Toll Facilities",5105643108,19.05.2020,Ventnor Haven - General,Payment to Private Contractors,"6,260.08",CHEETAH MARINE LLP
Revenue,Neighbourhoods,Highways and Transport Services,"Airports, Harbours & Toll Facilities",5105643110,22.05.2020,Ventnor Haven - General,Payment to Private Contractors,"6,260.08",CHEETAH MARINE LLP
Revenue,Childrens Services,Children's & Education Services,Children Looked After,5105642857,14.05.2020,Children placed with Family&Friends,Boarding Out Allowances,244.47,REDACTED PERSONAL DATA
Revenue,Childrens Services,Children's & Education Services,Children Looked After,5105642426,07.05.2020,Children placed with Family&Friends,Boarding Out Allowances,244.47,REDACTED PERSONAL DATA
Revenue,Childrens Services,Children's & Education Services,Children Looked After,5105643956,28.05.2020,Children placed with Family&Friends,Boarding Out Allowances,244.47,REDACTED PERSONAL DATA
Revenue,Childrens Services,Children's & Education Services,Children Looked After,5105643510,22.05.2020,Children placed with Family&Friends,Boarding Out Allowances,244.47,REDACTED PERSONAL DATA
Revenue,Adult Services,Adult Social Care,Support - Memory /Cognition-older people (65+),5105642494,13.05.2020,Memory & Cognition Residential 65+,Charges from Independent Providers,"2,028.32",CHERRY TREES I.W. LTD
Revenue,Adult Services,Central Services,Emergency Planning,5105642469,13.05.2020,NHS C19 Residential,Charges from Independent Providers,"3,934.44",CHERRY TREES I.W. LTD
Revenue,Adult Services,Central Services,Emergency Planning,5105642469,13.05.2020,NHS C19 Residential,Charges from Independent Providers,"3,934.44",CHERRY TREES I.W. LTD
Revenue,Adult Services,Central Services,Emergency Planning,5105642469,13.05.2020,NHS C19 Residential,Charges from Independent Providers,"3,934.44",CHERRY TREES I.W. LTD
Revenue,Adult Services,Central Services,Emergency Planning,5105642469,13.05.2020,NHS C19 Residential,Charges from Independent Providers,"3,934.44",CHERRY TREES I.W. LTD
Revenue,Adult Services,Central Services,Emergency Planning,5105642494,13.05.2020,NHS C19 Residential,Charges from Independent Providers,"2,622.96",CHERRY TREES I.W. LTD
Revenue,Adult Services,Central Services,Emergency Planning,5105642494,13.05.2020,NHS C19 Residential,Charges from Independent Providers,"2,622.96",CHERRY TREES I.W. LTD
Revenue,Adult Services,Central Services,Emergency Planning,5105642494,13.05.2020,NHS C19 Residential,Charges from Independent Providers,"2,622.96",CHERRY TREES I.W. LTD
Revenue,Adult Services,Central Services,Emergency Planning,5105642494,13.05.2020,NHS C19 Residential,Charges from Independent Providers,"2,622.96",CHERRY TREES I.W. LTD
Revenue,Adult Services,Adult Social Care,Physical Support - older people (65+),5105642494,13.05.2020,Physical Support Residential 65+,Charges from Independent Providers,"2,028.32",CHERRY TREES I.W. LTD
Revenue,Adult Services,Adult Social Care,Physical Support - older people (65+),5105642494,13.05.2020,Physical Support Residential 65+,Charges from Independent Providers,"2,124.08",CHERRY TREES I.W. LTD
Revenue,Adult Services,Adult Social Care,Physical Support - older people (65+),5105642494,13.05.2020,Physical Support Residential 65+,Charges from Independent Providers,"2,028.32",CHERRY TREES I.W. LTD
Revenue,Adult Services,Adult Social Care,Physical Support - older people (65+),5105642494,13.05.2020,Physical Support Residential 65+,Charges from Independent Providers,"2,028.32",CHERRY TREES I.W. LTD
Revenue,Adult Services,Adult Social Care,Physical Support - older people (65+),5105642494,13.05.2020,Physical Support Residential 65+,Charges from Independent Providers,"2,028.32",CHERRY TREES I.W. LTD
Revenue,Adult Services,Adult Social Care,Physical Support - older people (65+),5105642494,13.05.2020,Physical Support Residential 65+,Charges from Independent Providers,"2,028.32",CHERRY TREES I.W. LTD
Revenue,Adult Services,Adult Social Care,Physical Support - older people (65+),5105642494,13.05.2020,Physical Support Residential 65+,Charges from Independent Providers,"2,028.32",CHERRY TREES I.W. LTD
Revenue,Childrens Services,Children's & Education Services,Children Looked After,5105642675,14.05.2020,Children placed with Family&Friends,Support Children,"1,875.00",CHILDREN & FAMILIES ACROSS BORDERS
Revenue,Childrens Services,Children's & Education Services,Children Looked After,5105642676,14.05.2020,Children placed with Family&Friends,Support Children,192.82,CHILDREN & FAMILIES ACROSS BORDERS
Revenue,Resources,Central Services,Support Services,5105643666,22.05.2020,Staff Benefits,Payment to Private Contractors,72.00,CHILLERTON & ROOKLEY CP SCHOOL
Revenue,Resources,Central Services,Support Services,5105643666,22.05.2020,Staff Benefits,Payment to Private Contractors,10.00,CHILLERTON & ROOKLEY CP SCHOOL
Revenue,Adult Services,Adult Social Care,Commissioning & Service Delivery,5105642575,13.05.2020,CHC Residential Care,Charges from Independent Providers,"11,537.68",CHOICE CARE (WOODLANDS)
Revenue,Adult Services,Adult Social Care,Commissioning & Service Delivery,5105642476,13.05.2020,CHC Residential Care,Charges from Independent Providers,627.92,CHOICE CARE (WOODLANDS)
Revenue,Adult Services,Adult Social Care,Learning Disability Suppt-adults (18-64),5105642940,15.05.2020,Learning Disability Residential 18-64,Charges from Independent Providers,615.00,CHOICE LTD
Revenue,Adult Services,Adult Social Care,Learning Disability Suppt-adults (18-64),5105642562,13.05.2020,Learning Disability Residential 18-64,Charges from Independent Providers,"6,846.84",CHOICE LTD
Revenue,Resources,Central Services,Central Services to the Public,5105643151,19.05.2020,Elections,Printing Costs,"2,661.72",ELECTORAL REFORM SERVICES
Revenue,Resources,Central Services,Central Services to the Public,5105642075,04.05.2020,Elections,Printing Costs,"1,105.11",ELECTORAL REFORM SERVICES
Revenue,Fire & Rescue,Fire & Rescue Services,Fire fighting and Rescue Operations,5105642040,04.05.2020,Fire Operations,Computer Software Licencing,"4,000.00",CIVICA UK LTD
Revenue,Fire & Rescue,Fire & Rescue Services,Fire fighting and Rescue Operations,5105642040,04.05.2020,Fire Operations,Computer Software Licencing,"4,000.00",CIVICA UK LTD
Revenue,Fire & Rescue,Fire & Rescue Services,Fire fighting and Rescue Operations,5105642040,04.05.2020,Fire Operations,Computer Software Licencing,"1,613.00",CIVICA UK LTD
Capital,Resources,Capital,Capital,5105643092,19.05.2020,Capital Receipts,Legal Fees - Other Parties,850.00,CLARKE WILLMOTT LLP
Capital,Resources,Capital,Capital,5105643093,19.05.2020,Capital Receipts,Legal Fees - Other Parties,962.00,CLARKE WILLMOTT LLP
Capital,Place,Capital,Capital,5105642586,13.05.2020,Bus Infrastructure,External Design and Supervision Fees,"1,100.00",CLARKE WILLMOTT LLP
Revenue,Childrens Services,Children's & Education Services,Children Looked After,5105642641,13.05.2020,Leaving Care Costs,Support Children,375.00,COASTAL PROPERTY
Revenue,Adult Services,Adult Social Care,Social Care Activities,5105643521,22.05.2020,DoLS/MCA,Legal Fees - Other Parties,"1,600.00",COFFIN MEW
Revenue,Adult Services,Adult Social Care,Support - Memory /Cognition-older people (65+),5105642558,13.05.2020,Memory & Cognition Residential 65+,Charges from Independent Providers,"2,698.36",REDACTED PERSONAL DATA
Revenue,Resources,Adult Social Care,Information & Early Intervention,5105642243,18.05.2020,Voluntary & Community Sector,Payments to Voluntary and Other Associations,"19,500.00",COMMUNITY ACTION ISLE OF WIGHT
Capital,Adult Services,Capital,Capital,5105643338,26.05.2020,S106 Capital Projects,External Design and Supervision Fees,"1,845.95",COMMUNITY ACTION ISLE OF WIGHT
Revenue,Resources,Central Services,Support Services,5105641909,14.05.2020,ICT Contracts,Computer Maintenance,500.00,CONDECO LTD
Revenue,Resources,Central Services,Support Services,5105641909,14.05.2020,ICT Contracts,Computer Maintenance,"3,500.00",CONDECO LTD
Revenue,Resources,Highways and Transport Services,Off Street Parking,5105641566,01.05.2020,Parking Services,Professional Services,102.80,SPUR INFORMATION SOLUTIONS LTD
Revenue,Neighbourhoods,Cultural and Related Services,Recreation and Sport,5105638929,14.05.2020,Medina Leisure Centre,Clothing & Laundry,10.90,CONTEGO SAFETY SOLUTIONS LTD
Revenue,Neighbourhoods,Cultural and Related Services,Recreation and Sport,5105638929,14.05.2020,Medina Leisure Centre,Clothing & Laundry,26.18,CONTEGO SAFETY SOLUTIONS LTD
Revenue,Neighbourhoods,Cultural and Related Services,Recreation and Sport,5105638929,14.05.2020,Medina Leisure Centre,Clothing & Laundry,12.95,CONTEGO SAFETY SOLUTIONS LTD
Revenue,Neighbourhoods,Cultural and Related Services,Recreation and Sport,5105638929,14.05.2020,Medina Leisure Centre,Clothing & Laundry,12.95,CONTEGO SAFETY SOLUTIONS LTD
Revenue,Adult Services,Adult Social Care,Central Codes (to be reallocated),5105642024,04.05.2020,Community Reablement,Clothing & Laundry,67.60,CONTEGO SAFETY SOLUTIONS LTD
Revenue,Adult Services,Adult Social Care,Central Codes (to be reallocated),5105642024,04.05.2020,Community Reablement,Clothing & Laundry,67.60,CONTEGO SAFETY SOLUTIONS LTD
Revenue,Adult Services,Adult Social Care,Central Codes (to be reallocated),5105643163,19.05.2020,Community Reablement,Clothing & Laundry,50.70,CONTEGO SAFETY SOLUTIONS LTD
Revenue,Adult Services,Adult Social Care,Central Codes (to be reallocated),5105643163,19.05.2020,Community Reablement,Clothing & Laundry,16.90,CONTEGO SAFETY SOLUTIONS LTD
Revenue,Adult Services,Adult Social Care,Central Codes (to be reallocated),5105643163,19.05.2020,Community Reablement,Clothing & Laundry,16.90,CONTEGO SAFETY SOLUTIONS LTD
Revenue,Adult Services,Adult Social Care,Central Codes (to be reallocated),5105643163,19.05.2020,Community Reablement,Clothing & Laundry,33.80,CONTEGO SAFETY SOLUTIONS LTD
Revenue,Adult Services,Adult Social Care,Central Codes (to be reallocated),5105643163,19.05.2020,Community Reablement,Clothing & Laundry,67.60,CONTEGO SAFETY SOLUTIONS LTD
Revenue,Adult Services,Adult Social Care,Assistive Equipment & Technology,5105643049,19.05.2020,Wightcare,Clothing & Laundry,187.00,CONTEGO SAFETY SOLUTIONS LTD
Revenue,Adult Services,Adult Social Care,Central Codes (to be reallocated),5105642024,04.05.2020,Community Reablement,Clothing & Laundry,21.40,CONTEGO SAFETY SOLUTIONS LTD
Revenue,Adult Services,Adult Social Care,Central Codes (to be reallocated),5105642024,04.05.2020,Community Reablement,Clothing & Laundry,67.60,CONTEGO SAFETY SOLUTIONS LTD
Revenue,Adult Services,Adult Social Care,Central Codes (to be reallocated),5105642024,04.05.2020,Community Reablement,Clothing & Laundry,21.40,CONTEGO SAFETY SOLUTIONS LTD
Revenue,Adult Services,Adult Social Care,Central Codes (to be reallocated),5105643163,19.05.2020,Community Reablement,Clothing & Laundry,50.70,CONTEGO SAFETY SOLUTIONS LTD
Revenue,Adult Services,Adult Social Care,Central Codes (to be reallocated),5105643163,19.05.2020,Community Reablement,Clothing & Laundry,33.80,CONTEGO SAFETY SOLUTIONS LTD
Revenue,Adult Services,Central Services,Central Services to the Public,5105640807,07.05.2020,AS Covid-19 (Adults),Operational Equipment,50.40,CONTEGO SAFETY SOLUTIONS LTD
Revenue,Adult Services,Central Services,Central Services to the Public,5105641437,18.05.2020,AS Covid-19 (Adults),Operational Equipment,"5,970.00",CONTEGO SAFETY SOLUTIONS LTD
Revenue,Adult Services,Central Services,Central Services to the Public,5105641877,06.05.2020,AS Covid-19 (Adults),Clothing & Laundry,135.20,CONTEGO SAFETY SOLUTIONS LTD
Revenue,Adult Services,Central Services,Central Services to the Public,5105641877,06.05.2020,AS Covid-19 (Adults),Clothing & Laundry,42.80,CONTEGO SAFETY SOLUTIONS LTD
Revenue,Adult Services,Central Services,Central Services to the Public,5105641877,06.05.2020,AS Covid-19 (Adults),Clothing & Laundry,169.00,CONTEGO SAFETY SOLUTIONS LTD
Revenue,Adult Services,Central Services,Central Services to the Public,5105641877,06.05.2020,AS Covid-19 (Adults),Clothing & Laundry,202.80,CONTEGO SAFETY SOLUTIONS LTD
Revenue,Adult Services,Central Services,Central Services to the Public,5105641877,06.05.2020,AS Covid-19 (Adults),Clothing & Laundry,304.20,CONTEGO SAFETY SOLUTIONS LTD
Revenue,Adult Services,Central Services,Central Services to the Public,5105641877,06.05.2020,AS Covid-19 (Adults),Clothing & Laundry,202.80,CONTEGO SAFETY SOLUTIONS LTD
Revenue,Adult Services,Central Services,Central Services to the Public,5105641877,06.05.2020,AS Covid-19 (Adults),Clothing & Laundry,33.40,CONTEGO SAFETY SOLUTIONS LTD
Revenue,Adult Services,Central Services,Central Services to the Public,5105641877,06.05.2020,AS Covid-19 (Adults),Clothing & Laundry,169.00,CONTEGO SAFETY SOLUTIONS LTD
Revenue,Adult Services,Central Services,Central Services to the Public,5105641877,06.05.2020,AS Covid-19 (Adults),Clothing & Laundry,42.80,CONTEGO SAFETY SOLUTIONS LTD
Revenue,Adult Services,Central Services,Central Services to the Public,5105641877,06.05.2020,AS Covid-19 (Adults),Clothing & Laundry,64.20,CONTEGO SAFETY SOLUTIONS LTD
Revenue,Adult Services,Central Services,Central Services to the Public,5105641877,06.05.2020,AS Covid-19 (Adults),Clothing & Laundry,53.50,CONTEGO SAFETY SOLUTIONS LTD
Revenue,Adult Services,Central Services,Central Services to the Public,5105641877,06.05.2020,AS Covid-19 (Adults),Clothing & Laundry,135.20,CONTEGO SAFETY SOLUTIONS LTD
Revenue,Adult Services,Adult Social Care,Sensory Support - older people (65+),5105642522,13.05.2020,Sensory Support Residential 65+,Charges from Independent Providers,"2,028.32",CORNELIA MANOR
Revenue,Adult Services,Adult Social Care,Support - Memory /Cognition-older people (65+),5105641990,01.05.2020,Memory & Cognition Residential 65+,Charges from Independent Providers,"2,257.07",CORNELIA MANOR
Revenue,Adult Services,Adult Social Care,Support - Memory /Cognition-older people (65+),5105642522,13.05.2020,Memory & Cognition Residential 65+,Charges from Independent Providers,"2,124.08",CORNELIA MANOR
Revenue,Adult Services,Adult Social Care,Support - Memory /Cognition-older people (65+),5105642522,13.05.2020,Memory & Cognition Residential 65+,Charges from Independent Providers,"2,124.08",CORNELIA MANOR
Revenue,Adult Services,Adult Social Care,Support - Memory /Cognition-older people (65+),5105642522,13.05.2020,Memory & Cognition Residential 65+,Charges from Independent Providers,"2,497.32",CORNELIA MANOR
Revenue,Adult Services,Adult Social Care,Support - Memory /Cognition-older people (65+),5105642522,13.05.2020,Memory & Cognition Residential 65+,Charges from Independent Providers,"2,124.08",CORNELIA MANOR
Revenue,Adult Services,Adult Social Care,Support - Memory /Cognition-older people (65+),5105642522,13.05.2020,Memory & Cognition Residential 65+,Charges from Independent Providers,"1,469.72",CORNELIA MANOR
Revenue,Adult Services,Adult Social Care,Mental Health Support-older people (65+),5105642522,13.05.2020,Mental Health Residential 65+,Charges from Independent Providers,"2,028.32",CORNELIA MANOR
Revenue,Adult Services,Adult Social Care,Support - Memory /Cognition-older people (65+),5105641990,01.05.2020,Memory & Cognition Residential 65+,Charges from Independent Providers,356.76,CORNELIA MANOR
Revenue,Adult Services,Adult Social Care,Support - Memory /Cognition-older people (65+),5105641990,01.05.2020,Memory & Cognition Residential 65+,Charges from Independent Providers,"3,261.98",CORNELIA MANOR
Revenue,Adult Services,Adult Social Care,Physical Support - older people (65+),5105643088,19.05.2020,Physical Support Residential 65+,Charges from Independent Providers,280.12,CORNELIA MANOR
Revenue,Adult Services,Adult Social Care,Physical Support - older people (65+),5105642522,13.05.2020,Physical Support Residential 65+,Charges from Independent Providers,"2,028.32",CORNELIA MANOR
Revenue,Adult Services,Adult Social Care,Physical Support - older people (65+),5105642522,13.05.2020,Physical Support Residential 65+,Charges from Independent Providers,"2,497.32",CORNELIA MANOR
Revenue,Adult Services,Adult Social Care,Physical Support - older people (65+),5105642522,13.05.2020,Physical Support Residential 65+,Charges from Independent Providers,"2,497.32",CORNELIA MANOR
Revenue,Adult Services,Adult Social Care,Physical Support - older people (65+),5105642522,13.05.2020,Physical Support Residential 65+,Charges from Independent Providers,"2,497.32",CORNELIA MANOR
Revenue,Adult Services,Adult Social Care,Physical Support - older people (65+),5105642522,13.05.2020,Physical Support Residential 65+,Charges from Independent Providers,"2,124.08",CORNELIA MANOR
Revenue,Adult Services,Adult Social Care,Physical Support - older people (65+),5105642522,13.05.2020,Physical Support Residential 65+,Charges from Independent Providers,"2,497.32",CORNELIA MANOR
Revenue,Adult Services,Adult Social Care,Physical Support - older people (65+),5105642522,13.05.2020,Physical Support Residential 65+,Charges from Independent Providers,"2,497.32",CORNELIA MANOR
Revenue,Adult Services,Adult Social Care,Physical Support - older people (65+),5105642522,13.05.2020,Physical Support Residential 65+,Charges from Independent Providers,"2,124.08",CORNELIA MANOR
Revenue,Childrens Services,Children's & Education Services,Children Looked After,5105644021,29.05.2020,Leaving Care Costs,Charges from Independent Providers,"20,941.31",CORNERSTONE ACCOMODATION LTD
Revenue,Childrens Services,Children's & Education Services,Children Looked After,5105644084,29.05.2020,Leaving Care Costs,Charges from Independent Providers,"10,089.22",CORNERSTONE ACCOMODATION LTD
Revenue,Childrens Services,Central Services,Central Services to the Public,5105643996,29.05.2020,CD Covid-19,Charges from Independent Providers,"4,714.28",CORNERSTONE ACCOMODATION LTD
Revenue,Childrens Services,Central Services,Central Services to the Public,5105643996,29.05.2020,CD Covid-19,Charges from Independent Providers,714.28,CORNERSTONE ACCOMODATION LTD
Revenue,Childrens Services,Central Services,Central Services to the Public,5105643996,29.05.2020,CD Covid-19,Charges from Independent Providers,714.28,CORNERSTONE ACCOMODATION LTD
Revenue,Neighbourhoods,Highways and Transport Services,"Airports, Harbours & Toll Facilities",5105642453,07.05.2020,Ferry Operation,Payment to Private Contractors,"12,348.00",COWES HARBOUR COMMISSION
Revenue,Neighbourhoods,Highways and Transport Services,"Airports, Harbours & Toll Facilities",5105642634,13.05.2020,Newport Harbour Account,Payment to Private Contractors,71.40,COWES HARBOUR COMMISSION
Revenue,Neighbourhoods,Highways and Transport Services,"Airports, Harbours & Toll Facilities",5105643154,19.05.2020,Newport Harbour Account,Payment to Private Contractors,238.18,FOLLY VENTURES
Revenue,Adult Services,Adult Social Care,Assistive Equipment & Technology,5105643074,19.05.2020,Community Equipment Store,Operational Equipment,261.60,CPC
Revenue,Childrens Services,Children's & Education Services,Special Schools & Alternative Provision,5105643702,22.05.2020,Island Learning Centre,Training,"1,550.00",CPI EUROPE
Revenue,Neighbourhoods,Cultural and Related Services,Recreation and Sport,5105642175,06.05.2020,Beach Safety & Inspection / Beach Awards,Rent of Buildings and Rooms,"1,530.43",CROWN ESTATE COMMISSIONERS
Revenue,Childrens Services,Children's & Education Services,Family Support Services,5105644042,29.05.2020,Agency Domiciliary Care,Charges from Independent Providers,147.60,CSN CARE GROUP LIMITED
Revenue,Neighbourhoods,Highways and Transport Services,"Airports, Harbours & Toll Facilities",5105643120,19.05.2020,Ferry Management,Payment to Private Contractors,387.00,CUMMINS UK
Revenue,Adult Services,Adult Social Care,Commissioning & Service Delivery,5105642580,13.05.2020,CHC Residential Care,Charges from Independent Providers,"10,677.52",CYGNET LEARNING DISABILITIES
Revenue,Adult Services,Adult Social Care,Commissioning & Service Delivery,5105642580,13.05.2020,CHC Residential Care,Charges from Independent Providers,675.64,CYGNET LEARNING DISABILITIES
Revenue,Childrens Services,Children's & Education Services,Children Looked After,5105642345,07.05.2020,Children placed with Family&Friends,Boarding Out Allowances,244.47,REDACTED PERSONAL DATA
Revenue,Childrens Services,Children's & Education Services,Children Looked After,5105642345,07.05.2020,Children placed with Family&Friends,Boarding Out Allowances,244.47,REDACTED PERSONAL DATA
Revenue,Childrens Services,Children's & Education Services,Children Looked After,5105642345,07.05.2020,Children placed with Family&Friends,Boarding Out Allowances,286.47,REDACTED PERSONAL DATA
Revenue,Childrens Services,Children's & Education Services,Children Looked After,5105643428,22.05.2020,Children placed with Family&Friends,Boarding Out Allowances,244.47,REDACTED PERSONAL DATA
Revenue,Childrens Services,Children's & Education Services,Children Looked After,5105643428,22.05.2020,Children placed with Family&Friends,Boarding Out Allowances,244.47,REDACTED PERSONAL DATA
Revenue,Childrens Services,Children's & Education Services,Children Looked After,5105643428,22.05.2020,Children placed with Family&Friends,Boarding Out Allowances,286.47,REDACTED PERSONAL DATA
Revenue,Childrens Services,Children's & Education Services,Children Looked After,5105642776,14.05.2020,Children placed with Family&Friends,Boarding Out Allowances,244.47,REDACTED PERSONAL DATA
Revenue,Childrens Services,Children's & Education Services,Children Looked After,5105642776,14.05.2020,Children placed with Family&Friends,Boarding Out Allowances,244.47,REDACTED PERSONAL DATA
Revenue,Childrens Services,Children's & Education Services,Children Looked After,5105642776,14.05.2020,Children placed with Family&Friends,Boarding Out Allowances,286.47,REDACTED PERSONAL DATA
Revenue,Childrens Services,Children's & Education Services,Children Looked After,5105643877,28.05.2020,Children placed with Family&Friends,Boarding Out Allowances,244.47,REDACTED PERSONAL DATA
Revenue,Childrens Services,Children's & Education Services,Children Looked After,5105643877,28.05.2020,Children placed with Family&Friends,Boarding Out Allowances,244.47,REDACTED PERSONAL DATA
Revenue,Childrens Services,Children's & Education Services,Children Looked After,5105643877,28.05.2020,Children placed with Family&Friends,Boarding Out Allowances,286.47,REDACTED PERSONAL DATA
Revenue,Adult Services,Housing Services,Homelessness,5105643630,22.05.2020,Private Rented Sector Leasing Scheme,Accommodation Costs - Leaseholder Payments,859.95,REDACTED PERSONAL DATA
Revenue,Childrens Services,Children's & Education Services,Children Looked After,5105642705,14.05.2020,Adoption Costs,Support Children,207.73,REDACTED PERSONAL DATA
Revenue,Childrens Services,Children's & Education Services,Children Looked After,5105642274,07.05.2020,Adoption Costs,Support Children,207.73,REDACTED PERSONAL DATA
Revenue,Childrens Services,Children's & Education Services,Children Looked After,5105643808,28.05.2020,Adoption Costs,Support Children,207.73,REDACTED PERSONAL DATA
Revenue,Childrens Services,Children's & Education Services,Children Looked After,5105643357,22.05.2020,Adoption Costs,Support Children,207.73,REDACTED PERSONAL DATA
Revenue,Resources,Central Services,Support Services,5105642904,15.05.2020,Litigation Costs,Legal Fees - Other Parties,100.00,12 COLLEGE PLACE BARRISTERS
Revenue,Adult Services,Housing Services,Homelessness,5105643633,22.05.2020,Private Rented Sector Leasing Scheme,Accommodation Costs - Leaseholder Payments,788.67,REDACTED PERSONAL DATA
Revenue,Childrens Services,Children's & Education Services,Children Looked After,5105642693,14.05.2020,Adoption Costs,Support Children,168.39,REDACTED PERSONAL DATA
Revenue,Childrens Services,Children's & Education Services,Children Looked After,5105642262,07.05.2020,Adoption Costs,Support Children,168.39,REDACTED PERSONAL DATA
Revenue,Childrens Services,Children's & Education Services,Children Looked After,5105643796,28.05.2020,Adoption Costs,Support Children,168.39,REDACTED PERSONAL DATA
Revenue,Childrens Services,Children's & Education Services,Children Looked After,5105643345,22.05.2020,Adoption Costs,Support Children,168.39,REDACTED PERSONAL DATA
Revenue,Childrens Services,Children's & Education Services,Children Looked After,5105643796,28.05.2020,Special Guardianship Order Costs,Support Children,228.53,REDACTED PERSONAL DATA
Revenue,Childrens Services,Children's & Education Services,Children Looked After,5105642262,07.05.2020,Special Guardianship Order Costs,Support Children,228.53,REDACTED PERSONAL DATA
Revenue,Childrens Services,Children's & Education Services,Children Looked After,5105642693,14.05.2020,Special Guardianship Order Costs,Support Children,228.53,REDACTED PERSONAL DATA
Revenue,Childrens Services,Children's & Education Services,Children Looked After,5105643345,22.05.2020,Special Guardianship Order Costs,Support Children,228.53,REDACTED PERSONAL DATA
Revenue,Childrens Services,Children's & Education Services,Children Looked After,5105643345,22.05.2020,In-house Fostering,Boarding Out Allowances,244.47,REDACTED PERSONAL DATA
Revenue,Childrens Services,Children's & Education Services,Children Looked After,5105643345,22.05.2020,In-house Fostering,Boarding Out Allowances,223.53,REDACTED PERSONAL DATA
Revenue,Childrens Services,Children's & Education Services,Children Looked After,5105642693,14.05.2020,In-house Fostering,Boarding Out Allowances,244.47,REDACTED PERSONAL DATA
Revenue,Childrens Services,Children's & Education Services,Children Looked After,5105642693,14.05.2020,In-house Fostering,Boarding Out Allowances,223.53,REDACTED PERSONAL DATA
Revenue,Childrens Services,Children's & Education Services,Children Looked After,5105643796,28.05.2020,In-house Fostering,Boarding Out Allowances,244.47,REDACTED PERSONAL DATA
Revenue,Childrens Services,Children's & Education Services,Children Looked After,5105643796,28.05.2020,In-house Fostering,Boarding Out Allowances,223.53,REDACTED PERSONAL DATA
Revenue,Childrens Services,Children's & Education Services,Children Looked After,5105642262,07.05.2020,In-house Fostering,Boarding Out Allowances,223.53,REDACTED PERSONAL DATA
Revenue,Childrens Services,Children's & Education Services,Children Looked After,5105642262,07.05.2020,In-house Fostering,Boarding Out Allowances,244.47,REDACTED PERSONAL DATA
Revenue,Childrens Services,Children's & Education Services,Children Looked After,5105642262,07.05.2020,In-house Fostering,Boarding Out Allowances,223.53,REDACTED PERSONAL DATA
Revenue,Adult Services,Housing Services,Homelessness,5105643650,22.05.2020,Private Rented Sector Leasing Scheme,Accommodation Costs - Leaseholder Payments,678.90,REDACTED PERSONAL DATA
Revenue,Adult Services,Housing Services,Homelessness,5105643632,22.05.2020,Private Rented Sector Leasing Scheme,Accommodation Costs - Leaseholder Payments,814.71,REDACTED PERSONAL DATA
Revenue,Adult Services,Housing Services,Homelessness,5105643632,22.05.2020,Private Rented Sector Leasing Scheme,Accommodation Costs - Leaseholder Payments,888.33,REDACTED PERSONAL DATA
Revenue,Childrens Services,Children's & Education Services,Children Looked After,5105642811,14.05.2020,In-house Fostering,Boarding Out Allowances,244.47,REDACTED PERSONAL DATA
Revenue,Childrens Services,Children's & Education Services,Children Looked After,5105642380,07.05.2020,In-house Fostering,Boarding Out Allowances,244.47,REDACTED PERSONAL DATA
Revenue,Childrens Services,Children's & Education Services,Children Looked After,5105643463,22.05.2020,In-house Fostering,Boarding Out Allowances,244.47,REDACTED PERSONAL DATA
Revenue,Childrens Services,Children's & Education Services,Children Looked After,5105643691,22.05.2020,In-house Fostering,Boarding Out Allowances,244.47,REDACTED PERSONAL DATA
Revenue,Childrens Services,Children's & Education Services,Children Looked After,5105643912,28.05.2020,In-house Fostering,Boarding Out Allowances,244.47,REDACTED PERSONAL DATA
Revenue,Childrens Services,Children's & Education Services,Children Looked After,5105643912,28.05.2020,In-house Fostering,Boarding Out Allowances,244.47,REDACTED PERSONAL DATA
Revenue,Neighbourhoods,Cultural and Related Services,Open Spaces,5105642096,13.05.2020,Ventnor Botanic Garden,Property Services - Planned Maintenance,220.00,DARES LTD
Revenue,Neighbourhoods,Cultural and Related Services,Open Spaces,5105640321,13.05.2020,Ventnor Botanic Garden,Property Services - Planned Maintenance,660.00,DARES LTD
Revenue,Neighbourhoods,Cultural and Related Services,Open Spaces,5105641026,07.05.2020,Fort Victoria,Property Services - Planned Maintenance,420.00,DARES LTD
Revenue,Childrens Services,Children's & Education Services,Other Education and Community Budget,5105642951,19.05.2020,HCC Property Services SLA,Payment to Private Contractors,240.00,DARES LTD
Revenue,Neighbourhoods,Cultural and Related Services,Open Spaces,5105643159,20.05.2020,Client Management Unit - Grounds Maintenance,Vehicle Maintenance Costs,10.00,DASHWITNESS LTD
Revenue,Neighbourhoods,Cultural and Related Services,Open Spaces,5105643159,20.05.2020,Client Management Unit - Grounds Maintenance,Vehicle Maintenance Costs,10.00,DASHWITNESS LTD
Revenue,Regeneration,Planning services,Development Control,5105643159,20.05.2020,Development Control,Vehicle Maintenance Costs,10.00,DASHWITNESS LTD
Revenue,Resources,Central Services,Central Services to the Public,5105643159,20.05.2020,National Non Domestic Rates,Vehicle Maintenance Costs,10.00,DASHWITNESS LTD
Revenue,Adult Services,Adult Social Care,Assistive Equipment & Technology,5105643159,20.05.2020,Community Equipment Store,Vehicle Maintenance Costs,10.00,DASHWITNESS LTD
Revenue,Adult Services,Adult Social Care,Assistive Equipment & Technology,5105643159,20.05.2020,Community Equipment Store,Vehicle Maintenance Costs,10.00,DASHWITNESS LTD
Revenue,Adult Services,Adult Social Care,Assistive Equipment & Technology,5105643159,20.05.2020,Community Equipment Store,Vehicle Maintenance Costs,10.00,DASHWITNESS LTD
Revenue,Adult Services,Adult Social Care,Assistive Equipment & Technology,5105643159,20.05.2020,Community Equipment Store,Vehicle Maintenance Costs,10.00,DASHWITNESS LTD
Revenue,Adult Services,Adult Social Care,Assistive Equipment & Technology,5105643159,20.05.2020,Community Equipment Store,Vehicle Maintenance Costs,10.00,DASHWITNESS LTD
Revenue,Adult Services,Adult Social Care,Assistive Equipment & Technology,5105643159,20.05.2020,Community Equipment Store,Vehicle Maintenance Costs,10.00,DASHWITNESS LTD
Revenue,Neighbourhoods,Environmental & Regulatory Services,Service Management and Support Services,5105643159,20.05.2020,Environment officers,Vehicle Maintenance Costs,10.00,DASHWITNESS LTD
Revenue,Neighbourhoods,Environmental & Regulatory Services,Service Management and Support Services,5105643159,20.05.2020,Environment officers,Vehicle Maintenance Costs,10.00,DASHWITNESS LTD
Revenue,Adult Services,Adult Social Care,Central Codes (to be reallocated),5105643159,20.05.2020,Community Reablement,Vehicle Maintenance Costs,10.00,DASHWITNESS LTD
Revenue,Adult Services,Adult Social Care,Central Codes (to be reallocated),5105643159,20.05.2020,Community Reablement,Vehicle Maintenance Costs,10.00,DASHWITNESS LTD
Revenue,Adult Services,Adult Social Care,Central Codes (to be reallocated),5105643159,20.05.2020,Community Reablement,Vehicle Maintenance Costs,10.00,DASHWITNESS LTD
Revenue,Adult Services,Adult Social Care,Central Codes (to be reallocated),5105643159,20.05.2020,Community Reablement,Vehicle Maintenance Costs,10.00,DASHWITNESS LTD
Revenue,Adult Services,Adult Social Care,Assistive Equipment & Technology,5105643159,20.05.2020,Wightcare,Vehicle Maintenance Costs,10.00,DASHWITNESS LTD
Revenue,Adult Services,Adult Social Care,Assistive Equipment & Technology,5105643159,20.05.2020,Wightcare,Vehicle Maintenance Costs,10.00,DASHWITNESS LTD
Revenue,Adult Services,Adult Social Care,Assistive Equipment & Technology,5105643159,20.05.2020,Wightcare,Vehicle Maintenance Costs,10.00,DASHWITNESS LTD
Revenue,Resources,Highways and Transport Services,Public Transport,5105643159,20.05.2020,Transport Fleet Administration,Vehicle Maintenance Costs,10.00,DASHWITNESS LTD
Revenue,Resources,Highways and Transport Services,Public Transport,5105643159,20.05.2020,Transport Fleet Administration,Vehicle Maintenance Costs,10.00,DASHWITNESS LTD
Revenue,Neighbourhoods,Highways and Transport Services,Parking Services,5105643159,20.05.2020,Off-Street Parking Operations,Vehicle Maintenance Costs,10.00,DASHWITNESS LTD
Revenue,Neighbourhoods,Highways and Transport Services,Parking Services,5105643159,20.05.2020,Off-Street Parking Operations,Vehicle Maintenance Costs,10.00,DASHWITNESS LTD
Revenue,Resources,Central Services,Central Services to the Public,5105643159,20.05.2020,Council Tax,Vehicle Maintenance Costs,10.00,DASHWITNESS LTD
Revenue,Resources,Central Services,Central Services to the Public,5105643159,20.05.2020,Council Tax,Vehicle Maintenance Costs,10.00,DASHWITNESS LTD
Revenue,Resources,Central Services,Support Services,5105640769,06.05.2020,Pension Administration,Stationery,522.78,PROLOG PRINT MEDIA
Revenue,Resources,Central Services,Support Services,5105644007,29.05.2020,ICT Contracts,Minor Works,125.00,DATASWIFT NETWORK SERVICES LIMITED
Revenue,Childrens Services,Children's & Education Services,Special Schools & Alternative Provision,5105643339,22.05.2020,Island Learning Centre,Computer Maintenance,400.00,DATASWIFT NETWORK SERVICES LIMITED
Revenue,Childrens Services,Children's & Education Services,Special Schools & Alternative Provision,5105643339,22.05.2020,Island Learning Centre,Computer Maintenance,16.80,DATASWIFT NETWORK SERVICES LIMITED
Revenue,Childrens Services,Children's & Education Services,Special Schools & Alternative Provision,5105644006,29.05.2020,Island Learning Centre,Schools ICT Learning Resources,424.10,DATASWIFT NETWORK SERVICES LIMITED
Revenue,Resources,Central Services,Central Services to the Public,5105644008,29.05.2020,RE Covid-19,Computer Software & Consumables,400.00,DATASWIFT NETWORK SERVICES LIMITED
Revenue,Resources,Central Services,Support Services,5105644005,29.05.2020,Telecommunications,Computer Software & Consumables,30.00,DATASWIFT NETWORK SERVICES LIMITED
Revenue,Adult Services,Housing Services,Homelessness,5105643636,22.05.2020,Private Rented Sector Leasing Scheme,Accommodation Costs - Leaseholder Payments,742.26,REDACTED PERSONAL DATA
Revenue,Childrens Services,Children's & Education Services,Children Looked After,5105642838,14.05.2020,Children placed with Family&Friends,Boarding Out Allowances,286.47,REDACTED PERSONAL DATA
Revenue,Childrens Services,Children's & Education Services,Children Looked After,5105642407,07.05.2020,Children placed with Family&Friends,Boarding Out Allowances,286.47,REDACTED PERSONAL DATA
Revenue,Childrens Services,Children's & Education Services,Children Looked After,5105643939,28.05.2020,Children placed with Family&Friends,Boarding Out Allowances,286.47,REDACTED PERSONAL DATA
Revenue,Childrens Services,Children's & Education Services,Children Looked After,5105643490,22.05.2020,Children placed with Family&Friends,Boarding Out Allowances,286.47,REDACTED PERSONAL DATA
Capital,Place,Capital,Capital,5105642014,04.05.2020,Highways transport capital,"Plant, Equipment & Furniture - Capital","22,500.00",DAVID TAYLOR GARAGES LTD
Capital,Place,Capital,Capital,5105642014,04.05.2020,Highways transport capital,"Plant, Equipment & Furniture - Capital",315.00,DAVID TAYLOR GARAGES LTD
Revenue,Public Health,Public Health,Smoking & Tobacco,5105643705,29.05.2020,Stop Smoking Services & Interventions NP,Payment to Private Contractors,14.00,DAY LEWIS PHARMACY
Revenue,Public Health,Public Health,Smoking & Tobacco,5105643705,29.05.2020,Stop Smoking Services & Interventions NP,Payment to Private Contractors,191.10,DAY LEWIS PHARMACY
Revenue,Public Health,Public Health,Smoking & Tobacco,5105643705,29.05.2020,Stop Smoking Services & Interventions NP,Payment to Private Contractors,22.50,DAY LEWIS PHARMACY
Revenue,Public Health,Public Health,Smoking & Tobacco,5105643705,29.05.2020,Stop Smoking Services & Interventions NP,Payment to Private Contractors,136.90,DAY LEWIS PHARMACY
Revenue,Public Health,Public Health,Smoking & Tobacco,5105643705,29.05.2020,Stop Smoking Services & Interventions NP,Payment to Private Contractors,20.00,DAY LEWIS PHARMACY
Revenue,Public Health,Public Health,Sexual Health,5105642236,07.05.2020,Contraception P,Payment to Private Contractors,43.00,DAY LEWIS PHARMACY
Revenue,Public Health,Public Health,Sexual Health,5105642236,07.05.2020,Contraception P,Payment to Private Contractors,5.20,DAY LEWIS PHARMACY
Revenue,Public Health,Public Health,Sexual Health,5105642236,07.05.2020,Contraception P,Payment to Private Contractors,14.05,DAY LEWIS PHARMACY
Revenue,Public Health,Public Health,Substance Misuse,5105642236,07.05.2020,Drug Misuse Adult- Treatment NP,Payment to Private Contractors,30.00,DAY LEWIS PHARMACY
Revenue,Public Health,Public Health,Smoking & Tobacco,5105643711,29.05.2020,Stop Smoking Services & Interventions NP,Payment to Private Contractors,83.78,DAY LEWIS PHARMACY
Revenue,Public Health,Public Health,Smoking & Tobacco,5105643711,29.05.2020,Stop Smoking Services & Interventions NP,Payment to Private Contractors,12.00,DAY LEWIS PHARMACY
Revenue,Public Health,Public Health,Sexual Health,5105642611,13.05.2020,Contraception P,Payment to Private Contractors,64.50,DAY LEWIS PHARMACY
Revenue,Public Health,Public Health,Sexual Health,5105642611,13.05.2020,Contraception P,Payment to Private Contractors,5.20,DAY LEWIS PHARMACY
Revenue,Public Health,Public Health,Sexual Health,5105642611,13.05.2020,Contraception P,Payment to Private Contractors,28.10,DAY LEWIS PHARMACY
Revenue,Public Health,Public Health,Substance Misuse,5105642611,13.05.2020,Drug Misuse Adult- Treatment NP,Payment to Private Contractors,370.00,DAY LEWIS PHARMACY
Revenue,Public Health,Public Health,Substance Misuse,5105642611,13.05.2020,Drug Misuse Adult- Treatment NP,Payment to Private Contractors,30.00,DAY LEWIS PHARMACY
Revenue,Public Health,Public Health,Substance Misuse,5105642611,13.05.2020,Drug Misuse Adult- Treatment NP,Payment to Private Contractors,129.50,DAY LEWIS PHARMACY
Revenue,Public Health,Public Health,Smoking & Tobacco,5105643742,29.05.2020,Stop Smoking Services & Interventions NP,Payment to Private Contractors,149.65,DAY LEWIS PHARMACY
Revenue,Public Health,Public Health,Smoking & Tobacco,5105643742,29.05.2020,Stop Smoking Services & Interventions NP,Payment to Private Contractors,18.00,DAY LEWIS PHARMACY
Revenue,Public Health,Public Health,Sexual Health,5105642233,07.05.2020,Contraception P,Payment to Private Contractors,112.40,DAY LEWIS PHARMACY
Revenue,Public Health,Public Health,Sexual Health,5105642233,07.05.2020,Contraception P,Payment to Private Contractors,193.50,DAY LEWIS PHARMACY
Revenue,Public Health,Public Health,Sexual Health,5105642233,07.05.2020,Contraception P,Payment to Private Contractors,5.20,DAY LEWIS PHARMACY
Revenue,Public Health,Public Health,Substance Misuse,5105642233,07.05.2020,Drug Misuse Adult- Treatment NP,Payment to Private Contractors,28.00,DAY LEWIS PHARMACY
Revenue,Public Health,Public Health,Substance Misuse,5105642233,07.05.2020,Drug Misuse Adult- Treatment NP,Payment to Private Contractors,124.00,DAY LEWIS PHARMACY
Revenue,Public Health,Public Health,Substance Misuse,5105642233,07.05.2020,Drug Misuse Adult- Treatment NP,Payment to Private Contractors,30.00,DAY LEWIS PHARMACY
Revenue,Public Health,Public Health,Sexual Health,5105642242,07.05.2020,Contraception P,Payment to Private Contractors,236.50,DAY LEWIS PHARMACY
Revenue,Public Health,Public Health,Sexual Health,5105642242,07.05.2020,Contraception P,Payment to Private Contractors,46.80,DAY LEWIS PHARMACY
Revenue,Public Health,Public Health,Sexual Health,5105642242,07.05.2020,Contraception P,Payment to Private Contractors,42.15,DAY LEWIS PHARMACY
Revenue,Public Health,Public Health,Substance Misuse,5105642242,07.05.2020,Drug Misuse Adult- Treatment NP,Payment to Private Contractors,"1,029.00",DAY LEWIS PHARMACY
Revenue,Public Health,Public Health,Substance Misuse,5105642242,07.05.2020,Drug Misuse Adult- Treatment NP,Payment to Private Contractors,30.00,DAY LEWIS PHARMACY
Revenue,Public Health,Public Health,Substance Misuse,5105642242,07.05.2020,Drug Misuse Adult- Treatment NP,Payment to Private Contractors,"2,508.00",DAY LEWIS PHARMACY
Revenue,Public Health,Public Health,Substance Misuse,5105643704,29.05.2020,Drug Misuse Adult- Treatment NP,Payment to Private Contractors,8.00,DAY LEWIS PHARMACY
Revenue,Public Health,Public Health,Substance Misuse,5105643704,29.05.2020,Drug Misuse Adult- Treatment NP,Payment to Private Contractors,39.38,DAY LEWIS PHARMACY
Revenue,Public Health,Public Health,Substance Misuse,5105642605,13.05.2020,Drug Misuse Adult- Treatment NP,Payment to Private Contractors,106.00,DAY LEWIS PHARMACY (NITON BRANCH)
Revenue,Public Health,Public Health,Substance Misuse,5105642605,13.05.2020,Drug Misuse Adult- Treatment NP,Payment to Private Contractors,30.00,DAY LEWIS PHARMACY (NITON BRANCH)
Revenue,Public Health,Public Health,Smoking & Tobacco,5105643739,29.05.2020,Stop Smoking Services & Interventions NP,Payment to Private Contractors,18.00,DAY LEWIS PHARMACY
Revenue,Public Health,Public Health,Smoking & Tobacco,5105643739,29.05.2020,Stop Smoking Services & Interventions NP,Payment to Private Contractors,109.20,DAY LEWIS PHARMACY
Revenue,Public Health,Public Health,Sexual Health,5105642254,20.05.2020,Contraception P,Payment to Private Contractors,150.50,DAY LEWIS PHARMACY
Revenue,Public Health,Public Health,Sexual Health,5105642254,20.05.2020,Contraception P,Payment to Private Contractors,15.60,DAY LEWIS PHARMACY
Revenue,Public Health,Public Health,Sexual Health,5105642254,20.05.2020,Contraception P,Payment to Private Contractors,70.25,DAY LEWIS PHARMACY
Revenue,Public Health,Public Health,Substance Misuse,5105642254,20.05.2020,Drug Misuse Adult- Treatment NP,Payment to Private Contractors,24.00,DAY LEWIS PHARMACY
Revenue,Public Health,Public Health,Substance Misuse,5105642254,20.05.2020,Drug Misuse Adult- Treatment NP,Payment to Private Contractors,192.00,DAY LEWIS PHARMACY
Revenue,Public Health,Public Health,Substance Misuse,5105642254,20.05.2020,Drug Misuse Adult- Treatment NP,Medical Fees and Staff Welfare,6.00,DAY LEWIS PHARMACY
Revenue,Public Health,Public Health,Smoking & Tobacco,5105643743,29.05.2020,Stop Smoking Services & Interventions NP,Payment to Private Contractors,6.00,DAY LEWIS PHARMACY
Revenue,Public Health,Public Health,Smoking & Tobacco,5105643743,29.05.2020,Stop Smoking Services & Interventions NP,Payment to Private Contractors,25.12,DAY LEWIS PHARMACY
Revenue,Public Health,Public Health,Sexual Health,5105642247,18.05.2020,Contraception P,Payment to Private Contractors,129.00,DAY LEWIS PHARMACY
Revenue,Public Health,Public Health,Sexual Health,5105642247,18.05.2020,Contraception P,Payment to Private Contractors,10.40,DAY LEWIS PHARMACY
Revenue,Public Health,Public Health,Sexual Health,5105642247,18.05.2020,Contraception P,Payment to Private Contractors,56.20,DAY LEWIS PHARMACY
Revenue,Public Health,Public Health,Substance Misuse,5105642247,18.05.2020,Drug Misuse Adult- Treatment NP,Payment to Private Contractors,298.00,DAY LEWIS PHARMACY
Revenue,Public Health,Public Health,Substance Misuse,5105642247,18.05.2020,Drug Misuse Adult- Treatment NP,Payment to Private Contractors,30.00,DAY LEWIS PHARMACY
Revenue,Adult Services,Housing Services,Homelessness,5105643655,22.05.2020,Private Rented Sector Leasing Scheme,Accommodation Costs - Leaseholder Payments,780.00,REDACTED PERSONAL DATA
Revenue,Adult Services,Housing Services,Homelessness,5105643655,22.05.2020,Private Rented Sector Leasing Scheme,Accommodation Costs - Leaseholder Payments,799.50,REDACTED PERSONAL DATA
Revenue,Resources,Central Services,Support Services,5105644063,29.05.2020,County Hall Central Mail Room,Computer Software & Consumables,44.00,DIGITAL ID LTD
Revenue,Childrens Services,Children's & Education Services,Safeguarding Children/Young Peoples Svs,5105644088,29.05.2020,Court Work & Consultancy Services,Professional Services,43.00,DNA LEGAL LTD
Revenue,Childrens Services,Children's & Education Services,Safeguarding Children/Young Peoples Svs,5105644089,29.05.2020,Court Work & Consultancy Services,Professional Services,190.67,DNA LEGAL LTD
Revenue,Childrens Services,Children's & Education Services,Safeguarding Children/Young Peoples Svs,5105642960,15.05.2020,Court Work & Consultancy Services,Professional Services,122.67,DNA LEGAL LTD
Revenue,Childrens Services,Children's & Education Services,Safeguarding Children/Young Peoples Svs,5105642961,15.05.2020,Court Work & Consultancy Services,Professional Services,104.33,DNA LEGAL LTD
Revenue,Adult Services,Adult Social Care,Mental Health Support-older people (65+),5105642551,13.05.2020,Mental Health Residential 65+,Charges from Independent Providers,"1,784.16",DONISTHORPE HALL
Revenue,Childrens Services,Children's & Education Services,Children Looked After,5105642827,14.05.2020,Special Guardianship Order Costs,Support Children,200.73,REDACTED PERSONAL DATA
Revenue,Childrens Services,Children's & Education Services,Children Looked After,5105643479,22.05.2020,Special Guardianship Order Costs,Support Children,200.73,REDACTED PERSONAL DATA
Revenue,Childrens Services,Children's & Education Services,Children Looked After,5105643928,28.05.2020,Special Guardianship Order Costs,Support Children,200.73,REDACTED PERSONAL DATA
Revenue,Childrens Services,Children's & Education Services,Children Looked After,5105642396,07.05.2020,Special Guardianship Order Costs,Support Children,200.73,REDACTED PERSONAL DATA
Revenue,Neighbourhoods,Cultural and Related Services,Recreation and Sport,5105644059,29.05.2020,Commercial Sales Team,Advertising & Publicity,75.00,DOUBLE OR NOTHING
Revenue,Adult Services,Central Services,Emergency Planning,5105643791,28.05.2020,NHS C19 Residential,Charges from Independent Providers,"7,140.28",DOWNSIDE HOUSE LTD
Revenue,Adult Services,Adult Social Care,Mental Health Support-older people (65+),5105642531,13.05.2020,Mental Health Residential 65+,Charges from Independent Providers,"2,124.08",DOWNSIDE HOUSE LTD
Revenue,Adult Services,Adult Social Care,Mental Health Support-older people (65+),5105642531,13.05.2020,Mental Health Residential 65+,Charges from Independent Providers,"2,028.32",DOWNSIDE HOUSE LTD
Revenue,Adult Services,Adult Social Care,Physical Support - older people (65+),5105642935,15.05.2020,Physical Support Residential 65+,Charges from Independent Providers,"5,529.78",DOWNSIDE HOUSE LTD
Revenue,Adult Services,Adult Social Care,Physical Support - older people (65+),5105642057,04.05.2020,Physical Support Residential 65+,Charges from Independent Providers,862.20,DOWNSIDE HOUSE LTD
Revenue,Adult Services,Adult Social Care,Physical Support - older people (65+),5105642057,04.05.2020,Physical Support Residential 65+,Charges from Independent Providers,86.22,DOWNSIDE HOUSE LTD
Revenue,Adult Services,Adult Social Care,Physical Support - older people (65+),5105642057,04.05.2020,Physical Support Residential 65+,Charges from Independent Providers,"1,248.66",DOWNSIDE HOUSE LTD
Revenue,Adult Services,Adult Social Care,Physical Support - older people (65+),5105642057,04.05.2020,Physical Support Residential 65+,Charges from Independent Providers,"2,503.38",DOWNSIDE HOUSE LTD
Revenue,Adult Services,Adult Social Care,Physical Support - older people (65+),5105642531,13.05.2020,Physical Support Residential 65+,Charges from Independent Providers,"2,497.32",DOWNSIDE HOUSE LTD
Revenue,Adult Services,Adult Social Care,Physical Support - older people (65+),5105642531,13.05.2020,Physical Support Residential 65+,Charges from Independent Providers,"2,497.32",DOWNSIDE HOUSE LTD
Revenue,Adult Services,Adult Social Care,Physical Support - older people (65+),5105642531,13.05.2020,Physical Support Residential 65+,Charges from Independent Providers,"2,124.08",DOWNSIDE HOUSE LTD
Revenue,Adult Services,Adult Social Care,Physical Support - older people (65+),5105642531,13.05.2020,Physical Support Residential 65+,Charges from Independent Providers,"2,028.32",DOWNSIDE HOUSE LTD
Revenue,Adult Services,Adult Social Care,Physical Support - older people (65+),5105642531,13.05.2020,Physical Support Residential 65+,Charges from Independent Providers,"2,124.08",DOWNSIDE HOUSE LTD
Revenue,Adult Services,Adult Social Care,Physical Support - older people (65+),5105642531,13.05.2020,Physical Support Residential 65+,Charges from Independent Providers,"2,124.08",DOWNSIDE HOUSE LTD
Revenue,Adult Services,Adult Social Care,Physical Support - older people (65+),5105642531,13.05.2020,Physical Support Residential 65+,Charges from Independent Providers,"2,497.32",DOWNSIDE HOUSE LTD
Revenue,Resources,Central Services,Support Services,5105643735,26.05.2020,Litigation Costs,Legal Fees - Other Parties,"2,000.00","CORNERSTONE BARRISTERS, LONDON"
Revenue,Resources,Central Services,Support Services,5105643736,26.05.2020,Litigation Costs,Legal Fees - Other Parties,250.00,"CORNERSTONE BARRISTERS, LONDON"
Revenue,Childrens Services,Children's & Education Services,Children Looked After,5105643104,19.05.2020,Adopt South Adoption Support Fund,Charges from Independent Providers,90.00,REDACTED PERSONAL DATA
Revenue,Adult Services,Adult Social Care,Assistive Equipment & Technology,5105642229,13.05.2020,Community Equipment Store,Operational Equipment,240.00,DRIVE MEDICAL LTD
Revenue,Adult Services,Adult Social Care,Assistive Equipment & Technology,5105642625,13.05.2020,Community Equipment Store,Operational Equipment,"1,068.00",DRIVE MEDICAL LTD
Revenue,Adult Services,Adult Social Care,Assistive Equipment & Technology,5105642072,04.05.2020,Community Equipment Store,Operational Equipment,7.46,DRIVE MEDICAL LTD
